{"text_format":"1","workbook":"xlsx","n_sheets":61,"sheets":["39%","Pg Setup Copies","Needs Page Setup","Bob (later) 1","AutoSum","Totals","Show Arrange All Order","All Chars in font","Formatting Errors","Only Unique","For Later (Bob)","Filling Holes","Skip Blanks","Distribute","Files etc","Mirror","Enter Totals","Change Row Height","TextToColumns","Double-Space","History ","Another Bob","Misc1","Find Backwards","Merge","Where are Row#s","Match Wildcard","Cut Copy InsertPaste","Conditional Formatting","TEXT, REPT","Last String","Wait","Right Click FH","Space Operator","Picture","Advanced No Fmt, Prot Range","Sort Columns","Number Wednesdays","Pictograph","Mailing Labels 1","Mailing Labels 2","Mailing Labels 3","1st and 15th","Fill right, down","Inner Series","Random Sample","Auto Number Qs","Self-defining Range","Printing Remote Areas","Ctrl-6","Advanced Filter","Aligning Objects","Custom List","Whats This","Add Time","Dynamic Array","VBA","Amazing Formula","Supporting Data","Miscellaneous","Email"],"not_rendered":{"charts":3,"images":11,"macros":1,"external_links":0,"defined_names":43,"comments":1,"pivot_tables":0},"unopened":[],"bounds":{"document_bytes":16777216,"sheet_cells":100000,"rows_first":2000,"rows_last":500,"rows_between":2000,"halvings":0,"cell_chars":16384,"cell_head_chars":4096},"cells_cut":0,"cells_raw":0,"read":"whole","date_system":"1900"}

{"sheet":"39%","index":0,"n_rows":23,"n_cols":7,"rows_kept":23,"cut":false,"hidden":false,"merged":[[0,1,3,4],[22,1,22,6]]}
[null,"Hi! I'm Bob Umlas. Many of the tips from this session are from my book:",null,null,null,null,"You can find my other books"]
[null,null,null,null,null,null,"by typing UMLAS into Amazon.com"]
[]
[]
[]
[]
[]
[]
[]
[]
[]
[]
[]
[]
[]
[]
[]
[]
[]
[]
[]
[]
[null,"My car:"]

{"sheet":"Pg Setup Copies","index":1,"n_rows":13,"n_cols":4,"rows_kept":13,"cut":false,"hidden":false,"merged":[]}
[null,null,null,"This contains page setup for"]
[null,null,null,"page setup demo"]
[null,"For quick formatting:"]
["Ctrl+shift+:",3,3]
[1,3,3]
[2,3,3]
[3,"1900-01-03",3]
[4,3,3]
[5,3,3]
[6,3,3]
["~",3,3]
[]
["7;-","border"]

{"sheet":"Needs Page Setup","index":2,"n_rows":12,"n_cols":7,"rows_kept":12,"cut":false,"hidden":false,"merged":[]}
["Some Data","Some Data","Some Data","Some Data","Some Data","Some Data","Some Data"]
["Some Data","Some Data","Some Data","Some Data","Some Data","Some Data","Some Data"]
["Some Data","Some Data","Some Data","Some Data","Some Data","Some Data","Some Data"]
["Some Data","Some Data","Some Data","Some Data","Some Data","Some Data","Some Data"]
["Some Data","Some Data","Some Data","Some Data","Some Data","Some Data","Some Data"]
["Some Data","Some Data","Some Data","Some Data","Some Data","Some Data","Some Data"]
["Some Data","Some Data","Some Data","Some Data","Some Data","Some Data","Some Data"]
["Some Data","Some Data","Some Data","Some Data","Some Data","Some Data","Some Data"]
["Some Data","Some Data","Some Data","Some Data","Some Data","Some Data","Some Data"]
["Some Data","Some Data","Some Data","Some Data","Some Data","Some Data","Some Data"]
["Some Data","Some Data","Some Data","Some Data","Some Data","Some Data","Some Data"]
["Some Data","Some Data","Some Data","Some Data","Some Data","Some Data","Some Data"]

{"sheet":"Bob (later) 1","index":3,"n_rows":2,"n_cols":2,"rows_kept":2,"cut":false,"hidden":false,"merged":[]}
[1,1]
[1,1]

{"sheet":"AutoSum","index":4,"n_rows":34,"n_cols":4,"rows_kept":34,"cut":false,"hidden":false,"merged":[]}
[65,54,30,46]
[84,85,87,74]
[14,69,78,97]
[88,42,71,6]
[5,32,71,62]
[57,47,65,2]
[50,5,63,92]
[]
[]
[]
[]
[60,60]
[54,66]
[58,28]
[57,16]
[9,14]
[null,91]
[34,29]
[70,16]
[62]
[70,7]
[66,68]
[95,77]
[76,13]
[46,84]
[32,70]
[null,18]
[49,27]
[16]
[57,26]
[12,4]
[67,44]
[76,14]
[51]

{"sheet":"Totals","index":5,"n_rows":138,"n_cols":2,"rows_kept":138,"cut":false,"hidden":false,"merged":[]}
[null,22]
[null,20]
[null,15]
[null,6]
[null,98]
[null,94]
[null,24]
[null,49]
[null,47]
[null,81]
["Subtotal",{"$f":"SUM(B1:B10)","v":456}]
[null,29]
[null,34]
[null,64]
[null,15]
[null,81]
[null,62]
[null,73]
[null,35]
[null,59]
[null,96]
[null,80]
[null,92]
["Subtotal",{"$f":"SUM(B12:B23)","v":720}]
[null,73]
[null,8]
[null,51]
[null,24]
[null,18]
[null,65]
[null,93]
[null,25]
[null,68]
[null,99]
[null,33]
[null,99]
[null,98]
[null,96]
[null,30]
[null,83]
[null,45]
[null,12]
[null,5]
[null,91]
[null,5]
[null,19]
["Subtotal",{"$f":"SUM(B25:B46)","v":1140}]
[null,66]
[null,16]
[null,78]
[null,19]
[null,97]
[null,41]
[null,94]
[null,14]
[null,48]
[null,38]
[null,46]
[null,40]
[null,34]
[null,50]
["Subtotal",{"$f":"SUM(B48:B61)","v":681}]
[null,49]
[null,49]
[null,40]
[null,13]
[null,27]
[null,76]
[null,79]
[null,97]
[null,54]
[null,89]
[null,24]
[null,59]
[null,45]
["Subtotal",{"$f":"SUM(B63:B75)","v":701}]
[null,29]
[null,47]
[null,18]
[null,23]
[null,19]
[null,57]
[null,71]
[null,42]
[null,58]
[null,22]
[null,3]
[null,64]
[null,54]
[null,62]
[null,66]
[null,84]
[null,20]
[null,49]
[null,65]
[null,32]
[null,47]
[null,44]
[null,24]
["Subtotal",{"$f":"SUM(B77:B99)","v":1000}]
[null,25]
[null,50]
[null,9]
[null,28]
[null,71]
[null,26]
[null,65]
[null,20]
[null,14]
[null,19]
[null,30]
[null,44]
[null,52]
[null,17]
[null,70]
[null,7]
[null,75]
[null,80]
[null,60]
["Subtotal",{"$f":"SUM(B101:B119)","v":762}]
[null,50]
[null,10]
[null,29]
[null,69]
[null,1]
[null,52]
[null,38]
[null,74]
[null,96]
[null,55]
[null,12]
[null,54]
["Subtotal",{"$f":"SUM(B121:B132)","v":540}]
["Grand Total","??"]
[null,{"$f":"B133+B120+B100+B76+B62+B47+B24+B11","v":6000}]
[null,{"$f":"SUMIF(A1:A133,\"Subtotal\",B1:B133)","v":6000}]
[null,{"$f":"SUMPRODUCT(N(A1:A133=\"Subtotal\"),B1:B133)","v":6000}]
[null,{"$f":"SUM(B133,B120,B100,B76,B62,B47,B24,B11)","v":6000}]

{"sheet":"Show Arrange All Order","index":6,"n_rows":1,"n_cols":1,"rows_kept":1,"cut":false,"hidden":false,"merged":[]}
["Live demo"]

{"sheet":"All Chars in font","index":7,"n_rows":255,"n_cols":10,"rows_kept":255,"cut":false,"hidden":false,"merged":[]}
["ARIAL","CENTURY","Tahoma","WINGDINGS","Webdings"]
[{"$f":"CHAR(ROW())","v":"\u0002"},"\u0002","\u0002","\u0002","\u0002",null,"Alt/7 (NK)","•",null,"o"]
["\u0003","\u0003","\u0003","\u0003","\u0003",null,"Alt/3-4-5-6","♥♦♣♠",null,"þ"]
["\u0004","\u0004","\u0004","\u0004","\u0004"]
["\u0005","\u0005","\u0005","\u0005","\u0005"]
["\u0006","\u0006","\u0006","\u0006","\u0006"]
["\u0007","\u0007","\u0007","\u0007","\u0007"]
["\b","\b","\b","\b","\b"]
["\t","\t","\t","\t","\t"]
["\n","\n","\n","\n","\n"]
["\u000b","\u000b","\u000b","\u000b","\u000b"]
[{"$f":"CHAR(ROW())","v":"\f"},"\f","\f","\f","\f"]
["\r","\r","\r","\r","\r"]
["\u000e","\u000e","\u000e","\u000e","\u000e"]
["\u000f","\u000f","\u000f","\u000f","\u000f"]
["\u0010","\u0010","\u0010","\u0010","\u0010"]
["\u0011","\u0011","\u0011","\u0011","\u0011"]
["\u0012","\u0012","\u0012","\u0012","\u0012"]
["\u0013","\u0013","\u0013","\u0013","\u0013"]
["\u0014","\u0014","\u0014","\u0014","\u0014"]
["\u0015","\u0015","\u0015","\u0015","\u0015"]
[{"$f":"CHAR(ROW())","v":"\u0016"},"\u0016","\u0016","\u0016","\u0016"]
["\u0017","\u0017","\u0017","\u0017","\u0017"]
["\u0018","\u0018","\u0018","\u0018","\u0018"]
["\u0019","\u0019","\u0019","\u0019","\u0019"]
["\u001a","\u001a","\u001a","\u001a","\u001a"]
["\u001b","\u001b","\u001b","\u001b","\u001b"]
["\u001c","\u001c","\u001c","\u001c","\u001c"]
["\u001d","\u001d","\u001d","\u001d","\u001d"]
["\u001e","\u001e","\u001e","\u001e","\u001e"]
["\u001f","\u001f","\u001f","\u001f","\u001f"]
[{"$f":"CHAR(ROW())","v":" "}," "," "," "," "]
["!","!","!","!","!"]
["\"","\"","\"","\"","\""]
["#","#","#","#","#"]
["$","$","$","$","$"]
["%","%","%","%","%"]
["&","&","&","&","&"]
["'","'","'","'","'"]
["(","(","(","(","("]
[")",")",")",")",")"]
[{"$f":"CHAR(ROW())","v":"*"},"*","*","*","*"]
["+","+","+","+","+"]
[",",",",",",",",","]
["-","-","-","-","-"]
[".",".",".",".","."]
["/","/","/","/","/"]
["0","0","0","0","0"]
["1","1","1","1","1"]
["2","2","2","2","2"]
["3","3","3","3","3"]
[{"$f":"CHAR(ROW())","v":"4"},"4","4","4","4"]
["5","5","5","5","5"]
["6","6","6","6","6"]
["7","7","7","7","7"]
["8","8","8","8","8"]
["9","9","9","9","9"]
[":",":",":",":",":"]
[";",";",";",";",";"]
["<","<","<","<","<"]
["=","=","=","=","="]
[{"$f":"CHAR(ROW())","v":">"},">",">",">",">"]
["?","?","?","?","?"]
["@","@","@","@","@"]
["A","A","A","A","A"]
["B","B","B","B","B"]
["C","C","C","C","C"]
["D","D","D","D","D"]
["E","E","E","E","E"]
["F","F","F","F","F"]
["G","G","G","G","G"]
[{"$f":"CHAR(ROW())","v":"H"},"H","H","H","H"]
["I","I","I","I","I"]
["J","J","J","J","J"]
["K","K","K","K","K"]
["L","L","L","L","L"]
["M","M","M","M","M"]
["N","N","N","N","N"]
["O","O","O","O","O"]
["P","P","P","P","P"]
["Q","Q","Q","Q","Q"]
[{"$f":"CHAR(ROW())","v":"R"},"R","R","R","R"]
["S","S","S","S","S"]
["T","T","T","T","T"]
["U","U","U","U","U"]
["V","V","V","V","V"]
["W","W","W","W","W"]
["X","X","X","X","X"]
["Y","Y","Y","Y","Y"]
["Z","Z","Z","Z","Z"]
["[","[","[","[","["]
[{"$f":"CHAR(ROW())","v":"\\"},"\\","\\","\\","\\"]
["]","]","]","]","]"]
["^","^","^","^","^"]
["_","_","_","_","_"]
["`","`","`","`","`"]
["a","a","a","a","a"]
["b","b","b","b","b"]
["c","c","c","c","c"]
["d","d","d","d","d"]
["e","e","e","e","e"]
[{"$f":"CHAR(ROW())","v":"f"},"f","f","f","f"]
["g","g","g","g","g"]
["h","h","h","h","h"]
["i","i","i","i","i"]
["j","j","j","j","j"]
["k","k","k","k","k"]
["l","l","l","l","l"]
["m","m","m","m","m"]
["n","n","n","n","n"]
["o","o","o","o","o"]
[{"$f":"CHAR(ROW())","v":"p"},"p","p","p","p"]
["q","q","q","q","q"]
["r","r","r","r","r"]
["s","s","s","s","s"]
["t","t","t","t","t"]
["u","u","u","u","u"]
["v","v","v","v","v"]
["w","w","w","w","w"]
["x","x","x","x","x"]
["y","y","y","y","y"]
[{"$f":"CHAR(ROW())","v":"z"},"z","z","z","z"]
["{","{","{","{","{"]
["|","|","|","|","|"]
["}","}","}","}","}"]
["~","~","~","~","~"]
["\u007f","\u007f","\u007f","\u007f","\u007f"]
["€","€","€","€","€"]
["\u0081","\u0081","\u0081","\u0081","\u0081"]
["‚","‚","‚","‚","‚"]
["ƒ","ƒ","ƒ","ƒ","ƒ"]
[{"$f":"CHAR(ROW())","v":"„"},"„","„","„","„"]
["…","…","…","…","…"]
["†","†","†","†","†"]
["‡","‡","‡","‡","‡"]
["ˆ","ˆ","ˆ","ˆ","ˆ"]
["‰","‰","‰","‰","‰"]
["Š","Š","Š","Š","Š"]
["‹","‹","‹","‹","‹"]
["Œ","Œ","Œ","Œ","Œ"]
["\u008d","\u008d","\u008d","\u008d","\u008d"]
[{"$f":"CHAR(ROW())","v":"Ž"},"Ž","Ž","Ž","Ž"]
["\u008f","\u008f","\u008f","\u008f","\u008f"]
["\u0090","\u0090","\u0090","\u0090","\u0090"]
["‘","‘","‘","‘","‘"]
["’","’","’","’","’"]
["“","“","“","“","“"]
["”","”","”","”","”"]
["•","•","•","•","•"]
["–","–","–","–","–"]
["—","—","—","—","—"]
[{"$f":"CHAR(ROW())","v":"˜"},"˜","˜","˜","˜"]
["™","™","™","™","™"]
["š","š","š","š","š"]
["›","›","›","›","›"]
["œ","œ","œ","œ","œ"]
["\u009d","\u009d","\u009d","\u009d","\u009d"]
["ž","ž","ž","ž","ž"]
["Ÿ","Ÿ","Ÿ","Ÿ","Ÿ"]
[" "," "," "," "," "]
["¡","¡","¡","¡","¡"]
[{"$f":"CHAR(ROW())","v":"¢"},"¢","¢","¢","¢"]
["£","£","£","£","£"]
["¤","¤","¤","¤","¤"]
["¥","¥","¥","¥","¥"]
["¦","¦","¦","¦","¦"]
["§","§","§","§","§"]
["¨","¨","¨","¨","¨"]
["©","©","©","©","©"]
["ª","ª","ª","ª","ª"]
["«","«","«","«","«"]
[{"$f":"CHAR(ROW())","v":"¬"},"¬","¬","¬","¬"]
["­","­","­","­","­"]
["®","®","®","®","®"]
["¯","¯","¯","¯","¯"]
["°","°","°","°","°"]
["±","±","±","±","±"]
["²","²","²","²","²"]
["³","³","³","³","³"]
["´","´","´","´","´"]
["µ","µ","µ","µ","µ"]
[{"$f":"CHAR(ROW())","v":"¶"},"¶","¶","¶","¶"]
["·","·","·","·","·"]
["¸","¸","¸","¸","¸"]
["¹","¹","¹","¹","¹"]
["º","º","º","º","º"]
["»","»","»","»","»"]
["¼","¼","¼","¼","¼"]
["½","½","½","½","½"]
["¾","¾","¾","¾","¾"]
["¿","¿","¿","¿","¿"]
[{"$f":"CHAR(ROW())","v":"À"},"À","À","À","À"]
["Á","Á","Á","Á","Á"]
["Â","Â","Â","Â","Â"]
["Ã","Ã","Ã","Ã","Ã"]
["Ä","Ä","Ä","Ä","Ä"]
["Å","Å","Å","Å","Å"]
["Æ","Æ","Æ","Æ","Æ"]
["Ç","Ç","Ç","Ç","Ç"]
["È","È","È","È","È"]
["É","É","É","É","É"]
[{"$f":"CHAR(ROW())","v":"Ê"},"Ê","Ê","Ê","Ê"]
["Ë","Ë","Ë","Ë","Ë"]
["Ì","Ì","Ì","Ì","Ì"]
["Í","Í","Í","Í","Í"]
["Î","Î","Î","Î","Î"]
["Ï","Ï","Ï","Ï","Ï"]
["Ð","Ð","Ð","Ð","Ð"]
["Ñ","Ñ","Ñ","Ñ","Ñ"]
["Ò","Ò","Ò","Ò","Ò"]
["Ó","Ó","Ó","Ó","Ó"]
[{"$f":"CHAR(ROW())","v":"Ô"},"Ô","Ô","Ô","Ô"]
["Õ","Õ","Õ","Õ","Õ"]
["Ö","Ö","Ö","Ö","Ö"]
["×","×","×","×","×"]
["Ø","Ø","Ø","Ø","Ø"]
["Ù","Ù","Ù","Ù","Ù"]
["Ú","Ú","Ú","Ú","Ú"]
["Û","Û","Û","Û","Û"]
["Ü","Ü","Ü","Ü","Ü"]
["Ý","Ý","Ý","Ý","Ý"]
[{"$f":"CHAR(ROW())","v":"Þ"},"Þ","Þ","Þ","Þ"]
["ß","ß","ß","ß","ß"]
["à","à","à","à","à"]
["á","á","á","á","á"]
["â","â","â","â","â"]
["ã","ã","ã","ã","ã"]
["ä","ä","ä","ä","ä"]
["å","å","å","å","å"]
["æ","æ","æ","æ","æ"]
["ç","ç","ç","ç","ç"]
[{"$f":"CHAR(ROW())","v":"è"},"è","è","è","è"]
["é","é","é","é","é"]
["ê","ê","ê","ê","ê"]
["ë","ë","ë","ë","ë"]
["ì","ì","ì","ì","ì"]
["í","í","í","í","í"]
["î","î","î","î","î"]
["ï","ï","ï","ï","ï"]
["ð","ð","ð","ð","ð"]
["ñ","ñ","ñ","ñ","ñ"]
[{"$f":"CHAR(ROW())","v":"ò"},"ò","ò","ò","ò"]
["ó","ó","ó","ó","ó"]
["ô","ô","ô","ô","ô"]
["õ","õ","õ","õ","õ"]
["ö","ö","ö","ö","ö"]
["÷","÷","÷","÷","÷"]
["ø","ø","ø","ø","ø"]
["ù","ù","ù","ù","ù"]
["ú","ú","ú","ú","ú"]
["û","û","û","û","û"]
["ü","ü","ü","ü","ü"]
["ý","ý","ý","ý","ý"]
["þ","þ","þ","þ","þ"]
["ÿ","ÿ","ÿ","ÿ","ÿ"]

{"sheet":"Formatting Errors","index":8,"n_rows":5,"n_cols":5,"rows_kept":5,"cut":false,"hidden":false,"merged":[]}
[null,"By Number Formatting","By Conditional Formatting","Usual","By Formula"]
["Numerator",{"$f":"A3/A5","v":10},{"$f":"A3/A5","v":10},{"$f":"A3/A5","v":10},{"$f":"IF(A5=0,\"\",A3/A5)","v":10}]
[15000]
["Denominator"]
[1500]

{"sheet":"Only Unique","index":9,"n_rows":11,"n_cols":4,"rows_kept":11,"cut":false,"hidden":false,"merged":[]}
[1,null,null,"Can contain only unique values"]
[2,null,null,1]
[3,null,null,2]
[4,null,null,3]
[4,null,null,4]
[1,null,null,5]
[2,null,null,6]
[2]
[1]
[2]
[2]

{"sheet":"For Later (Bob)","index":10,"n_rows":2,"n_cols":2,"rows_kept":2,"cut":false,"hidden":false,"merged":[]}
[2,2]
[2,2]

{"sheet":"Filling Holes","index":11,"n_rows":99,"n_cols":3,"rows_kept":99,"cut":false,"hidden":false,"merged":[]}
["State","Region","Amount"]
["PA","North",300]
[null,null,104]
[null,null,159]
[null,null,749]
[null,"South",700]
[null,null,348]
[null,null,508]
[null,null,935]
[null,null,582]
["WA","North",377]
[null,null,936]
[null,"South",831]
[null,null,243]
[null,null,344]
["NY","North",97]
[null,null,120]
[null,"South",577]
[null,null,955]
["TN","North",751]
[null,null,62]
[null,null,306]
[null,null,955]
[null,"South",124]
[null,null,514]
[null,null,703]
[null,null,742]
[null,null,573]
["MA","North",267]
[null,null,204]
[null,null,251]
[null,null,286]
[null,null,142]
[null,null,120]
[null,null,20]
[null,"South",632]
[null,null,532]
[null,null,7]
[null,null,545]
[null,null,310]
[null,null,292]
[null,null,657]
[null,null,406]
[null,null,163]
[null,null,100]
["CA","North",240]
[null,null,139]
[null,null,386]
[null,null,176]
[null,null,65]
[null,"South",161]
[null,null,231]
[null,null,230]
[null,null,242]
[null,null,273]
[null,null,273]
[null,null,525]
[null,null,330]
["ID","North",53]
[null,null,680]
[null,null,235]
[null,null,186]
[null,null,519]
[null,null,210]
[null,"South",603]
[null,null,315]
[null,null,243]
[null,null,174]
[null,null,106]
[null,null,689]
[null,null,388]
["NV","North",388]
[null,null,388]
[null,null,195]
[null,null,242]
[null,null,135]
[null,"South",106]
[null,null,305]
[null,null,0]
[null,null,333]
[null,null,317]
["NM","North",83]
[null,null,173]
[null,null,125]
[null,null,516]
[null,"South",166]
[null,null,573]
[null,null,382]
[null,null,472]
[null,null,589]
[null,null,269]
[null,null,196]
[null,null,575]
[null,null,188]
[null,null,608]
[null,null,627]
[null,null,460]
[null,null,352]
[null,null,81]

{"sheet":"Skip Blanks","index":12,"n_rows":25,"n_cols":2,"rows_kept":25,"cut":false,"hidden":false,"merged":[]}
["a","b"]
[]
["c","d"]
[]
["e","f"]
[]
["g","h"]
[]
["i","j"]
[]
["k","l"]
[]
["m","n"]
[]
["o","p"]
[]
["q","r"]
[]
["s","t"]
[]
["u","v"]
[]
["w","x"]
[]
["y","z"]

{"sheet":"Distribute","index":13,"n_rows":15,"n_cols":5,"rows_kept":15,"cut":false,"hidden":false,"merged":[]}
[null,null,123]
[null,null,null,null,{"$f":"(C15-C1)/(ROW(C15)-ROW(C1))","v":30.785714285714285}]
[]
[]
[]
[]
[]
[]
[]
[]
[]
[]
[]
[]
[null,null,554]

{"sheet":"Files etc","index":14,"n_rows":3,"n_cols":5,"rows_kept":3,"cut":false,"hidden":false,"merged":[]}
["Files","Excel Files","Tab Names","Fl","=TRANSPOSE(FILES())"]
["=Fl","=FLx","=TabNames","Flx","=TRANSPOSE(FILES(\"*.xl*\"))"]
[null,null,null,"TabNames","=SORT(TRANSPOSE(MID(GET.WORKBOOK(1),FIND(\"]\",GET.WORKBOOK(1))+1,255)))"]

{"sheet":"Mirror","index":15,"n_rows":1,"n_cols":1,"rows_kept":1,"cut":false,"hidden":false,"merged":[]}
[4]

{"sheet":"Enter Totals","index":16,"n_rows":13,"n_cols":29,"rows_kept":13,"cut":false,"hidden":false,"merged":[]}
[null,"Jan","% of Q Total","Feb","% of Q Total","Mar","% of Q Total","Q1","Apr","% of Q Total","May","% of Q Total","Jun","% of Q Total","Q2","Jul","% of Q Total","Aug","% of Q Total","Sep","% of Q Total","Q3","Oct","% of Q Total","Nov","% of Q Total","Dec","% of Q Total","Q4"]
[null,285,{"$f":"B2/H2","v":0.1744186046511628},857,{"$f":"D2/H2","v":0.5244798041615667},492,{"$f":"F2/H2","v":0.30110159118727048},{"$f":"B2+D2+F2","v":1634},582,{"$f":"I2/O2","v":0.35815384615384616},272,{"$f":"K2/O2","v":0.16738461538461538},771,{"$f":"M2/O2","v":0.47446153846153843},{"$f":"I2+K2+M2","v":1625},633,{"$f":"P2/V2","v":0.53104026845637586},511,{"$f":"R2/V2","v":0.42869127516778521},48,{"$f":"T2/V2","v":4.0268456375838924E-2},{"$f":"P2+R2+T2","v":1192},616,{"$f":"W2/AC2","v":0.28400184416781926},921,{"$f":"Y2/AC2","v":0.42461964038727523},632,{"$f":"AA2/AC2","v":0.29137851544490551},{"$f":"W2+Y2+AA2","v":2169}]
[null,353,{"$f":"B3/H3","v":0.65491651205936918},49,{"$f":"D3/H3","v":9.0909090909090912E-2},137,{"$f":"F3/H3","v":0.25417439703153988},539,704,{"$f":"I3/O3","v":0.33020637898686678},912,{"$f":"K3/O3","v":0.42776735459662291},516,{"$f":"M3/O3","v":0.24202626641651032},2132,171,{"$f":"P3/V3","v":0.16442307692307692},431,{"$f":"R3/V3","v":0.41442307692307695},438,{"$f":"T3/V3","v":0.42115384615384616},1040,251,{"$f":"W3/AC3","v":0.26532769556025371},310,{"$f":"Y3/AC3","v":0.32769556025369978},385,{"$f":"AA3/AC3","v":0.40697674418604651},{"$f":"W3+Y3+AA3","v":946}]
[null,339,0.35423197492163011,525,0.54858934169278994,93,9.7178683385579931E-2,957,28,0.12556053811659193,73,0.3273542600896861,122,0.547085201793722,223,228,0.17104276069017255,724,0.54313578394598649,381,0.28582145536384096,1333,531,0.41745283018867924,710,0.55817610062893086,31,2.4371069182389939E-2,1272]
[null,664,0.33877551020408164,564,0.28775510204081634,732,0.37346938775510202,1960,719,0.50598170302603795,623,0.43842364532019706,79,5.5594651653764954E-2,1421,911,0.3881550916063059,742,0.31614827439284193,694,0.29569663400085217,2347,389,0.3034321372854914,371,0.28939157566302653,522,0.40717628705148207,1282]
[null,584,0.33601841196777904,650,0.37399309551208287,504,0.28998849252013809,1738,702,0.29458665547629037,813,0.34116659672681493,868,0.36424674779689464,2383,599,0.38997395833333331,547,0.35611979166666669,390,0.25390625,1536,986,0.36077570435418954,756,0.27661909989023054,991,0.36260519575557992,2733]
[null,141,8.4837545126353789E-2,732,0.44043321299638988,789,0.47472924187725629,1662,935,0.60322580645161294,475,0.30645161290322581,140,9.0322580645161285E-2,1550,911,0.64978601997146934,409,0.29172610556348072,82,5.8487874465049931E-2,1402,733,0.43813508667065154,657,0.39270771069934252,283,0.16915720263000597,1673]
[null,232,0.16465578424414479,986,0.69978708303761528,191,0.13555713271823988,1409,461,0.3360058309037901,326,0.23760932944606414,585,0.42638483965014579,1372,263,0.14056654195617316,953,0.50935328701229288,655,0.35008017103153394,1871,561,0.26727012863268224,957,0.45593139590281084,581,0.27679847546450692,2099]
[null,623,0.60485436893203881,173,0.16796116504854369,234,0.22718446601941747,1030,286,0.27632850241545892,402,0.38840579710144929,347,0.33526570048309179,1035,690,0.45514511873350921,476,0.31398416886543534,350,0.23087071240105542,1516,967,0.4233800350262697,531,0.23248686514886166,786,0.34413309982486867,2284]
[null,932,0.48465938637545503,280,0.14560582423296931,711,0.36973478939157567,1923,369,0.20098039215686275,869,0.47331154684095861,598,0.32570806100217864,1836,8,9.2485549132947983E-3,525,0.60693641618497107,332,0.38381502890173408,865,456,0.28078817733990147,469,0.28879310344827586,699,0.43041871921182268,1624]
[null,933,0.43174456270245259,512,0.23692734844979177,716,0.33132808884775566,2161,16,2.2535211267605635E-2,564,0.79436619718309864,130,0.18309859154929578,710,893,0.69332298136645965,268,0.20807453416149069,127,9.8602484472049695E-2,1288,202,0.15153788447111777,684,0.51312828207051764,447,0.33533383345836459,1333]
[null,350,0.18807092960773777,826,0.44384739387426114,685,0.36808167651800106,1861,156,0.13379073756432247,874,0.74957118353344765,136,0.11663807890222985,1166,890,0.72475570032573289,260,0.21172638436482086,78,6.3517915309446255E-2,1228,584,0.29811128126595204,596,0.30423685553854007,779,0.39765186319550794,1959]
["Total",{"$f":"SUM(B2:B12)","v":5436}]

{"sheet":"Change Row Height","index":17,"n_rows":52,"n_cols":1,"rows_kept":52,"cut":false,"hidden":false,"merged":[]}
["Department"]
["Accounting"]
["Accounting"]
["Accounting"]
["Accounting"]
["Accounting"]
["Accounting"]
["Accounting"]
["Accounting"]
["Accounting"]
["Accounting"]
["Accounting"]
["Accounting"]
["Accounting"]
["Accounting"]
["Accounting"]
["Accounting"]
["Accounting"]
["Accounting"]
["Accounting"]
["Personnel"]
["Personnel"]
["Personnel"]
["Personnel"]
["Personnel"]
["Personnel"]
["Personnel"]
["Personnel"]
["Personnel"]
["IS"]
["IS"]
["IS"]
["IS"]
["IS"]
["IS"]
["IS"]
["IS"]
["IS"]
["IS"]
["IS"]
["IS"]
["IS"]
["IS"]
["IS"]
["IS"]
["IS"]
["IS"]
["IS"]
["IS"]
["IS"]
["IS"]
["IS"]

{"sheet":"TextToColumns","index":18,"n_rows":14,"n_cols":1,"rows_kept":14,"cut":false,"hidden":false,"merged":[]}
[20101026]
[20100405]
[20080110]
[20080904]
[20090108]
[]
["bob umlas"]
["bill clinton"]
["george bush"]
["barack obama"]
[]
[]
[]
["Now\nis\nthe\ntime\nfor\nall\ngood\nmen\nto\ncome\nto\nthe\naid\nof\ntheir\nparty!"]

{"sheet":"Double-Space","index":19,"n_rows":850,"n_cols":4,"rows_kept":850,"cut":false,"hidden":false,"merged":[]}
["lots of stuff 1","lots of stuff 1","lots of stuff 1","lots of stuff 1"]
["lots of stuff 2","lots of stuff 2","lots of stuff 2","lots of stuff 2"]
["lots of stuff 3","lots of stuff 3","lots of stuff 3","lots of stuff 3"]
["lots of stuff 4","lots of stuff 4","lots of stuff 4","lots of stuff 4"]
["lots of stuff 5","lots of stuff 5","lots of stuff 5","lots of stuff 5"]
["lots of stuff 6","lots of stuff 6","lots of stuff 6","lots of stuff 6"]
["lots of stuff 7","lots of stuff 7","lots of stuff 7","lots of stuff 7"]
["lots of stuff 8","lots of stuff 8","lots of stuff 8","lots of stuff 8"]
["lots of stuff 9","lots of stuff 9","lots of stuff 9","lots of stuff 9"]
["lots of stuff 10","lots of stuff 10","lots of stuff 10","lots of stuff 10"]
["lots of stuff 11","lots of stuff 11","lots of stuff 11","lots of stuff 11"]
["lots of stuff 12","lots of stuff 12","lots of stuff 12","lots of stuff 12"]
["lots of stuff 13","lots of stuff 13","lots of stuff 13","lots of stuff 13"]
["lots of stuff 14","lots of stuff 14","lots of stuff 14","lots of stuff 14"]
["lots of stuff 15","lots of stuff 15","lots of stuff 15","lots of stuff 15"]
["lots of stuff 16","lots of stuff 16","lots of stuff 16","lots of stuff 16"]
["lots of stuff 17","lots of stuff 17","lots of stuff 17","lots of stuff 17"]
["lots of stuff 18","lots of stuff 18","lots of stuff 18","lots of stuff 18"]
["lots of stuff 19","lots of stuff 19","lots of stuff 19","lots of stuff 19"]
["lots of stuff 20","lots of stuff 20","lots of stuff 20","lots of stuff 20"]
["lots of stuff 21","lots of stuff 21","lots of stuff 21","lots of stuff 21"]
["lots of stuff 22","lots of stuff 22","lots of stuff 22","lots of stuff 22"]
["lots of stuff 23","lots of stuff 23","lots of stuff 23","lots of stuff 23"]
["lots of stuff 24","lots of stuff 24","lots of stuff 24","lots of stuff 24"]
["lots of stuff 25","lots of stuff 25","lots of stuff 25","lots of stuff 25"]
["lots of stuff 26","lots of stuff 26","lots of stuff 26","lots of stuff 26"]
["lots of stuff 27","lots of stuff 27","lots of stuff 27","lots of stuff 27"]
["lots of stuff 28","lots of stuff 28","lots of stuff 28","lots of stuff 28"]
["lots of stuff 29","lots of stuff 29","lots of stuff 29","lots of stuff 29"]
["lots of stuff 30","lots of stuff 30","lots of stuff 30","lots of stuff 30"]
["lots of stuff 31","lots of stuff 31","lots of stuff 31","lots of stuff 31"]
["lots of stuff 32","lots of stuff 32","lots of stuff 32","lots of stuff 32"]
["lots of stuff 33","lots of stuff 33","lots of stuff 33","lots of stuff 33"]
["lots of stuff 34","lots of stuff 34","lots of stuff 34","lots of stuff 34"]
["lots of stuff 35","lots of stuff 35","lots of stuff 35","lots of stuff 35"]
["lots of stuff 36","lots of stuff 36","lots of stuff 36","lots of stuff 36"]
["lots of stuff 37","lots of stuff 37","lots of stuff 37","lots of stuff 37"]
["lots of stuff 38","lots of stuff 38","lots of stuff 38","lots of stuff 38"]
["lots of stuff 39","lots of stuff 39","lots of stuff 39","lots of stuff 39"]
["lots of stuff 40","lots of stuff 40","lots of stuff 40","lots of stuff 40"]
["lots of stuff 41","lots of stuff 41","lots of stuff 41","lots of stuff 41"]
["lots of stuff 42","lots of stuff 42","lots of stuff 42","lots of stuff 42"]
["lots of stuff 43","lots of stuff 43","lots of stuff 43","lots of stuff 43"]
["lots of stuff 44","lots of stuff 44","lots of stuff 44","lots of stuff 44"]
["lots of stuff 45","lots of stuff 45","lots of stuff 45","lots of stuff 45"]
["lots of stuff 46","lots of stuff 46","lots of stuff 46","lots of stuff 46"]
["lots of stuff 47","lots of stuff 47","lots of stuff 47","lots of stuff 47"]
["lots of stuff 48","lots of stuff 48","lots of stuff 48","lots of stuff 48"]
["lots of stuff 49","lots of stuff 49","lots of stuff 49","lots of stuff 49"]
["lots of stuff 50","lots of stuff 50","lots of stuff 50","lots of stuff 50"]
["lots of stuff 51","lots of stuff 51","lots of stuff 51","lots of stuff 51"]
["lots of stuff 52","lots of stuff 52","lots of stuff 52","lots of stuff 52"]
["lots of stuff 53","lots of stuff 53","lots of stuff 53","lots of stuff 53"]
["lots of stuff 54","lots of stuff 54","lots of stuff 54","lots of stuff 54"]
["lots of stuff 55","lots of stuff 55","lots of stuff 55","lots of stuff 55"]
["lots of stuff 56","lots of stuff 56","lots of stuff 56","lots of stuff 56"]
["lots of stuff 57","lots of stuff 57","lots of stuff 57","lots of stuff 57"]
["lots of stuff 58","lots of stuff 58","lots of stuff 58","lots of stuff 58"]
["lots of stuff 59","lots of stuff 59","lots of stuff 59","lots of stuff 59"]
["lots of stuff 60","lots of stuff 60","lots of stuff 60","lots of stuff 60"]
["lots of stuff 61","lots of stuff 61","lots of stuff 61","lots of stuff 61"]
["lots of stuff 62","lots of stuff 62","lots of stuff 62","lots of stuff 62"]
["lots of stuff 63","lots of stuff 63","lots of stuff 63","lots of stuff 63"]
["lots of stuff 64","lots of stuff 64","lots of stuff 64","lots of stuff 64"]
["lots of stuff 65","lots of stuff 65","lots of stuff 65","lots of stuff 65"]
["lots of stuff 66","lots of stuff 66","lots of stuff 66","lots of stuff 66"]
["lots of stuff 67","lots of stuff 67","lots of stuff 67","lots of stuff 67"]
["lots of stuff 68","lots of stuff 68","lots of stuff 68","lots of stuff 68"]
["lots of stuff 69","lots of stuff 69","lots of stuff 69","lots of stuff 69"]
["lots of stuff 70","lots of stuff 70","lots of stuff 70","lots of stuff 70"]
["lots of stuff 71","lots of stuff 71","lots of stuff 71","lots of stuff 71"]
["lots of stuff 72","lots of stuff 72","lots of stuff 72","lots of stuff 72"]
["lots of stuff 73","lots of stuff 73","lots of stuff 73","lots of stuff 73"]
["lots of stuff 74","lots of stuff 74","lots of stuff 74","lots of stuff 74"]
["lots of stuff 75","lots of stuff 75","lots of stuff 75","lots of stuff 75"]
["lots of stuff 76","lots of stuff 76","lots of stuff 76","lots of stuff 76"]
["lots of stuff 77","lots of stuff 77","lots of stuff 77","lots of stuff 77"]
["lots of stuff 78","lots of stuff 78","lots of stuff 78","lots of stuff 78"]
["lots of stuff 79","lots of stuff 79","lots of stuff 79","lots of stuff 79"]
["lots of stuff 80","lots of stuff 80","lots of stuff 80","lots of stuff 80"]
["lots of stuff 81","lots of stuff 81","lots of stuff 81","lots of stuff 81"]
["lots of stuff 82","lots of stuff 82","lots of stuff 82","lots of stuff 82"]
["lots of stuff 83","lots of stuff 83","lots of stuff 83","lots of stuff 83"]
["lots of stuff 84","lots of stuff 84","lots of stuff 84","lots of stuff 84"]
["lots of stuff 85","lots of stuff 85","lots of stuff 85","lots of stuff 85"]
["lots of stuff 86","lots of stuff 86","lots of stuff 86","lots of stuff 86"]
["lots of stuff 87","lots of stuff 87","lots of stuff 87","lots of stuff 87"]
["lots of stuff 88","lots of stuff 88","lots of stuff 88","lots of stuff 88"]
["lots of stuff 89","lots of stuff 89","lots of stuff 89","lots of stuff 89"]
["lots of stuff 90","lots of stuff 90","lots of stuff 90","lots of stuff 90"]
["lots of stuff 91","lots of stuff 91","lots of stuff 91","lots of stuff 91"]
["lots of stuff 92","lots of stuff 92","lots of stuff 92","lots of stuff 92"]
["lots of stuff 93","lots of stuff 93","lots of stuff 93","lots of stuff 93"]
["lots of stuff 94","lots of stuff 94","lots of stuff 94","lots of stuff 94"]
["lots of stuff 95","lots of stuff 95","lots of stuff 95","lots of stuff 95"]
["lots of stuff 96","lots of stuff 96","lots of stuff 96","lots of stuff 96"]
["lots of stuff 97","lots of stuff 97","lots of stuff 97","lots of stuff 97"]
["lots of stuff 98","lots of stuff 98","lots of stuff 98","lots of stuff 98"]
["lots of stuff 99","lots of stuff 99","lots of stuff 99","lots of stuff 99"]
["lots of stuff 100","lots of stuff 100","lots of stuff 100","lots of stuff 100"]
["lots of stuff 101","lots of stuff 101","lots of stuff 101","lots of stuff 101"]
["lots of stuff 102","lots of stuff 102","lots of stuff 102","lots of stuff 102"]
["lots of stuff 103","lots of stuff 103","lots of stuff 103","lots of stuff 103"]
["lots of stuff 104","lots of stuff 104","lots of stuff 104","lots of stuff 104"]
["lots of stuff 105","lots of stuff 105","lots of stuff 105","lots of stuff 105"]
["lots of stuff 106","lots of stuff 106","lots of stuff 106","lots of stuff 106"]
["lots of stuff 107","lots of stuff 107","lots of stuff 107","lots of stuff 107"]
["lots of stuff 108","lots of stuff 108","lots of stuff 108","lots of stuff 108"]
["lots of stuff 109","lots of stuff 109","lots of stuff 109","lots of stuff 109"]
["lots of stuff 110","lots of stuff 110","lots of stuff 110","lots of stuff 110"]
["lots of stuff 111","lots of stuff 111","lots of stuff 111","lots of stuff 111"]
["lots of stuff 112","lots of stuff 112","lots of stuff 112","lots of stuff 112"]
["lots of stuff 113","lots of stuff 113","lots of stuff 113","lots of stuff 113"]
["lots of stuff 114","lots of stuff 114","lots of stuff 114","lots of stuff 114"]
["lots of stuff 115","lots of stuff 115","lots of stuff 115","lots of stuff 115"]
["lots of stuff 116","lots of stuff 116","lots of stuff 116","lots of stuff 116"]
["lots of stuff 117","lots of stuff 117","lots of stuff 117","lots of stuff 117"]
["lots of stuff 118","lots of stuff 118","lots of stuff 118","lots of stuff 118"]
["lots of stuff 119","lots of stuff 119","lots of stuff 119","lots of stuff 119"]
["lots of stuff 120","lots of stuff 120","lots of stuff 120","lots of stuff 120"]
["lots of stuff 121","lots of stuff 121","lots of stuff 121","lots of stuff 121"]
["lots of stuff 122","lots of stuff 122","lots of stuff 122","lots of stuff 122"]
["lots of stuff 123","lots of stuff 123","lots of stuff 123","lots of stuff 123"]
["lots of stuff 124","lots of stuff 124","lots of stuff 124","lots of stuff 124"]
["lots of stuff 125","lots of stuff 125","lots of stuff 125","lots of stuff 125"]
["lots of stuff 126","lots of stuff 126","lots of stuff 126","lots of stuff 126"]
["lots of stuff 127","lots of stuff 127","lots of stuff 127","lots of stuff 127"]
["lots of stuff 128","lots of stuff 128","lots of stuff 128","lots of stuff 128"]
["lots of stuff 129","lots of stuff 129","lots of stuff 129","lots of stuff 129"]
["lots of stuff 130","lots of stuff 130","lots of stuff 130","lots of stuff 130"]
["lots of stuff 131","lots of stuff 131","lots of stuff 131","lots of stuff 131"]
["lots of stuff 132","lots of stuff 132","lots of stuff 132","lots of stuff 132"]
["lots of stuff 133","lots of stuff 133","lots of stuff 133","lots of stuff 133"]
["lots of stuff 134","lots of stuff 134","lots of stuff 134","lots of stuff 134"]
["lots of stuff 135","lots of stuff 135","lots of stuff 135","lots of stuff 135"]
["lots of stuff 136","lots of stuff 136","lots of stuff 136","lots of stuff 136"]
["lots of stuff 137","lots of stuff 137","lots of stuff 137","lots of stuff 137"]
["lots of stuff 138","lots of stuff 138","lots of stuff 138","lots of stuff 138"]
["lots of stuff 139","lots of stuff 139","lots of stuff 139","lots of stuff 139"]
["lots of stuff 140","lots of stuff 140","lots of stuff 140","lots of stuff 140"]
["lots of stuff 141","lots of stuff 141","lots of stuff 141","lots of stuff 141"]
["lots of stuff 142","lots of stuff 142","lots of stuff 142","lots of stuff 142"]
["lots of stuff 143","lots of stuff 143","lots of stuff 143","lots of stuff 143"]
["lots of stuff 144","lots of stuff 144","lots of stuff 144","lots of stuff 144"]
["lots of stuff 145","lots of stuff 145","lots of stuff 145","lots of stuff 145"]
["lots of stuff 146","lots of stuff 146","lots of stuff 146","lots of stuff 146"]
["lots of stuff 147","lots of stuff 147","lots of stuff 147","lots of stuff 147"]
["lots of stuff 148","lots of stuff 148","lots of stuff 148","lots of stuff 148"]
["lots of stuff 149","lots of stuff 149","lots of stuff 149","lots of stuff 149"]
["lots of stuff 150","lots of stuff 150","lots of stuff 150","lots of stuff 150"]
["lots of stuff 151","lots of stuff 151","lots of stuff 151","lots of stuff 151"]
["lots of stuff 152","lots of stuff 152","lots of stuff 152","lots of stuff 152"]
["lots of stuff 153","lots of stuff 153","lots of stuff 153","lots of stuff 153"]
["lots of stuff 154","lots of stuff 154","lots of stuff 154","lots of stuff 154"]
["lots of stuff 155","lots of stuff 155","lots of stuff 155","lots of stuff 155"]
["lots of stuff 156","lots of stuff 156","lots of stuff 156","lots of stuff 156"]
["lots of stuff 157","lots of stuff 157","lots of stuff 157","lots of stuff 157"]
["lots of stuff 158","lots of stuff 158","lots of stuff 158","lots of stuff 158"]
["lots of stuff 159","lots of stuff 159","lots of stuff 159","lots of stuff 159"]
["lots of stuff 160","lots of stuff 160","lots of stuff 160","lots of stuff 160"]
["lots of stuff 161","lots of stuff 161","lots of stuff 161","lots of stuff 161"]
["lots of stuff 162","lots of stuff 162","lots of stuff 162","lots of stuff 162"]
["lots of stuff 163","lots of stuff 163","lots of stuff 163","lots of stuff 163"]
["lots of stuff 164","lots of stuff 164","lots of stuff 164","lots of stuff 164"]
["lots of stuff 165","lots of stuff 165","lots of stuff 165","lots of stuff 165"]
["lots of stuff 166","lots of stuff 166","lots of stuff 166","lots of stuff 166"]
["lots of stuff 167","lots of stuff 167","lots of stuff 167","lots of stuff 167"]
["lots of stuff 168","lots of stuff 168","lots of stuff 168","lots of stuff 168"]
["lots of stuff 169","lots of stuff 169","lots of stuff 169","lots of stuff 169"]
["lots of stuff 170","lots of stuff 170","lots of stuff 170","lots of stuff 170"]
["lots of stuff 171","lots of stuff 171","lots of stuff 171","lots of stuff 171"]
["lots of stuff 172","lots of stuff 172","lots of stuff 172","lots of stuff 172"]
["lots of stuff 173","lots of stuff 173","lots of stuff 173","lots of stuff 173"]
["lots of stuff 174","lots of stuff 174","lots of stuff 174","lots of stuff 174"]
["lots of stuff 175","lots of stuff 175","lots of stuff 175","lots of stuff 175"]
["lots of stuff 176","lots of stuff 176","lots of stuff 176","lots of stuff 176"]
["lots of stuff 177","lots of stuff 177","lots of stuff 177","lots of stuff 177"]
["lots of stuff 178","lots of stuff 178","lots of stuff 178","lots of stuff 178"]
["lots of stuff 179","lots of stuff 179","lots of stuff 179","lots of stuff 179"]
["lots of stuff 180","lots of stuff 180","lots of stuff 180","lots of stuff 180"]
["lots of stuff 181","lots of stuff 181","lots of stuff 181","lots of stuff 181"]
["lots of stuff 182","lots of stuff 182","lots of stuff 182","lots of stuff 182"]
["lots of stuff 183","lots of stuff 183","lots of stuff 183","lots of stuff 183"]
["lots of stuff 184","lots of stuff 184","lots of stuff 184","lots of stuff 184"]
["lots of stuff 185","lots of stuff 185","lots of stuff 185","lots of stuff 185"]
["lots of stuff 186","lots of stuff 186","lots of stuff 186","lots of stuff 186"]
["lots of stuff 187","lots of stuff 187","lots of stuff 187","lots of stuff 187"]
["lots of stuff 188","lots of stuff 188","lots of stuff 188","lots of stuff 188"]
["lots of stuff 189","lots of stuff 189","lots of stuff 189","lots of stuff 189"]
["lots of stuff 190","lots of stuff 190","lots of stuff 190","lots of stuff 190"]
["lots of stuff 191","lots of stuff 191","lots of stuff 191","lots of stuff 191"]
["lots of stuff 192","lots of stuff 192","lots of stuff 192","lots of stuff 192"]
["lots of stuff 193","lots of stuff 193","lots of stuff 193","lots of stuff 193"]
["lots of stuff 194","lots of stuff 194","lots of stuff 194","lots of stuff 194"]
["lots of stuff 195","lots of stuff 195","lots of stuff 195","lots of stuff 195"]
["lots of stuff 196","lots of stuff 196","lots of stuff 196","lots of stuff 196"]
["lots of stuff 197","lots of stuff 197","lots of stuff 197","lots of stuff 197"]
["lots of stuff 198","lots of stuff 198","lots of stuff 198","lots of stuff 198"]
["lots of stuff 199","lots of stuff 199","lots of stuff 199","lots of stuff 199"]
["lots of stuff 200","lots of stuff 200","lots of stuff 200","lots of stuff 200"]
["lots of stuff 201","lots of stuff 201","lots of stuff 201","lots of stuff 201"]
["lots of stuff 202","lots of stuff 202","lots of stuff 202","lots of stuff 202"]
["lots of stuff 203","lots of stuff 203","lots of stuff 203","lots of stuff 203"]
["lots of stuff 204","lots of stuff 204","lots of stuff 204","lots of stuff 204"]
["lots of stuff 205","lots of stuff 205","lots of stuff 205","lots of stuff 205"]
["lots of stuff 206","lots of stuff 206","lots of stuff 206","lots of stuff 206"]
["lots of stuff 207","lots of stuff 207","lots of stuff 207","lots of stuff 207"]
["lots of stuff 208","lots of stuff 208","lots of stuff 208","lots of stuff 208"]
["lots of stuff 209","lots of stuff 209","lots of stuff 209","lots of stuff 209"]
["lots of stuff 210","lots of stuff 210","lots of stuff 210","lots of stuff 210"]
["lots of stuff 211","lots of stuff 211","lots of stuff 211","lots of stuff 211"]
["lots of stuff 212","lots of stuff 212","lots of stuff 212","lots of stuff 212"]
["lots of stuff 213","lots of stuff 213","lots of stuff 213","lots of stuff 213"]
["lots of stuff 214","lots of stuff 214","lots of stuff 214","lots of stuff 214"]
["lots of stuff 215","lots of stuff 215","lots of stuff 215","lots of stuff 215"]
["lots of stuff 216","lots of stuff 216","lots of stuff 216","lots of stuff 216"]
["lots of stuff 217","lots of stuff 217","lots of stuff 217","lots of stuff 217"]
["lots of stuff 218","lots of stuff 218","lots of stuff 218","lots of stuff 218"]
["lots of stuff 219","lots of stuff 219","lots of stuff 219","lots of stuff 219"]
["lots of stuff 220","lots of stuff 220","lots of stuff 220","lots of stuff 220"]
["lots of stuff 221","lots of stuff 221","lots of stuff 221","lots of stuff 221"]
["lots of stuff 222","lots of stuff 222","lots of stuff 222","lots of stuff 222"]
["lots of stuff 223","lots of stuff 223","lots of stuff 223","lots of stuff 223"]
["lots of stuff 224","lots of stuff 224","lots of stuff 224","lots of stuff 224"]
["lots of stuff 225","lots of stuff 225","lots of stuff 225","lots of stuff 225"]
["lots of stuff 226","lots of stuff 226","lots of stuff 226","lots of stuff 226"]
["lots of stuff 227","lots of stuff 227","lots of stuff 227","lots of stuff 227"]
["lots of stuff 228","lots of stuff 228","lots of stuff 228","lots of stuff 228"]
["lots of stuff 229","lots of stuff 229","lots of stuff 229","lots of stuff 229"]
["lots of stuff 230","lots of stuff 230","lots of stuff 230","lots of stuff 230"]
["lots of stuff 231","lots of stuff 231","lots of stuff 231","lots of stuff 231"]
["lots of stuff 232","lots of stuff 232","lots of stuff 232","lots of stuff 232"]
["lots of stuff 233","lots of stuff 233","lots of stuff 233","lots of stuff 233"]
["lots of stuff 234","lots of stuff 234","lots of stuff 234","lots of stuff 234"]
["lots of stuff 235","lots of stuff 235","lots of stuff 235","lots of stuff 235"]
["lots of stuff 236","lots of stuff 236","lots of stuff 236","lots of stuff 236"]
["lots of stuff 237","lots of stuff 237","lots of stuff 237","lots of stuff 237"]
["lots of stuff 238","lots of stuff 238","lots of stuff 238","lots of stuff 238"]
["lots of stuff 239","lots of stuff 239","lots of stuff 239","lots of stuff 239"]
["lots of stuff 240","lots of stuff 240","lots of stuff 240","lots of stuff 240"]
["lots of stuff 241","lots of stuff 241","lots of stuff 241","lots of stuff 241"]
["lots of stuff 242","lots of stuff 242","lots of stuff 242","lots of stuff 242"]
["lots of stuff 243","lots of stuff 243","lots of stuff 243","lots of stuff 243"]
["lots of stuff 244","lots of stuff 244","lots of stuff 244","lots of stuff 244"]
["lots of stuff 245","lots of stuff 245","lots of stuff 245","lots of stuff 245"]
["lots of stuff 246","lots of stuff 246","lots of stuff 246","lots of stuff 246"]
["lots of stuff 247","lots of stuff 247","lots of stuff 247","lots of stuff 247"]
["lots of stuff 248","lots of stuff 248","lots of stuff 248","lots of stuff 248"]
["lots of stuff 249","lots of stuff 249","lots of stuff 249","lots of stuff 249"]
["lots of stuff 250","lots of stuff 250","lots of stuff 250","lots of stuff 250"]
["lots of stuff 251","lots of stuff 251","lots of stuff 251","lots of stuff 251"]
["lots of stuff 252","lots of stuff 252","lots of stuff 252","lots of stuff 252"]
["lots of stuff 253","lots of stuff 253","lots of stuff 253","lots of stuff 253"]
["lots of stuff 254","lots of stuff 254","lots of stuff 254","lots of stuff 254"]
["lots of stuff 255","lots of stuff 255","lots of stuff 255","lots of stuff 255"]
["lots of stuff 256","lots of stuff 256","lots of stuff 256","lots of stuff 256"]
["lots of stuff 257","lots of stuff 257","lots of stuff 257","lots of stuff 257"]
["lots of stuff 258","lots of stuff 258","lots of stuff 258","lots of stuff 258"]
["lots of stuff 259","lots of stuff 259","lots of stuff 259","lots of stuff 259"]
["lots of stuff 260","lots of stuff 260","lots of stuff 260","lots of stuff 260"]
["lots of stuff 261","lots of stuff 261","lots of stuff 261","lots of stuff 261"]
["lots of stuff 262","lots of stuff 262","lots of stuff 262","lots of stuff 262"]
["lots of stuff 263","lots of stuff 263","lots of stuff 263","lots of stuff 263"]
["lots of stuff 264","lots of stuff 264","lots of stuff 264","lots of stuff 264"]
["lots of stuff 265","lots of stuff 265","lots of stuff 265","lots of stuff 265"]
["lots of stuff 266","lots of stuff 266","lots of stuff 266","lots of stuff 266"]
["lots of stuff 267","lots of stuff 267","lots of stuff 267","lots of stuff 267"]
["lots of stuff 268","lots of stuff 268","lots of stuff 268","lots of stuff 268"]
["lots of stuff 269","lots of stuff 269","lots of stuff 269","lots of stuff 269"]
["lots of stuff 270","lots of stuff 270","lots of stuff 270","lots of stuff 270"]
["lots of stuff 271","lots of stuff 271","lots of stuff 271","lots of stuff 271"]
["lots of stuff 272","lots of stuff 272","lots of stuff 272","lots of stuff 272"]
["lots of stuff 273","lots of stuff 273","lots of stuff 273","lots of stuff 273"]
["lots of stuff 274","lots of stuff 274","lots of stuff 274","lots of stuff 274"]
["lots of stuff 275","lots of stuff 275","lots of stuff 275","lots of stuff 275"]
["lots of stuff 276","lots of stuff 276","lots of stuff 276","lots of stuff 276"]
["lots of stuff 277","lots of stuff 277","lots of stuff 277","lots of stuff 277"]
["lots of stuff 278","lots of stuff 278","lots of stuff 278","lots of stuff 278"]
["lots of stuff 279","lots of stuff 279","lots of stuff 279","lots of stuff 279"]
["lots of stuff 280","lots of stuff 280","lots of stuff 280","lots of stuff 280"]
["lots of stuff 281","lots of stuff 281","lots of stuff 281","lots of stuff 281"]
["lots of stuff 282","lots of stuff 282","lots of stuff 282","lots of stuff 282"]
["lots of stuff 283","lots of stuff 283","lots of stuff 283","lots of stuff 283"]
["lots of stuff 284","lots of stuff 284","lots of stuff 284","lots of stuff 284"]
["lots of stuff 285","lots of stuff 285","lots of stuff 285","lots of stuff 285"]
["lots of stuff 286","lots of stuff 286","lots of stuff 286","lots of stuff 286"]
["lots of stuff 287","lots of stuff 287","lots of stuff 287","lots of stuff 287"]
["lots of stuff 288","lots of stuff 288","lots of stuff 288","lots of stuff 288"]
["lots of stuff 289","lots of stuff 289","lots of stuff 289","lots of stuff 289"]
["lots of stuff 290","lots of stuff 290","lots of stuff 290","lots of stuff 290"]
["lots of stuff 291","lots of stuff 291","lots of stuff 291","lots of stuff 291"]
["lots of stuff 292","lots of stuff 292","lots of stuff 292","lots of stuff 292"]
["lots of stuff 293","lots of stuff 293","lots of stuff 293","lots of stuff 293"]
["lots of stuff 294","lots of stuff 294","lots of stuff 294","lots of stuff 294"]
["lots of stuff 295","lots of stuff 295","lots of stuff 295","lots of stuff 295"]
["lots of stuff 296","lots of stuff 296","lots of stuff 296","lots of stuff 296"]
["lots of stuff 297","lots of stuff 297","lots of stuff 297","lots of stuff 297"]
["lots of stuff 298","lots of stuff 298","lots of stuff 298","lots of stuff 298"]
["lots of stuff 299","lots of stuff 299","lots of stuff 299","lots of stuff 299"]
["lots of stuff 300","lots of stuff 300","lots of stuff 300","lots of stuff 300"]
["lots of stuff 301","lots of stuff 301","lots of stuff 301","lots of stuff 301"]
["lots of stuff 302","lots of stuff 302","lots of stuff 302","lots of stuff 302"]
["lots of stuff 303","lots of stuff 303","lots of stuff 303","lots of stuff 303"]
["lots of stuff 304","lots of stuff 304","lots of stuff 304","lots of stuff 304"]
["lots of stuff 305","lots of stuff 305","lots of stuff 305","lots of stuff 305"]
["lots of stuff 306","lots of stuff 306","lots of stuff 306","lots of stuff 306"]
["lots of stuff 307","lots of stuff 307","lots of stuff 307","lots of stuff 307"]
["lots of stuff 308","lots of stuff 308","lots of stuff 308","lots of stuff 308"]
["lots of stuff 309","lots of stuff 309","lots of stuff 309","lots of stuff 309"]
["lots of stuff 310","lots of stuff 310","lots of stuff 310","lots of stuff 310"]
["lots of stuff 311","lots of stuff 311","lots of stuff 311","lots of stuff 311"]
["lots of stuff 312","lots of stuff 312","lots of stuff 312","lots of stuff 312"]
["lots of stuff 313","lots of stuff 313","lots of stuff 313","lots of stuff 313"]
["lots of stuff 314","lots of stuff 314","lots of stuff 314","lots of stuff 314"]
["lots of stuff 315","lots of stuff 315","lots of stuff 315","lots of stuff 315"]
["lots of stuff 316","lots of stuff 316","lots of stuff 316","lots of stuff 316"]
["lots of stuff 317","lots of stuff 317","lots of stuff 317","lots of stuff 317"]
["lots of stuff 318","lots of stuff 318","lots of stuff 318","lots of stuff 318"]
["lots of stuff 319","lots of stuff 319","lots of stuff 319","lots of stuff 319"]
["lots of stuff 320","lots of stuff 320","lots of stuff 320","lots of stuff 320"]
["lots of stuff 321","lots of stuff 321","lots of stuff 321","lots of stuff 321"]
["lots of stuff 322","lots of stuff 322","lots of stuff 322","lots of stuff 322"]
["lots of stuff 323","lots of stuff 323","lots of stuff 323","lots of stuff 323"]
["lots of stuff 324","lots of stuff 324","lots of stuff 324","lots of stuff 324"]
["lots of stuff 325","lots of stuff 325","lots of stuff 325","lots of stuff 325"]
["lots of stuff 326","lots of stuff 326","lots of stuff 326","lots of stuff 326"]
["lots of stuff 327","lots of stuff 327","lots of stuff 327","lots of stuff 327"]
["lots of stuff 328","lots of stuff 328","lots of stuff 328","lots of stuff 328"]
["lots of stuff 329","lots of stuff 329","lots of stuff 329","lots of stuff 329"]
["lots of stuff 330","lots of stuff 330","lots of stuff 330","lots of stuff 330"]
["lots of stuff 331","lots of stuff 331","lots of stuff 331","lots of stuff 331"]
["lots of stuff 332","lots of stuff 332","lots of stuff 332","lots of stuff 332"]
["lots of stuff 333","lots of stuff 333","lots of stuff 333","lots of stuff 333"]
["lots of stuff 334","lots of stuff 334","lots of stuff 334","lots of stuff 334"]
["lots of stuff 335","lots of stuff 335","lots of stuff 335","lots of stuff 335"]
["lots of stuff 336","lots of stuff 336","lots of stuff 336","lots of stuff 336"]
["lots of stuff 337","lots of stuff 337","lots of stuff 337","lots of stuff 337"]
["lots of stuff 338","lots of stuff 338","lots of stuff 338","lots of stuff 338"]
["lots of stuff 339","lots of stuff 339","lots of stuff 339","lots of stuff 339"]
["lots of stuff 340","lots of stuff 340","lots of stuff 340","lots of stuff 340"]
["lots of stuff 341","lots of stuff 341","lots of stuff 341","lots of stuff 341"]
["lots of stuff 342","lots of stuff 342","lots of stuff 342","lots of stuff 342"]
["lots of stuff 343","lots of stuff 343","lots of stuff 343","lots of stuff 343"]
["lots of stuff 344","lots of stuff 344","lots of stuff 344","lots of stuff 344"]
["lots of stuff 345","lots of stuff 345","lots of stuff 345","lots of stuff 345"]
["lots of stuff 346","lots of stuff 346","lots of stuff 346","lots of stuff 346"]
["lots of stuff 347","lots of stuff 347","lots of stuff 347","lots of stuff 347"]
["lots of stuff 348","lots of stuff 348","lots of stuff 348","lots of stuff 348"]
["lots of stuff 349","lots of stuff 349","lots of stuff 349","lots of stuff 349"]
["lots of stuff 350","lots of stuff 350","lots of stuff 350","lots of stuff 350"]
["lots of stuff 351","lots of stuff 351","lots of stuff 351","lots of stuff 351"]
["lots of stuff 352","lots of stuff 352","lots of stuff 352","lots of stuff 352"]
["lots of stuff 353","lots of stuff 353","lots of stuff 353","lots of stuff 353"]
["lots of stuff 354","lots of stuff 354","lots of stuff 354","lots of stuff 354"]
["lots of stuff 355","lots of stuff 355","lots of stuff 355","lots of stuff 355"]
["lots of stuff 356","lots of stuff 356","lots of stuff 356","lots of stuff 356"]
["lots of stuff 357","lots of stuff 357","lots of stuff 357","lots of stuff 357"]
["lots of stuff 358","lots of stuff 358","lots of stuff 358","lots of stuff 358"]
["lots of stuff 359","lots of stuff 359","lots of stuff 359","lots of stuff 359"]
["lots of stuff 360","lots of stuff 360","lots of stuff 360","lots of stuff 360"]
["lots of stuff 361","lots of stuff 361","lots of stuff 361","lots of stuff 361"]
["lots of stuff 362","lots of stuff 362","lots of stuff 362","lots of stuff 362"]
["lots of stuff 363","lots of stuff 363","lots of stuff 363","lots of stuff 363"]
["lots of stuff 364","lots of stuff 364","lots of stuff 364","lots of stuff 364"]
["lots of stuff 365","lots of stuff 365","lots of stuff 365","lots of stuff 365"]
["lots of stuff 366","lots of stuff 366","lots of stuff 366","lots of stuff 366"]
["lots of stuff 367","lots of stuff 367","lots of stuff 367","lots of stuff 367"]
["lots of stuff 368","lots of stuff 368","lots of stuff 368","lots of stuff 368"]
["lots of stuff 369","lots of stuff 369","lots of stuff 369","lots of stuff 369"]
["lots of stuff 370","lots of stuff 370","lots of stuff 370","lots of stuff 370"]
["lots of stuff 371","lots of stuff 371","lots of stuff 371","lots of stuff 371"]
["lots of stuff 372","lots of stuff 372","lots of stuff 372","lots of stuff 372"]
["lots of stuff 373","lots of stuff 373","lots of stuff 373","lots of stuff 373"]
["lots of stuff 374","lots of stuff 374","lots of stuff 374","lots of stuff 374"]
["lots of stuff 375","lots of stuff 375","lots of stuff 375","lots of stuff 375"]
["lots of stuff 376","lots of stuff 376","lots of stuff 376","lots of stuff 376"]
["lots of stuff 377","lots of stuff 377","lots of stuff 377","lots of stuff 377"]
["lots of stuff 378","lots of stuff 378","lots of stuff 378","lots of stuff 378"]
["lots of stuff 379","lots of stuff 379","lots of stuff 379","lots of stuff 379"]
["lots of stuff 380","lots of stuff 380","lots of stuff 380","lots of stuff 380"]
["lots of stuff 381","lots of stuff 381","lots of stuff 381","lots of stuff 381"]
["lots of stuff 382","lots of stuff 382","lots of stuff 382","lots of stuff 382"]
["lots of stuff 383","lots of stuff 383","lots of stuff 383","lots of stuff 383"]
["lots of stuff 384","lots of stuff 384","lots of stuff 384","lots of stuff 384"]
["lots of stuff 385","lots of stuff 385","lots of stuff 385","lots of stuff 385"]
["lots of stuff 386","lots of stuff 386","lots of stuff 386","lots of stuff 386"]
["lots of stuff 387","lots of stuff 387","lots of stuff 387","lots of stuff 387"]
["lots of stuff 388","lots of stuff 388","lots of stuff 388","lots of stuff 388"]
["lots of stuff 389","lots of stuff 389","lots of stuff 389","lots of stuff 389"]
["lots of stuff 390","lots of stuff 390","lots of stuff 390","lots of stuff 390"]
["lots of stuff 391","lots of stuff 391","lots of stuff 391","lots of stuff 391"]
["lots of stuff 392","lots of stuff 392","lots of stuff 392","lots of stuff 392"]
["lots of stuff 393","lots of stuff 393","lots of stuff 393","lots of stuff 393"]
["lots of stuff 394","lots of stuff 394","lots of stuff 394","lots of stuff 394"]
["lots of stuff 395","lots of stuff 395","lots of stuff 395","lots of stuff 395"]
["lots of stuff 396","lots of stuff 396","lots of stuff 396","lots of stuff 396"]
["lots of stuff 397","lots of stuff 397","lots of stuff 397","lots of stuff 397"]
["lots of stuff 398","lots of stuff 398","lots of stuff 398","lots of stuff 398"]
["lots of stuff 399","lots of stuff 399","lots of stuff 399","lots of stuff 399"]
["lots of stuff 400","lots of stuff 400","lots of stuff 400","lots of stuff 400"]
["lots of stuff 401","lots of stuff 401","lots of stuff 401","lots of stuff 401"]
["lots of stuff 402","lots of stuff 402","lots of stuff 402","lots of stuff 402"]
["lots of stuff 403","lots of stuff 403","lots of stuff 403","lots of stuff 403"]
["lots of stuff 404","lots of stuff 404","lots of stuff 404","lots of stuff 404"]
["lots of stuff 405","lots of stuff 405","lots of stuff 405","lots of stuff 405"]
["lots of stuff 406","lots of stuff 406","lots of stuff 406","lots of stuff 406"]
["lots of stuff 407","lots of stuff 407","lots of stuff 407","lots of stuff 407"]
["lots of stuff 408","lots of stuff 408","lots of stuff 408","lots of stuff 408"]
["lots of stuff 409","lots of stuff 409","lots of stuff 409","lots of stuff 409"]
["lots of stuff 410","lots of stuff 410","lots of stuff 410","lots of stuff 410"]
["lots of stuff 411","lots of stuff 411","lots of stuff 411","lots of stuff 411"]
["lots of stuff 412","lots of stuff 412","lots of stuff 412","lots of stuff 412"]
["lots of stuff 413","lots of stuff 413","lots of stuff 413","lots of stuff 413"]
["lots of stuff 414","lots of stuff 414","lots of stuff 414","lots of stuff 414"]
["lots of stuff 415","lots of stuff 415","lots of stuff 415","lots of stuff 415"]
["lots of stuff 416","lots of stuff 416","lots of stuff 416","lots of stuff 416"]
["lots of stuff 417","lots of stuff 417","lots of stuff 417","lots of stuff 417"]
["lots of stuff 418","lots of stuff 418","lots of stuff 418","lots of stuff 418"]
["lots of stuff 419","lots of stuff 419","lots of stuff 419","lots of stuff 419"]
["lots of stuff 420","lots of stuff 420","lots of stuff 420","lots of stuff 420"]
["lots of stuff 421","lots of stuff 421","lots of stuff 421","lots of stuff 421"]
["lots of stuff 422","lots of stuff 422","lots of stuff 422","lots of stuff 422"]
["lots of stuff 423","lots of stuff 423","lots of stuff 423","lots of stuff 423"]
["lots of stuff 424","lots of stuff 424","lots of stuff 424","lots of stuff 424"]
["lots of stuff 425","lots of stuff 425","lots of stuff 425","lots of stuff 425"]
["lots of stuff 426","lots of stuff 426","lots of stuff 426","lots of stuff 426"]
["lots of stuff 427","lots of stuff 427","lots of stuff 427","lots of stuff 427"]
["lots of stuff 428","lots of stuff 428","lots of stuff 428","lots of stuff 428"]
["lots of stuff 429","lots of stuff 429","lots of stuff 429","lots of stuff 429"]
["lots of stuff 430","lots of stuff 430","lots of stuff 430","lots of stuff 430"]
["lots of stuff 431","lots of stuff 431","lots of stuff 431","lots of stuff 431"]
["lots of stuff 432","lots of stuff 432","lots of stuff 432","lots of stuff 432"]
["lots of stuff 433","lots of stuff 433","lots of stuff 433","lots of stuff 433"]
["lots of stuff 434","lots of stuff 434","lots of stuff 434","lots of stuff 434"]
["lots of stuff 435","lots of stuff 435","lots of stuff 435","lots of stuff 435"]
["lots of stuff 436","lots of stuff 436","lots of stuff 436","lots of stuff 436"]
["lots of stuff 437","lots of stuff 437","lots of stuff 437","lots of stuff 437"]
["lots of stuff 438","lots of stuff 438","lots of stuff 438","lots of stuff 438"]
["lots of stuff 439","lots of stuff 439","lots of stuff 439","lots of stuff 439"]
["lots of stuff 440","lots of stuff 440","lots of stuff 440","lots of stuff 440"]
["lots of stuff 441","lots of stuff 441","lots of stuff 441","lots of stuff 441"]
["lots of stuff 442","lots of stuff 442","lots of stuff 442","lots of stuff 442"]
["lots of stuff 443","lots of stuff 443","lots of stuff 443","lots of stuff 443"]
["lots of stuff 444","lots of stuff 444","lots of stuff 444","lots of stuff 444"]
["lots of stuff 445","lots of stuff 445","lots of stuff 445","lots of stuff 445"]
["lots of stuff 446","lots of stuff 446","lots of stuff 446","lots of stuff 446"]
["lots of stuff 447","lots of stuff 447","lots of stuff 447","lots of stuff 447"]
["lots of stuff 448","lots of stuff 448","lots of stuff 448","lots of stuff 448"]
["lots of stuff 449","lots of stuff 449","lots of stuff 449","lots of stuff 449"]
["lots of stuff 450","lots of stuff 450","lots of stuff 450","lots of stuff 450"]
["lots of stuff 451","lots of stuff 451","lots of stuff 451","lots of stuff 451"]
["lots of stuff 452","lots of stuff 452","lots of stuff 452","lots of stuff 452"]
["lots of stuff 453","lots of stuff 453","lots of stuff 453","lots of stuff 453"]
["lots of stuff 454","lots of stuff 454","lots of stuff 454","lots of stuff 454"]
["lots of stuff 455","lots of stuff 455","lots of stuff 455","lots of stuff 455"]
["lots of stuff 456","lots of stuff 456","lots of stuff 456","lots of stuff 456"]
["lots of stuff 457","lots of stuff 457","lots of stuff 457","lots of stuff 457"]
["lots of stuff 458","lots of stuff 458","lots of stuff 458","lots of stuff 458"]
["lots of stuff 459","lots of stuff 459","lots of stuff 459","lots of stuff 459"]
["lots of stuff 460","lots of stuff 460","lots of stuff 460","lots of stuff 460"]
["lots of stuff 461","lots of stuff 461","lots of stuff 461","lots of stuff 461"]
["lots of stuff 462","lots of stuff 462","lots of stuff 462","lots of stuff 462"]
["lots of stuff 463","lots of stuff 463","lots of stuff 463","lots of stuff 463"]
["lots of stuff 464","lots of stuff 464","lots of stuff 464","lots of stuff 464"]
["lots of stuff 465","lots of stuff 465","lots of stuff 465","lots of stuff 465"]
["lots of stuff 466","lots of stuff 466","lots of stuff 466","lots of stuff 466"]
["lots of stuff 467","lots of stuff 467","lots of stuff 467","lots of stuff 467"]
["lots of stuff 468","lots of stuff 468","lots of stuff 468","lots of stuff 468"]
["lots of stuff 469","lots of stuff 469","lots of stuff 469","lots of stuff 469"]
["lots of stuff 470","lots of stuff 470","lots of stuff 470","lots of stuff 470"]
["lots of stuff 471","lots of stuff 471","lots of stuff 471","lots of stuff 471"]
["lots of stuff 472","lots of stuff 472","lots of stuff 472","lots of stuff 472"]
["lots of stuff 473","lots of stuff 473","lots of stuff 473","lots of stuff 473"]
["lots of stuff 474","lots of stuff 474","lots of stuff 474","lots of stuff 474"]
["lots of stuff 475","lots of stuff 475","lots of stuff 475","lots of stuff 475"]
["lots of stuff 476","lots of stuff 476","lots of stuff 476","lots of stuff 476"]
["lots of stuff 477","lots of stuff 477","lots of stuff 477","lots of stuff 477"]
["lots of stuff 478","lots of stuff 478","lots of stuff 478","lots of stuff 478"]
["lots of stuff 479","lots of stuff 479","lots of stuff 479","lots of stuff 479"]
["lots of stuff 480","lots of stuff 480","lots of stuff 480","lots of stuff 480"]
["lots of stuff 481","lots of stuff 481","lots of stuff 481","lots of stuff 481"]
["lots of stuff 482","lots of stuff 482","lots of stuff 482","lots of stuff 482"]
["lots of stuff 483","lots of stuff 483","lots of stuff 483","lots of stuff 483"]
["lots of stuff 484","lots of stuff 484","lots of stuff 484","lots of stuff 484"]
["lots of stuff 485","lots of stuff 485","lots of stuff 485","lots of stuff 485"]
["lots of stuff 486","lots of stuff 486","lots of stuff 486","lots of stuff 486"]
["lots of stuff 487","lots of stuff 487","lots of stuff 487","lots of stuff 487"]
["lots of stuff 488","lots of stuff 488","lots of stuff 488","lots of stuff 488"]
["lots of stuff 489","lots of stuff 489","lots of stuff 489","lots of stuff 489"]
["lots of stuff 490","lots of stuff 490","lots of stuff 490","lots of stuff 490"]
["lots of stuff 491","lots of stuff 491","lots of stuff 491","lots of stuff 491"]
["lots of stuff 492","lots of stuff 492","lots of stuff 492","lots of stuff 492"]
["lots of stuff 493","lots of stuff 493","lots of stuff 493","lots of stuff 493"]
["lots of stuff 494","lots of stuff 494","lots of stuff 494","lots of stuff 494"]
["lots of stuff 495","lots of stuff 495","lots of stuff 495","lots of stuff 495"]
["lots of stuff 496","lots of stuff 496","lots of stuff 496","lots of stuff 496"]
["lots of stuff 497","lots of stuff 497","lots of stuff 497","lots of stuff 497"]
["lots of stuff 498","lots of stuff 498","lots of stuff 498","lots of stuff 498"]
["lots of stuff 499","lots of stuff 499","lots of stuff 499","lots of stuff 499"]
["lots of stuff 500","lots of stuff 500","lots of stuff 500","lots of stuff 500"]
["lots of stuff 501","lots of stuff 501","lots of stuff 501","lots of stuff 501"]
["lots of stuff 502","lots of stuff 502","lots of stuff 502","lots of stuff 502"]
["lots of stuff 503","lots of stuff 503","lots of stuff 503","lots of stuff 503"]
["lots of stuff 504","lots of stuff 504","lots of stuff 504","lots of stuff 504"]
["lots of stuff 505","lots of stuff 505","lots of stuff 505","lots of stuff 505"]
["lots of stuff 506","lots of stuff 506","lots of stuff 506","lots of stuff 506"]
["lots of stuff 507","lots of stuff 507","lots of stuff 507","lots of stuff 507"]
["lots of stuff 508","lots of stuff 508","lots of stuff 508","lots of stuff 508"]
["lots of stuff 509","lots of stuff 509","lots of stuff 509","lots of stuff 509"]
["lots of stuff 510","lots of stuff 510","lots of stuff 510","lots of stuff 510"]
["lots of stuff 511","lots of stuff 511","lots of stuff 511","lots of stuff 511"]
["lots of stuff 512","lots of stuff 512","lots of stuff 512","lots of stuff 512"]
["lots of stuff 513","lots of stuff 513","lots of stuff 513","lots of stuff 513"]
["lots of stuff 514","lots of stuff 514","lots of stuff 514","lots of stuff 514"]
["lots of stuff 515","lots of stuff 515","lots of stuff 515","lots of stuff 515"]
["lots of stuff 516","lots of stuff 516","lots of stuff 516","lots of stuff 516"]
["lots of stuff 517","lots of stuff 517","lots of stuff 517","lots of stuff 517"]
["lots of stuff 518","lots of stuff 518","lots of stuff 518","lots of stuff 518"]
["lots of stuff 519","lots of stuff 519","lots of stuff 519","lots of stuff 519"]
["lots of stuff 520","lots of stuff 520","lots of stuff 520","lots of stuff 520"]
["lots of stuff 521","lots of stuff 521","lots of stuff 521","lots of stuff 521"]
["lots of stuff 522","lots of stuff 522","lots of stuff 522","lots of stuff 522"]
["lots of stuff 523","lots of stuff 523","lots of stuff 523","lots of stuff 523"]
["lots of stuff 524","lots of stuff 524","lots of stuff 524","lots of stuff 524"]
["lots of stuff 525","lots of stuff 525","lots of stuff 525","lots of stuff 525"]
["lots of stuff 526","lots of stuff 526","lots of stuff 526","lots of stuff 526"]
["lots of stuff 527","lots of stuff 527","lots of stuff 527","lots of stuff 527"]
["lots of stuff 528","lots of stuff 528","lots of stuff 528","lots of stuff 528"]
["lots of stuff 529","lots of stuff 529","lots of stuff 529","lots of stuff 529"]
["lots of stuff 530","lots of stuff 530","lots of stuff 530","lots of stuff 530"]
["lots of stuff 531","lots of stuff 531","lots of stuff 531","lots of stuff 531"]
["lots of stuff 532","lots of stuff 532","lots of stuff 532","lots of stuff 532"]
["lots of stuff 533","lots of stuff 533","lots of stuff 533","lots of stuff 533"]
["lots of stuff 534","lots of stuff 534","lots of stuff 534","lots of stuff 534"]
["lots of stuff 535","lots of stuff 535","lots of stuff 535","lots of stuff 535"]
["lots of stuff 536","lots of stuff 536","lots of stuff 536","lots of stuff 536"]
["lots of stuff 537","lots of stuff 537","lots of stuff 537","lots of stuff 537"]
["lots of stuff 538","lots of stuff 538","lots of stuff 538","lots of stuff 538"]
["lots of stuff 539","lots of stuff 539","lots of stuff 539","lots of stuff 539"]
["lots of stuff 540","lots of stuff 540","lots of stuff 540","lots of stuff 540"]
["lots of stuff 541","lots of stuff 541","lots of stuff 541","lots of stuff 541"]
["lots of stuff 542","lots of stuff 542","lots of stuff 542","lots of stuff 542"]
["lots of stuff 543","lots of stuff 543","lots of stuff 543","lots of stuff 543"]
["lots of stuff 544","lots of stuff 544","lots of stuff 544","lots of stuff 544"]
["lots of stuff 545","lots of stuff 545","lots of stuff 545","lots of stuff 545"]
["lots of stuff 546","lots of stuff 546","lots of stuff 546","lots of stuff 546"]
["lots of stuff 547","lots of stuff 547","lots of stuff 547","lots of stuff 547"]
["lots of stuff 548","lots of stuff 548","lots of stuff 548","lots of stuff 548"]
["lots of stuff 549","lots of stuff 549","lots of stuff 549","lots of stuff 549"]
["lots of stuff 550","lots of stuff 550","lots of stuff 550","lots of stuff 550"]
["lots of stuff 551","lots of stuff 551","lots of stuff 551","lots of stuff 551"]
["lots of stuff 552","lots of stuff 552","lots of stuff 552","lots of stuff 552"]
["lots of stuff 553","lots of stuff 553","lots of stuff 553","lots of stuff 553"]
["lots of stuff 554","lots of stuff 554","lots of stuff 554","lots of stuff 554"]
["lots of stuff 555","lots of stuff 555","lots of stuff 555","lots of stuff 555"]
["lots of stuff 556","lots of stuff 556","lots of stuff 556","lots of stuff 556"]
["lots of stuff 557","lots of stuff 557","lots of stuff 557","lots of stuff 557"]
["lots of stuff 558","lots of stuff 558","lots of stuff 558","lots of stuff 558"]
["lots of stuff 559","lots of stuff 559","lots of stuff 559","lots of stuff 559"]
["lots of stuff 560","lots of stuff 560","lots of stuff 560","lots of stuff 560"]
["lots of stuff 561","lots of stuff 561","lots of stuff 561","lots of stuff 561"]
["lots of stuff 562","lots of stuff 562","lots of stuff 562","lots of stuff 562"]
["lots of stuff 563","lots of stuff 563","lots of stuff 563","lots of stuff 563"]
["lots of stuff 564","lots of stuff 564","lots of stuff 564","lots of stuff 564"]
["lots of stuff 565","lots of stuff 565","lots of stuff 565","lots of stuff 565"]
["lots of stuff 566","lots of stuff 566","lots of stuff 566","lots of stuff 566"]
["lots of stuff 567","lots of stuff 567","lots of stuff 567","lots of stuff 567"]
["lots of stuff 568","lots of stuff 568","lots of stuff 568","lots of stuff 568"]
["lots of stuff 569","lots of stuff 569","lots of stuff 569","lots of stuff 569"]
["lots of stuff 570","lots of stuff 570","lots of stuff 570","lots of stuff 570"]
["lots of stuff 571","lots of stuff 571","lots of stuff 571","lots of stuff 571"]
["lots of stuff 572","lots of stuff 572","lots of stuff 572","lots of stuff 572"]
["lots of stuff 573","lots of stuff 573","lots of stuff 573","lots of stuff 573"]
["lots of stuff 574","lots of stuff 574","lots of stuff 574","lots of stuff 574"]
["lots of stuff 575","lots of stuff 575","lots of stuff 575","lots of stuff 575"]
["lots of stuff 576","lots of stuff 576","lots of stuff 576","lots of stuff 576"]
["lots of stuff 577","lots of stuff 577","lots of stuff 577","lots of stuff 577"]
["lots of stuff 578","lots of stuff 578","lots of stuff 578","lots of stuff 578"]
["lots of stuff 579","lots of stuff 579","lots of stuff 579","lots of stuff 579"]
["lots of stuff 580","lots of stuff 580","lots of stuff 580","lots of stuff 580"]
["lots of stuff 581","lots of stuff 581","lots of stuff 581","lots of stuff 581"]
["lots of stuff 582","lots of stuff 582","lots of stuff 582","lots of stuff 582"]
["lots of stuff 583","lots of stuff 583","lots of stuff 583","lots of stuff 583"]
["lots of stuff 584","lots of stuff 584","lots of stuff 584","lots of stuff 584"]
["lots of stuff 585","lots of stuff 585","lots of stuff 585","lots of stuff 585"]
["lots of stuff 586","lots of stuff 586","lots of stuff 586","lots of stuff 586"]
["lots of stuff 587","lots of stuff 587","lots of stuff 587","lots of stuff 587"]
["lots of stuff 588","lots of stuff 588","lots of stuff 588","lots of stuff 588"]
["lots of stuff 589","lots of stuff 589","lots of stuff 589","lots of stuff 589"]
["lots of stuff 590","lots of stuff 590","lots of stuff 590","lots of stuff 590"]
["lots of stuff 591","lots of stuff 591","lots of stuff 591","lots of stuff 591"]
["lots of stuff 592","lots of stuff 592","lots of stuff 592","lots of stuff 592"]
["lots of stuff 593","lots of stuff 593","lots of stuff 593","lots of stuff 593"]
["lots of stuff 594","lots of stuff 594","lots of stuff 594","lots of stuff 594"]
["lots of stuff 595","lots of stuff 595","lots of stuff 595","lots of stuff 595"]
["lots of stuff 596","lots of stuff 596","lots of stuff 596","lots of stuff 596"]
["lots of stuff 597","lots of stuff 597","lots of stuff 597","lots of stuff 597"]
["lots of stuff 598","lots of stuff 598","lots of stuff 598","lots of stuff 598"]
["lots of stuff 599","lots of stuff 599","lots of stuff 599","lots of stuff 599"]
["lots of stuff 600","lots of stuff 600","lots of stuff 600","lots of stuff 600"]
["lots of stuff 601","lots of stuff 601","lots of stuff 601","lots of stuff 601"]
["lots of stuff 602","lots of stuff 602","lots of stuff 602","lots of stuff 602"]
["lots of stuff 603","lots of stuff 603","lots of stuff 603","lots of stuff 603"]
["lots of stuff 604","lots of stuff 604","lots of stuff 604","lots of stuff 604"]
["lots of stuff 605","lots of stuff 605","lots of stuff 605","lots of stuff 605"]
["lots of stuff 606","lots of stuff 606","lots of stuff 606","lots of stuff 606"]
["lots of stuff 607","lots of stuff 607","lots of stuff 607","lots of stuff 607"]
["lots of stuff 608","lots of stuff 608","lots of stuff 608","lots of stuff 608"]
["lots of stuff 609","lots of stuff 609","lots of stuff 609","lots of stuff 609"]
["lots of stuff 610","lots of stuff 610","lots of stuff 610","lots of stuff 610"]
["lots of stuff 611","lots of stuff 611","lots of stuff 611","lots of stuff 611"]
["lots of stuff 612","lots of stuff 612","lots of stuff 612","lots of stuff 612"]
["lots of stuff 613","lots of stuff 613","lots of stuff 613","lots of stuff 613"]
["lots of stuff 614","lots of stuff 614","lots of stuff 614","lots of stuff 614"]
["lots of stuff 615","lots of stuff 615","lots of stuff 615","lots of stuff 615"]
["lots of stuff 616","lots of stuff 616","lots of stuff 616","lots of stuff 616"]
["lots of stuff 617","lots of stuff 617","lots of stuff 617","lots of stuff 617"]
["lots of stuff 618","lots of stuff 618","lots of stuff 618","lots of stuff 618"]
["lots of stuff 619","lots of stuff 619","lots of stuff 619","lots of stuff 619"]
["lots of stuff 620","lots of stuff 620","lots of stuff 620","lots of stuff 620"]
["lots of stuff 621","lots of stuff 621","lots of stuff 621","lots of stuff 621"]
["lots of stuff 622","lots of stuff 622","lots of stuff 622","lots of stuff 622"]
["lots of stuff 623","lots of stuff 623","lots of stuff 623","lots of stuff 623"]
["lots of stuff 624","lots of stuff 624","lots of stuff 624","lots of stuff 624"]
["lots of stuff 625","lots of stuff 625","lots of stuff 625","lots of stuff 625"]
["lots of stuff 626","lots of stuff 626","lots of stuff 626","lots of stuff 626"]
["lots of stuff 627","lots of stuff 627","lots of stuff 627","lots of stuff 627"]
["lots of stuff 628","lots of stuff 628","lots of stuff 628","lots of stuff 628"]
["lots of stuff 629","lots of stuff 629","lots of stuff 629","lots of stuff 629"]
["lots of stuff 630","lots of stuff 630","lots of stuff 630","lots of stuff 630"]
["lots of stuff 631","lots of stuff 631","lots of stuff 631","lots of stuff 631"]
["lots of stuff 632","lots of stuff 632","lots of stuff 632","lots of stuff 632"]
["lots of stuff 633","lots of stuff 633","lots of stuff 633","lots of stuff 633"]
["lots of stuff 634","lots of stuff 634","lots of stuff 634","lots of stuff 634"]
["lots of stuff 635","lots of stuff 635","lots of stuff 635","lots of stuff 635"]
["lots of stuff 636","lots of stuff 636","lots of stuff 636","lots of stuff 636"]
["lots of stuff 637","lots of stuff 637","lots of stuff 637","lots of stuff 637"]
["lots of stuff 638","lots of stuff 638","lots of stuff 638","lots of stuff 638"]
["lots of stuff 639","lots of stuff 639","lots of stuff 639","lots of stuff 639"]
["lots of stuff 640","lots of stuff 640","lots of stuff 640","lots of stuff 640"]
["lots of stuff 641","lots of stuff 641","lots of stuff 641","lots of stuff 641"]
["lots of stuff 642","lots of stuff 642","lots of stuff 642","lots of stuff 642"]
["lots of stuff 643","lots of stuff 643","lots of stuff 643","lots of stuff 643"]
["lots of stuff 644","lots of stuff 644","lots of stuff 644","lots of stuff 644"]
["lots of stuff 645","lots of stuff 645","lots of stuff 645","lots of stuff 645"]
["lots of stuff 646","lots of stuff 646","lots of stuff 646","lots of stuff 646"]
["lots of stuff 647","lots of stuff 647","lots of stuff 647","lots of stuff 647"]
["lots of stuff 648","lots of stuff 648","lots of stuff 648","lots of stuff 648"]
["lots of stuff 649","lots of stuff 649","lots of stuff 649","lots of stuff 649"]
["lots of stuff 650","lots of stuff 650","lots of stuff 650","lots of stuff 650"]
["lots of stuff 651","lots of stuff 651","lots of stuff 651","lots of stuff 651"]
["lots of stuff 652","lots of stuff 652","lots of stuff 652","lots of stuff 652"]
["lots of stuff 653","lots of stuff 653","lots of stuff 653","lots of stuff 653"]
["lots of stuff 654","lots of stuff 654","lots of stuff 654","lots of stuff 654"]
["lots of stuff 655","lots of stuff 655","lots of stuff 655","lots of stuff 655"]
["lots of stuff 656","lots of stuff 656","lots of stuff 656","lots of stuff 656"]
["lots of stuff 657","lots of stuff 657","lots of stuff 657","lots of stuff 657"]
["lots of stuff 658","lots of stuff 658","lots of stuff 658","lots of stuff 658"]
["lots of stuff 659","lots of stuff 659","lots of stuff 659","lots of stuff 659"]
["lots of stuff 660","lots of stuff 660","lots of stuff 660","lots of stuff 660"]
["lots of stuff 661","lots of stuff 661","lots of stuff 661","lots of stuff 661"]
["lots of stuff 662","lots of stuff 662","lots of stuff 662","lots of stuff 662"]
["lots of stuff 663","lots of stuff 663","lots of stuff 663","lots of stuff 663"]
["lots of stuff 664","lots of stuff 664","lots of stuff 664","lots of stuff 664"]
["lots of stuff 665","lots of stuff 665","lots of stuff 665","lots of stuff 665"]
["lots of stuff 666","lots of stuff 666","lots of stuff 666","lots of stuff 666"]
["lots of stuff 667","lots of stuff 667","lots of stuff 667","lots of stuff 667"]
["lots of stuff 668","lots of stuff 668","lots of stuff 668","lots of stuff 668"]
["lots of stuff 669","lots of stuff 669","lots of stuff 669","lots of stuff 669"]
["lots of stuff 670","lots of stuff 670","lots of stuff 670","lots of stuff 670"]
["lots of stuff 671","lots of stuff 671","lots of stuff 671","lots of stuff 671"]
["lots of stuff 672","lots of stuff 672","lots of stuff 672","lots of stuff 672"]
["lots of stuff 673","lots of stuff 673","lots of stuff 673","lots of stuff 673"]
["lots of stuff 674","lots of stuff 674","lots of stuff 674","lots of stuff 674"]
["lots of stuff 675","lots of stuff 675","lots of stuff 675","lots of stuff 675"]
["lots of stuff 676","lots of stuff 676","lots of stuff 676","lots of stuff 676"]
["lots of stuff 677","lots of stuff 677","lots of stuff 677","lots of stuff 677"]
["lots of stuff 678","lots of stuff 678","lots of stuff 678","lots of stuff 678"]
["lots of stuff 679","lots of stuff 679","lots of stuff 679","lots of stuff 679"]
["lots of stuff 680","lots of stuff 680","lots of stuff 680","lots of stuff 680"]
["lots of stuff 681","lots of stuff 681","lots of stuff 681","lots of stuff 681"]
["lots of stuff 682","lots of stuff 682","lots of stuff 682","lots of stuff 682"]
["lots of stuff 683","lots of stuff 683","lots of stuff 683","lots of stuff 683"]
["lots of stuff 684","lots of stuff 684","lots of stuff 684","lots of stuff 684"]
["lots of stuff 685","lots of stuff 685","lots of stuff 685","lots of stuff 685"]
["lots of stuff 686","lots of stuff 686","lots of stuff 686","lots of stuff 686"]
["lots of stuff 687","lots of stuff 687","lots of stuff 687","lots of stuff 687"]
["lots of stuff 688","lots of stuff 688","lots of stuff 688","lots of stuff 688"]
["lots of stuff 689","lots of stuff 689","lots of stuff 689","lots of stuff 689"]
["lots of stuff 690","lots of stuff 690","lots of stuff 690","lots of stuff 690"]
["lots of stuff 691","lots of stuff 691","lots of stuff 691","lots of stuff 691"]
["lots of stuff 692","lots of stuff 692","lots of stuff 692","lots of stuff 692"]
["lots of stuff 693","lots of stuff 693","lots of stuff 693","lots of stuff 693"]
["lots of stuff 694","lots of stuff 694","lots of stuff 694","lots of stuff 694"]
["lots of stuff 695","lots of stuff 695","lots of stuff 695","lots of stuff 695"]
["lots of stuff 696","lots of stuff 696","lots of stuff 696","lots of stuff 696"]
["lots of stuff 697","lots of stuff 697","lots of stuff 697","lots of stuff 697"]
["lots of stuff 698","lots of stuff 698","lots of stuff 698","lots of stuff 698"]
["lots of stuff 699","lots of stuff 699","lots of stuff 699","lots of stuff 699"]
["lots of stuff 700","lots of stuff 700","lots of stuff 700","lots of stuff 700"]
["lots of stuff 701","lots of stuff 701","lots of stuff 701","lots of stuff 701"]
["lots of stuff 702","lots of stuff 702","lots of stuff 702","lots of stuff 702"]
["lots of stuff 703","lots of stuff 703","lots of stuff 703","lots of stuff 703"]
["lots of stuff 704","lots of stuff 704","lots of stuff 704","lots of stuff 704"]
["lots of stuff 705","lots of stuff 705","lots of stuff 705","lots of stuff 705"]
["lots of stuff 706","lots of stuff 706","lots of stuff 706","lots of stuff 706"]
["lots of stuff 707","lots of stuff 707","lots of stuff 707","lots of stuff 707"]
["lots of stuff 708","lots of stuff 708","lots of stuff 708","lots of stuff 708"]
["lots of stuff 709","lots of stuff 709","lots of stuff 709","lots of stuff 709"]
["lots of stuff 710","lots of stuff 710","lots of stuff 710","lots of stuff 710"]
["lots of stuff 711","lots of stuff 711","lots of stuff 711","lots of stuff 711"]
["lots of stuff 712","lots of stuff 712","lots of stuff 712","lots of stuff 712"]
["lots of stuff 713","lots of stuff 713","lots of stuff 713","lots of stuff 713"]
["lots of stuff 714","lots of stuff 714","lots of stuff 714","lots of stuff 714"]
["lots of stuff 715","lots of stuff 715","lots of stuff 715","lots of stuff 715"]
["lots of stuff 716","lots of stuff 716","lots of stuff 716","lots of stuff 716"]
["lots of stuff 717","lots of stuff 717","lots of stuff 717","lots of stuff 717"]
["lots of stuff 718","lots of stuff 718","lots of stuff 718","lots of stuff 718"]
["lots of stuff 719","lots of stuff 719","lots of stuff 719","lots of stuff 719"]
["lots of stuff 720","lots of stuff 720","lots of stuff 720","lots of stuff 720"]
["lots of stuff 721","lots of stuff 721","lots of stuff 721","lots of stuff 721"]
["lots of stuff 722","lots of stuff 722","lots of stuff 722","lots of stuff 722"]
["lots of stuff 723","lots of stuff 723","lots of stuff 723","lots of stuff 723"]
["lots of stuff 724","lots of stuff 724","lots of stuff 724","lots of stuff 724"]
["lots of stuff 725","lots of stuff 725","lots of stuff 725","lots of stuff 725"]
["lots of stuff 726","lots of stuff 726","lots of stuff 726","lots of stuff 726"]
["lots of stuff 727","lots of stuff 727","lots of stuff 727","lots of stuff 727"]
["lots of stuff 728","lots of stuff 728","lots of stuff 728","lots of stuff 728"]
["lots of stuff 729","lots of stuff 729","lots of stuff 729","lots of stuff 729"]
["lots of stuff 730","lots of stuff 730","lots of stuff 730","lots of stuff 730"]
["lots of stuff 731","lots of stuff 731","lots of stuff 731","lots of stuff 731"]
["lots of stuff 732","lots of stuff 732","lots of stuff 732","lots of stuff 732"]
["lots of stuff 733","lots of stuff 733","lots of stuff 733","lots of stuff 733"]
["lots of stuff 734","lots of stuff 734","lots of stuff 734","lots of stuff 734"]
["lots of stuff 735","lots of stuff 735","lots of stuff 735","lots of stuff 735"]
["lots of stuff 736","lots of stuff 736","lots of stuff 736","lots of stuff 736"]
["lots of stuff 737","lots of stuff 737","lots of stuff 737","lots of stuff 737"]
["lots of stuff 738","lots of stuff 738","lots of stuff 738","lots of stuff 738"]
["lots of stuff 739","lots of stuff 739","lots of stuff 739","lots of stuff 739"]
["lots of stuff 740","lots of stuff 740","lots of stuff 740","lots of stuff 740"]
["lots of stuff 741","lots of stuff 741","lots of stuff 741","lots of stuff 741"]
["lots of stuff 742","lots of stuff 742","lots of stuff 742","lots of stuff 742"]
["lots of stuff 743","lots of stuff 743","lots of stuff 743","lots of stuff 743"]
["lots of stuff 744","lots of stuff 744","lots of stuff 744","lots of stuff 744"]
["lots of stuff 745","lots of stuff 745","lots of stuff 745","lots of stuff 745"]
["lots of stuff 746","lots of stuff 746","lots of stuff 746","lots of stuff 746"]
["lots of stuff 747","lots of stuff 747","lots of stuff 747","lots of stuff 747"]
["lots of stuff 748","lots of stuff 748","lots of stuff 748","lots of stuff 748"]
["lots of stuff 749","lots of stuff 749","lots of stuff 749","lots of stuff 749"]
["lots of stuff 750","lots of stuff 750","lots of stuff 750","lots of stuff 750"]
["lots of stuff 751","lots of stuff 751","lots of stuff 751","lots of stuff 751"]
["lots of stuff 752","lots of stuff 752","lots of stuff 752","lots of stuff 752"]
["lots of stuff 753","lots of stuff 753","lots of stuff 753","lots of stuff 753"]
["lots of stuff 754","lots of stuff 754","lots of stuff 754","lots of stuff 754"]
["lots of stuff 755","lots of stuff 755","lots of stuff 755","lots of stuff 755"]
["lots of stuff 756","lots of stuff 756","lots of stuff 756","lots of stuff 756"]
["lots of stuff 757","lots of stuff 757","lots of stuff 757","lots of stuff 757"]
["lots of stuff 758","lots of stuff 758","lots of stuff 758","lots of stuff 758"]
["lots of stuff 759","lots of stuff 759","lots of stuff 759","lots of stuff 759"]
["lots of stuff 760","lots of stuff 760","lots of stuff 760","lots of stuff 760"]
["lots of stuff 761","lots of stuff 761","lots of stuff 761","lots of stuff 761"]
["lots of stuff 762","lots of stuff 762","lots of stuff 762","lots of stuff 762"]
["lots of stuff 763","lots of stuff 763","lots of stuff 763","lots of stuff 763"]
["lots of stuff 764","lots of stuff 764","lots of stuff 764","lots of stuff 764"]
["lots of stuff 765","lots of stuff 765","lots of stuff 765","lots of stuff 765"]
["lots of stuff 766","lots of stuff 766","lots of stuff 766","lots of stuff 766"]
["lots of stuff 767","lots of stuff 767","lots of stuff 767","lots of stuff 767"]
["lots of stuff 768","lots of stuff 768","lots of stuff 768","lots of stuff 768"]
["lots of stuff 769","lots of stuff 769","lots of stuff 769","lots of stuff 769"]
["lots of stuff 770","lots of stuff 770","lots of stuff 770","lots of stuff 770"]
["lots of stuff 771","lots of stuff 771","lots of stuff 771","lots of stuff 771"]
["lots of stuff 772","lots of stuff 772","lots of stuff 772","lots of stuff 772"]
["lots of stuff 773","lots of stuff 773","lots of stuff 773","lots of stuff 773"]
["lots of stuff 774","lots of stuff 774","lots of stuff 774","lots of stuff 774"]
["lots of stuff 775","lots of stuff 775","lots of stuff 775","lots of stuff 775"]
["lots of stuff 776","lots of stuff 776","lots of stuff 776","lots of stuff 776"]
["lots of stuff 777","lots of stuff 777","lots of stuff 777","lots of stuff 777"]
["lots of stuff 778","lots of stuff 778","lots of stuff 778","lots of stuff 778"]
["lots of stuff 779","lots of stuff 779","lots of stuff 779","lots of stuff 779"]
["lots of stuff 780","lots of stuff 780","lots of stuff 780","lots of stuff 780"]
["lots of stuff 781","lots of stuff 781","lots of stuff 781","lots of stuff 781"]
["lots of stuff 782","lots of stuff 782","lots of stuff 782","lots of stuff 782"]
["lots of stuff 783","lots of stuff 783","lots of stuff 783","lots of stuff 783"]
["lots of stuff 784","lots of stuff 784","lots of stuff 784","lots of stuff 784"]
["lots of stuff 785","lots of stuff 785","lots of stuff 785","lots of stuff 785"]
["lots of stuff 786","lots of stuff 786","lots of stuff 786","lots of stuff 786"]
["lots of stuff 787","lots of stuff 787","lots of stuff 787","lots of stuff 787"]
["lots of stuff 788","lots of stuff 788","lots of stuff 788","lots of stuff 788"]
["lots of stuff 789","lots of stuff 789","lots of stuff 789","lots of stuff 789"]
["lots of stuff 790","lots of stuff 790","lots of stuff 790","lots of stuff 790"]
["lots of stuff 791","lots of stuff 791","lots of stuff 791","lots of stuff 791"]
["lots of stuff 792","lots of stuff 792","lots of stuff 792","lots of stuff 792"]
["lots of stuff 793","lots of stuff 793","lots of stuff 793","lots of stuff 793"]
["lots of stuff 794","lots of stuff 794","lots of stuff 794","lots of stuff 794"]
["lots of stuff 795","lots of stuff 795","lots of stuff 795","lots of stuff 795"]
["lots of stuff 796","lots of stuff 796","lots of stuff 796","lots of stuff 796"]
["lots of stuff 797","lots of stuff 797","lots of stuff 797","lots of stuff 797"]
["lots of stuff 798","lots of stuff 798","lots of stuff 798","lots of stuff 798"]
["lots of stuff 799","lots of stuff 799","lots of stuff 799","lots of stuff 799"]
["lots of stuff 800","lots of stuff 800","lots of stuff 800","lots of stuff 800"]
["lots of stuff 801","lots of stuff 801","lots of stuff 801","lots of stuff 801"]
["lots of stuff 802","lots of stuff 802","lots of stuff 802","lots of stuff 802"]
["lots of stuff 803","lots of stuff 803","lots of stuff 803","lots of stuff 803"]
["lots of stuff 804","lots of stuff 804","lots of stuff 804","lots of stuff 804"]
["lots of stuff 805","lots of stuff 805","lots of stuff 805","lots of stuff 805"]
["lots of stuff 806","lots of stuff 806","lots of stuff 806","lots of stuff 806"]
["lots of stuff 807","lots of stuff 807","lots of stuff 807","lots of stuff 807"]
["lots of stuff 808","lots of stuff 808","lots of stuff 808","lots of stuff 808"]
["lots of stuff 809","lots of stuff 809","lots of stuff 809","lots of stuff 809"]
["lots of stuff 810","lots of stuff 810","lots of stuff 810","lots of stuff 810"]
["lots of stuff 811","lots of stuff 811","lots of stuff 811","lots of stuff 811"]
["lots of stuff 812","lots of stuff 812","lots of stuff 812","lots of stuff 812"]
["lots of stuff 813","lots of stuff 813","lots of stuff 813","lots of stuff 813"]
["lots of stuff 814","lots of stuff 814","lots of stuff 814","lots of stuff 814"]
["lots of stuff 815","lots of stuff 815","lots of stuff 815","lots of stuff 815"]
["lots of stuff 816","lots of stuff 816","lots of stuff 816","lots of stuff 816"]
["lots of stuff 817","lots of stuff 817","lots of stuff 817","lots of stuff 817"]
["lots of stuff 818","lots of stuff 818","lots of stuff 818","lots of stuff 818"]
["lots of stuff 819","lots of stuff 819","lots of stuff 819","lots of stuff 819"]
["lots of stuff 820","lots of stuff 820","lots of stuff 820","lots of stuff 820"]
["lots of stuff 821","lots of stuff 821","lots of stuff 821","lots of stuff 821"]
["lots of stuff 822","lots of stuff 822","lots of stuff 822","lots of stuff 822"]
["lots of stuff 823","lots of stuff 823","lots of stuff 823","lots of stuff 823"]
["lots of stuff 824","lots of stuff 824","lots of stuff 824","lots of stuff 824"]
["lots of stuff 825","lots of stuff 825","lots of stuff 825","lots of stuff 825"]
["lots of stuff 826","lots of stuff 826","lots of stuff 826","lots of stuff 826"]
["lots of stuff 827","lots of stuff 827","lots of stuff 827","lots of stuff 827"]
["lots of stuff 828","lots of stuff 828","lots of stuff 828","lots of stuff 828"]
["lots of stuff 829","lots of stuff 829","lots of stuff 829","lots of stuff 829"]
["lots of stuff 830","lots of stuff 830","lots of stuff 830","lots of stuff 830"]
["lots of stuff 831","lots of stuff 831","lots of stuff 831","lots of stuff 831"]
["lots of stuff 832","lots of stuff 832","lots of stuff 832","lots of stuff 832"]
["lots of stuff 833","lots of stuff 833","lots of stuff 833","lots of stuff 833"]
["lots of stuff 834","lots of stuff 834","lots of stuff 834","lots of stuff 834"]
["lots of stuff 835","lots of stuff 835","lots of stuff 835","lots of stuff 835"]
["lots of stuff 836","lots of stuff 836","lots of stuff 836","lots of stuff 836"]
["lots of stuff 837","lots of stuff 837","lots of stuff 837","lots of stuff 837"]
["lots of stuff 838","lots of stuff 838","lots of stuff 838","lots of stuff 838"]
["lots of stuff 839","lots of stuff 839","lots of stuff 839","lots of stuff 839"]
["lots of stuff 840","lots of stuff 840","lots of stuff 840","lots of stuff 840"]
["lots of stuff 841","lots of stuff 841","lots of stuff 841","lots of stuff 841"]
["lots of stuff 842","lots of stuff 842","lots of stuff 842","lots of stuff 842"]
["lots of stuff 843","lots of stuff 843","lots of stuff 843","lots of stuff 843"]
["lots of stuff 844","lots of stuff 844","lots of stuff 844","lots of stuff 844"]
["lots of stuff 845","lots of stuff 845","lots of stuff 845","lots of stuff 845"]
["lots of stuff 846","lots of stuff 846","lots of stuff 846","lots of stuff 846"]
["lots of stuff 847","lots of stuff 847","lots of stuff 847","lots of stuff 847"]
["lots of stuff 848","lots of stuff 848","lots of stuff 848","lots of stuff 848"]
["lots of stuff 849","lots of stuff 849","lots of stuff 849","lots of stuff 849"]
["lots of stuff 850","lots of stuff 850","lots of stuff 850","lots of stuff 850"]

{"sheet":"History ","index":20,"n_rows":1,"n_cols":5,"rows_kept":1,"cut":false,"hidden":false,"merged":[]}
["Rename to History",null,null,null,"You can go to RxCx in the Name box"]

{"sheet":"Another Bob","index":21,"n_rows":2,"n_cols":2,"rows_kept":2,"cut":false,"hidden":false,"merged":[]}
[3,3]
[3,3]

{"sheet":"Misc1","index":22,"n_rows":45,"n_cols":27,"rows_kept":45,"cut":false,"hidden":false,"merged":[]}
["Type 1e6 or 1e9 instead of 1000000 or 1000000000",null,null,null,null,null,null,null,"=sum('*Bob*'!a1:B2)"]
[null,null,null,null,null,null,10000000]
[null,null,null,null,null,null,null,null,"Shift/fill handle drag up to delete"]
["Format painter to turn this arrow",null,null,null,"into this arrow",null,null,null,"go to z"]
[]
[null,null,null,null,null,null,null,null,"Ctrl/period"]
[]
[null,null,null,null,null,null,null,null,581.31996839348949,671.28578870598949,715.94655125249494,925.54127781717546,542.83261745942912,405.25945629104854,752.8802412469455]
[null,null,null,null,null,null,null,null,186.86621617821953,936.99840668008778,641.34576308418389,624.55036970623576,722.63821808706655,34.691493384201081,950.06860925101864]
[null,null,null,null,null,null,null,null,406.08081722538623,970.02892118272882,361.27716332534555,345.6101781969445,971.06309836057483,948.17768751220274,25.612351618462981]
[null,null,null,null,"Registry",null,null,null,643.92705342763179,551.42181654614751,233.99102870313283,397.75025991038615,553.24583626426181,802.90004932949046,743.63879751110051]
[null,null,null,null,null,null,null,null,818.04717616637481,165.88342424669023,5.7070042783919916,932.18558567676894,171.5162875279388,419.8837015199486,80.790086703908642]
[null,null,null,null,null,null,null,null,990.37840978034808,598.56522147167061,951.34344521295873,60.507296779801493,462.62512933918873,859.21302106815278,771.47042819157605]
[null,null,null,null,null,null,null,null,391.00330438997344,159.38773833306553,554.86525653854369,150.98848454640824,829.95281454388908,344.62291428637678,675.63434712777234]
[null,null,null,null,null,null,null,null,593.84666356995001,49.688204520314194,304.6195230525708,274.15455462494708,836.21087902878435,202.08005383878813,889.16900155872725]
[null,null,null,null,null,null,null,null,242.21310793505003,996.11686100991199,924.24342379537939,944.17235874008475,658.51902141523294,806.04873670354959,465.25671891980647]
[null,null,null,null,null,null,null,null,487.72360784802117,731.56749741846204,376.42804434659706,539.35036188585639,184.17939040593811,173.12764118770073,10.037316248407535]
[null,null,null,null,null,null,null,null,909.68904514004214,945.55893242650347,481.06737401880673,937.78781029072309,519.53356738375555,374.2112249901117,560.2483492189973]
[null,null,null,null,null,null,null,null,942.21007125805852,394.88898940818217,966.04039728487123,525.38132588263102,562.06413120965499,848.34153052358147,438.14521277163897]
[null,null,null,null,null,null,null,null,966.32054987288529,468.60469166589257,146.19770354851892,638.1776781407815,410.13429145260892,734.82274910998683,604.86586324874474]
[null,null,null,null,null,null,null,null,503.5763677332439,216.3105474132403,153.95470667637358,461.05169886158671,808.79721597809055,706.29509260288705,662.78950987398844]
[null,null,null,null,null,null,null,null,900.67680712910203,772.23040768512783,321.32911245361396,950.92161425184531,748.60543417956114,980.2341114838739,384.0346095364755]
[null,null,null,null,null,null,null,null,788.45605653276164,409.95608520240535,397.88003704643592,521.839709117403,177.15105192901336,761.29016507203767,352.84195157477075]
[null,null,null,null,null,null,null,null,518.14015530780114,491.12713623547609,195.94078552279305,679.64117168960297,799.49597219656482,869.78477679331331,288.75598663156143,null,null,null,null,null,"More Stuff","More Stuff","More Stuff","More Stuff","More Stuff","More Stuff","More Stuff"]
[null,null,null,null,null,null,null,null,279.17026020212819,927.45252078065141,447.4769585631293,471.99592307954543,426.19572644491302,328.09958212751366,980.25917809425687,null,null,null,null,null,"More Stuff","More Stuff","More Stuff","More Stuff","More Stuff","More Stuff","More Stuff"]
[null,null,null,null,null,null,null,null,518.03592704120831,372.82594168762807,940.20675443266998,601.80689773717802,839.73703434296374,987.59232021350044,673.10610654214815,null,null,null,null,null,"More Stuff","More Stuff","More Stuff","More Stuff","More Stuff","More Stuff","More Stuff"]
[null,null,null,null,null,null,null,null,625.51479477097712,411.02771547726837,214.95762943860132,881.73296202192137,471.66626514217216,408.66668405736783,26.915444978071967,null,null,null,null,null,"More Stuff","More Stuff","More Stuff","More Stuff","More Stuff","More Stuff","More Stuff"]
[null,null,null,null,null,null,null,null,null,null,null,null,null,null,null,null,null,null,null,null,"More Stuff","More Stuff","More Stuff","More Stuff","More Stuff","More Stuff","More Stuff"]
[null,null,null,null,null,null,null,null,null,null,null,null,null,null,null,null,null,null,null,null,"More Stuff","More Stuff","More Stuff","More Stuff","More Stuff","More Stuff","More Stuff"]
[null,null,null,null,null,null,null,null,null,null,null,null,null,null,null,null,null,null,null,null,"More Stuff","More Stuff","More Stuff","More Stuff","More Stuff","More Stuff","More Stuff"]
[null,null,null,null,null,null,null,null,null,null,null,null,null,null,null,null,null,null,null,null,"More Stuff","More Stuff","More Stuff","More Stuff","More Stuff","More Stuff","More Stuff"]
[null,null,null,null,null,null,null,null,null,null,null,null,null,null,null,null,null,null,null,null,"More Stuff","More Stuff","More Stuff","More Stuff","More Stuff","More Stuff","More Stuff"]
[null,null,null,null,null,null,null,null,null,null,null,null,null,null,null,null,null,null,null,null,"More Stuff","More Stuff","More Stuff","More Stuff","More Stuff","More Stuff","More Stuff"]
[null,null,null,null,null,null,null,null,null,null,null,null,null,null,null,null,null,null,null,null,"More Stuff","More Stuff","More Stuff","More Stuff","More Stuff","More Stuff","More Stuff"]
[null,null,null,null,null,null,null,null,null,null,null,null,null,null,null,null,null,null,null,null,"More Stuff","More Stuff","More Stuff","More Stuff","More Stuff","More Stuff","More Stuff"]
[null,null,null,null,null,null,null,null,null,null,null,null,null,null,null,null,null,null,null,null,"More Stuff","More Stuff","More Stuff","More Stuff","More Stuff","More Stuff","More Stuff"]
[null,null,null,null,null,null,null,null,null,null,null,null,null,null,null,null,null,null,null,null,"More Stuff","More Stuff","More Stuff","More Stuff","More Stuff","More Stuff","More Stuff"]
[null,null,null,null,null,null,null,null,null,null,null,null,null,null,null,null,null,null,null,null,"More Stuff","More Stuff","More Stuff","More Stuff","More Stuff","More Stuff","More Stuff"]
[null,null,null,null,null,null,null,null,null,null,null,null,null,null,null,null,null,null,null,null,"More Stuff","More Stuff","More Stuff","More Stuff","More Stuff","More Stuff","More Stuff"]
[null,null,null,null,null,null,null,null,null,null,null,null,null,null,null,null,null,null,null,null,"More Stuff","More Stuff","More Stuff","More Stuff","More Stuff","More Stuff","More Stuff"]
[null,null,null,null,null,null,null,null,null,null,null,null,null,null,null,null,null,null,null,null,"More Stuff","More Stuff","More Stuff","More Stuff","More Stuff","More Stuff","More Stuff"]
[null,null,null,null,null,null,null,null,null,null,null,null,null,null,null,null,null,null,null,null,"More Stuff","More Stuff","More Stuff","More Stuff","More Stuff","More Stuff","More Stuff"]
[null,null,null,null,null,null,null,null,null,null,null,null,null,null,null,null,null,null,null,null,"More Stuff","More Stuff","More Stuff","More Stuff","More Stuff","More Stuff","More Stuff"]
[null,null,null,null,null,null,null,null,null,null,null,null,null,null,null,null,null,null,null,null,"More Stuff","More Stuff","More Stuff","More Stuff","More Stuff","More Stuff","More Stuff"]
[null,null,null,null,null,null,null,null,null,null,null,null,null,null,null,null,null,null,null,null,"More Stuff","More Stuff","More Stuff","More Stuff","More Stuff","More Stuff","More Stuff"]

{"sheet":"Find Backwards","index":23,"n_rows":1503,"n_cols":1,"rows_kept":1503,"cut":false,"hidden":false,"merged":[]}
["Department"]
["Acctg"]
["Acctg"]
["Acctg"]
["Acctg"]
["Acctg"]
["Acctg"]
["Acctg"]
["Acctg"]
["Acctg"]
["Acctg"]
["Acctg"]
["Acctg"]
["Acctg"]
["Acctg"]
["Acctg"]
["Acctg"]
["Acctg"]
["Acctg"]
["Acctg"]
["Acctg"]
["Acctg"]
["Acctg"]
["Acctg"]
["Acctg"]
["Acctg"]
["Acctg"]
["Acctg"]
["Acctg"]
["Acctg"]
["Acctg"]
["Acctg"]
["Acctg"]
["Acctg"]
["Acctg"]
["Acctg"]
["Acctg"]
["Acctg"]
["Acctg"]
["Acctg"]
["Acctg"]
["Acctg"]
["Acctg"]
["Acctg"]
["Acctg"]
["Acctg"]
["Acctg"]
["Acctg"]
["Acctg"]
["Acctg"]
["Acctg"]
["Acctg"]
["Acctg"]
["Acctg"]
["Acctg"]
["Acctg"]
["Acctg"]
["Acctg"]
["Acctg"]
["Acctg"]
["Acctg"]
["Acctg"]
["Acctg"]
["Acctg"]
["Acctg"]
["Acctg"]
["Acctg"]
["Acctg"]
["Acctg"]
["Acctg"]
["Acctg"]
["Acctg"]
["Acctg"]
["Acctg"]
["Acctg"]
["Acctg"]
["Acctg"]
["Acctg"]
["Acctg"]
["Acctg"]
["Acctg"]
["Acctg"]
["Acctg"]
["Acctg"]
["Acctg"]
["Acctg"]
["Acctg"]
["Acctg"]
["Acctg"]
["Acctg"]
["Acctg"]
["Acctg"]
["Acctg"]
["Acctg"]
["Acctg"]
["Acctg"]
["Acctg"]
["Acctg"]
["Acctg"]
["Acctg"]
["Acctg"]
["Acctg"]
["Acctg"]
["Acctg"]
["Acctg"]
["Acctg"]
["Acctg"]
["Acctg"]
["Acctg"]
["Acctg"]
["Acctg"]
["Acctg"]
["Acctg"]
["Acctg"]
["Acctg"]
["Acctg"]
["Acctg"]
["Acctg"]
["Acctg"]
["Acctg"]
["Acctg"]
["Acctg"]
["Acctg"]
["Acctg"]
["Acctg"]
["Acctg"]
["Acctg"]
["Acctg"]
["Acctg"]
["Acctg"]
["Acctg"]
["Acctg"]
["Acctg"]
["Acctg"]
["Acctg"]
["Acctg"]
["Acctg"]
["Acctg"]
["Acctg"]
["Acctg"]
["Acctg"]
["Acctg"]
["Acctg"]
["Acctg"]
["Acctg"]
["Acctg"]
["Acctg"]
["Acctg"]
["Acctg"]
["Acctg"]
["Acctg"]
["Acctg"]
["Acctg"]
["Acctg"]
["Acctg"]
["Acctg"]
["Acctg"]
["Acctg"]
["Acctg"]
["Acctg"]
["Acctg"]
["Acctg"]
["Acctg"]
["Acctg"]
["Acctg"]
["Acctg"]
["Acctg"]
["Acctg"]
["Acctg"]
["Acctg"]
["Acctg"]
["Acctg"]
["Acctg"]
["Acctg"]
["Acctg"]
["Acctg"]
["Acctg"]
["Acctg"]
["Acctg"]
["Acctg"]
["Acctg"]
["Acctg"]
["Acctg"]
["Acctg"]
["Acctg"]
["Acctg"]
["Acctg"]
["Acctg"]
["Acctg"]
["Acctg"]
["Acctg"]
["Acctg"]
["Acctg"]
["Acctg"]
["Acctg"]
["Acctg"]
["Acctg"]
["Acctg"]
["Acctg"]
["Acctg"]
["Acctg"]
["Acctg"]
["Acctg"]
["Acctg"]
["Acctg"]
["Acctg"]
["Acctg"]
["Acctg"]
["Acctg"]
["Acctg"]
["Acctg"]
["Acctg"]
["Acctg"]
["Acctg"]
["Acctg"]
["Acctg"]
["Acctg"]
["Acctg"]
["Acctg"]
["Acctg"]
["Acctg"]
["Acctg"]
["Acctg"]
["Acctg"]
["Acctg"]
["Acctg"]
["Acctg"]
["Acctg"]
["Acctg"]
["Acctg"]
["Acctg"]
["Acctg"]
["Acctg"]
["Acctg"]
["Acctg"]
["Acctg"]
["Acctg"]
["Acctg"]
["Acctg"]
["Acctg"]
["Acctg"]
["Acctg"]
["Acctg"]
["Acctg"]
["Acctg"]
["Acctg"]
["Acctg"]
["Acctg"]
["Acctg"]
["Acctg"]
["Acctg"]
["Acctg"]
["Acctg"]
["Acctg"]
["Acctg"]
["Acctg"]
["Acctg"]
["Acctg"]
["Acctg"]
["Acctg"]
["Acctg"]
["Acctg"]
["Acctg"]
["Acctg"]
["Acctg"]
["Acctg"]
["Acctg"]
["Acctg"]
["Acctg"]
["Acctg"]
["Acctg"]
["Acctg"]
["Acctg"]
["Acctg"]
["Acctg"]
["Acctg"]
["Acctg"]
["Acctg"]
["Acctg"]
["Acctg"]
["Acctg"]
["Acctg"]
["Acctg"]
["Acctg"]
["Acctg"]
["Acctg"]
["Acctg"]
["Acctg"]
["Acctg"]
["Acctg"]
["Acctg"]
["Acctg"]
["Acctg"]
["Acctg"]
["Acctg"]
["Acctg"]
["Acctg"]
["Acctg"]
["Acctg"]
["Acctg"]
["Acctg"]
["Acctg"]
["Acctg"]
["Acctg"]
["Acctg"]
["Acctg"]
["Acctg"]
["Acctg"]
["Acctg"]
["Acctg"]
["Acctg"]
["Acctg"]
["Acctg"]
["Acctg"]
["Acctg"]
["Acctg"]
["Acctg"]
["Acctg"]
["Acctg"]
["Acctg"]
["Acctg"]
["Acctg"]
["Acctg"]
["Acctg"]
["Acctg"]
["Acctg"]
["Acctg"]
["Acctg"]
["Acctg"]
["Acctg"]
["Acctg"]
["Acctg"]
["Acctg"]
["Acctg"]
["Acctg"]
["Acctg"]
["Acctg"]
["Acctg"]
["Acctg"]
["Acctg"]
["Acctg"]
["Acctg"]
["Acctg"]
["Acctg"]
["Acctg"]
["Acctg"]
["Acctg"]
["Acctg"]
["Acctg"]
["Acctg"]
["Acctg"]
["Acctg"]
["Acctg"]
["Acctg"]
["Acctg"]
["Acctg"]
["Acctg"]
["Acctg"]
["Acctg"]
["Acctg"]
["Acctg"]
["Acctg"]
["Acctg"]
["Acctg"]
["Acctg"]
["Acctg"]
["Acctg"]
["Acctg"]
["Acctg"]
["Acctg"]
["Acctg"]
["Acctg"]
["Acctg"]
["Acctg"]
["Acctg"]
["Acctg"]
["Acctg"]
["Acctg"]
["Acctg"]
["Acctg"]
["Acctg"]
["Acctg"]
["Acctg"]
["Acctg"]
["Acctg"]
["Acctg"]
["Acctg"]
["Acctg"]
["Acctg"]
["Acctg"]
["Acctg"]
["Acctg"]
["Acctg"]
["Acctg"]
["Acctg"]
["Acctg"]
["Acctg"]
["Acctg"]
["Acctg"]
["Acctg"]
["Acctg"]
["Acctg"]
["Acctg"]
["Acctg"]
["Acctg"]
["Acctg"]
["Acctg"]
["Acctg"]
["Acctg"]
["Acctg"]
["Acctg"]
["Acctg"]
["Acctg"]
["Acctg"]
["Acctg"]
["Acctg"]
["Acctg"]
["Acctg"]
["Acctg"]
["Acctg"]
["Acctg"]
["Acctg"]
["Acctg"]
["Acctg"]
["Acctg"]
["Acctg"]
["Acctg"]
["Acctg"]
["Acctg"]
["Acctg"]
["Acctg"]
["Acctg"]
["Acctg"]
["Acctg"]
["Acctg"]
["Acctg"]
["Acctg"]
["Acctg"]
["Acctg"]
["Acctg"]
["Acctg"]
["Acctg"]
["Acctg"]
["Acctg"]
["Acctg"]
["Acctg"]
["Acctg"]
["Acctg"]
["Acctg"]
["Acctg"]
["Acctg"]
["Acctg"]
["Acctg"]
["Acctg"]
["Acctg"]
["Acctg"]
["Acctg"]
["Acctg"]
["Acctg"]
["Acctg"]
["Acctg"]
["Acctg"]
["Acctg"]
["Acctg"]
["Acctg"]
["Acctg"]
["Acctg"]
["Acctg"]
["Acctg"]
["Acctg"]
["Acctg"]
["Acctg"]
["Acctg"]
["Acctg"]
["Acctg"]
["Acctg"]
["Acctg"]
["Acctg"]
["Acctg"]
["Acctg"]
["Acctg"]
["Acctg"]
["Acctg"]
["Acctg"]
["Acctg"]
["Acctg"]
["Acctg"]
["Acctg"]
["Acctg"]
["Acctg"]
["Acctg"]
["Acctg"]
["Acctg"]
["Acctg"]
["Acctg"]
["Acctg"]
["Acctg"]
["Acctg"]
["Acctg"]
["Acctg"]
["Acctg"]
["Acctg"]
["Acctg"]
["Acctg"]
["Acctg"]
["Acctg"]
["Acctg"]
["Acctg"]
["Acctg"]
["Acctg"]
["Acctg"]
["Acctg"]
["Acctg"]
["Acctg"]
["Acctg"]
["Acctg"]
["Acctg"]
["Acctg"]
["Acctg"]
["Acctg"]
["Acctg"]
["Acctg"]
["Acctg"]
["Acctg"]
["Acctg"]
["Acctg"]
["Acctg"]
["Acctg"]
["Acctg"]
["Acctg"]
["Acctg"]
["Acctg"]
["Acctg"]
["Acctg"]
["Acctg"]
["Acctg"]
["Acctg"]
["Acctg"]
["Acctg"]
["Acctg"]
["Acctg"]
["Acctg"]
["Acctg"]
["Acctg"]
["Acctg"]
["Acctg"]
["Acctg"]
["Acctg"]
["Acctg"]
["Acctg"]
["Acctg"]
["Acctg"]
["Acctg"]
["Acctg"]
["Acctg"]
["Acctg"]
["Acctg"]
["Acctg"]
["Acctg"]
["Acctg"]
["Acctg"]
["Acctg"]
["Acctg"]
["Acctg"]
["Acctg"]
["Acctg"]
["Acctg"]
["Acctg"]
["Acctg"]
["Acctg"]
["Acctg"]
["Acctg"]
["Acctg"]
["Acctg"]
["Acctg"]
["Acctg"]
["Acctg"]
["Acctg"]
["Acctg"]
["Acctg"]
["Acctg"]
["Acctg"]
["Acctg"]
["Acctg"]
["Acctg"]
["Acctg"]
["Acctg"]
["Acctg"]
["Acctg"]
["Acctg"]
["Acctg"]
["Acctg"]
["Acctg"]
["Acctg"]
["Acctg"]
["Acctg"]
["Acctg"]
["Acctg"]
["Acctg"]
["Acctg"]
["Acctg"]
["Acctg"]
["Acctg"]
["Acctg"]
["Acctg"]
["Acctg"]
["Acctg"]
["Acctg"]
["Acctg"]
["Acctg"]
["Acctg"]
["Acctg"]
["Acctg"]
["Acctg"]
["Acctg"]
["Acctg"]
["Acctg"]
["Acctg"]
["Acctg"]
["Acctg"]
["Acctg"]
["Acctg"]
["Acctg"]
["Acctg"]
["Acctg"]
["Acctg"]
["Acctg"]
["Acctg"]
["Acctg"]
["Acctg"]
["Acctg"]
["Acctg"]
["Acctg"]
["Acctg"]
["Acctg"]
["Acctg"]
["Acctg"]
["Acctg"]
["Acctg"]
["Acctg"]
["Acctg"]
["Acctg"]
["Acctg"]
["Acctg"]
["Acctg"]
["Acctg"]
["Acctg"]
["Acctg"]
["Acctg"]
["Acctg"]
["Acctg"]
["Acctg"]
["Acctg"]
["Acctg"]
["Acctg"]
["Acctg"]
["Acctg"]
["Acctg"]
["Acctg"]
["Acctg"]
["Acctg"]
["Acctg"]
["Acctg"]
["Acctg"]
["Acctg"]
["Acctg"]
["Acctg"]
["Acctg"]
["Acctg"]
["Acctg"]
["Acctg"]
["Acctg"]
["Acctg"]
["Acctg"]
["Acctg"]
["Acctg"]
["Acctg"]
["Acctg"]
["Acctg"]
["Acctg"]
["Acctg"]
["Acctg"]
["Acctg"]
["Acctg"]
["Acctg"]
["Acctg"]
["Acctg"]
["Acctg"]
["Acctg"]
["Acctg"]
["Acctg"]
["Acctg"]
["Acctg"]
["Acctg"]
["Acctg"]
["Acctg"]
["Acctg"]
["Acctg"]
["Acctg"]
["Acctg"]
["Acctg"]
["Acctg"]
["Acctg"]
["Acctg"]
["Acctg"]
["Acctg"]
["Acctg"]
["Acctg"]
["Acctg"]
["Acctg"]
["Acctg"]
["Acctg"]
["Acctg"]
["Acctg"]
["Acctg"]
["Acctg"]
["Acctg"]
["Acctg"]
["Acctg"]
["Acctg"]
["Acctg"]
["Acctg"]
["Acctg"]
["Acctg"]
["Acctg"]
["Acctg"]
["Acctg"]
["Acctg"]
["Acctg"]
["Acctg"]
["Acctg"]
["Acctg"]
["Acctg"]
["Acctg"]
["Acctg"]
["Acctg"]
["Acctg"]
["Acctg"]
["Acctg"]
["Acctg"]
["Acctg"]
["Acctg"]
["Acctg"]
["Acctg"]
["Acctg"]
["Acctg"]
["Acctg"]
["Acctg"]
["Acctg"]
["Acctg"]
["Acctg"]
["Acctg"]
["Acctg"]
["Acctg"]
["Acctg"]
["Acctg"]
["Acctg"]
["Acctg"]
["Acctg"]
["Acctg"]
["Acctg"]
["Acctg"]
["Acctg"]
["Acctg"]
["Acctg"]
["Acctg"]
["Acctg"]
["Acctg"]
["Acctg"]
["Acctg"]
["Acctg"]
["Acctg"]
["Acctg"]
["Acctg"]
["Acctg"]
["Acctg"]
["Acctg"]
["Acctg"]
["Acctg"]
["Acctg"]
["Acctg"]
["Acctg"]
["Acctg"]
["Acctg"]
["Acctg"]
["Acctg"]
["Acctg"]
["Acctg"]
["Acctg"]
["Acctg"]
["Acctg"]
["Acctg"]
["Acctg"]
["Acctg"]
["Acctg"]
["Acctg"]
["Acctg"]
["Acctg"]
["Acctg"]
["Acctg"]
["Acctg"]
["Acctg"]
["Acctg"]
["Acctg"]
["Acctg"]
["Acctg"]
["Acctg"]
["Acctg"]
["Acctg"]
["Acctg"]
["Acctg"]
["Acctg"]
["Acctg"]
["Acctg"]
["Acctg"]
["Acctg"]
["Acctg"]
["Acctg"]
["Acctg"]
["Acctg"]
["Acctg"]
["Acctg"]
["Acctg"]
["Acctg"]
["Acctg"]
["Acctg"]
["Acctg"]
["Acctg"]
["Acctg"]
["Acctg"]
["Acctg"]
["Acctg"]
["Acctg"]
["Acctg"]
["Acctg"]
["Acctg"]
["Acctg"]
["Acctg"]
["Acctg"]
["Acctg"]
["Acctg"]
["Acctg"]
["Acctg"]
["Acctg"]
["Acctg"]
["Acctg"]
["Acctg"]
["Acctg"]
["Acctg"]
["Acctg"]
["Acctg"]
["Acctg"]
["Acctg"]
["Acctg"]
["Acctg"]
["Acctg"]
["Acctg"]
["Acctg"]
["Acctg"]
["Acctg"]
["Acctg"]
["Acctg"]
["Acctg"]
["Acctg"]
["Acctg"]
["Acctg"]
["Acctg"]
["Acctg"]
["Acctg"]
["Acctg"]
["Acctg"]
["Acctg"]
["Acctg"]
["Acctg"]
["Acctg"]
["Acctg"]
["Acctg"]
["Acctg"]
["Acctg"]
["Acctg"]
["Acctg"]
["Acctg"]
["Acctg"]
["Acctg"]
["Acctg"]
["Acctg"]
["Acctg"]
["Acctg"]
["Acctg"]
["Acctg"]
["Acctg"]
["Acctg"]
["Acctg"]
["Acctg"]
["Acctg"]
["Acctg"]
["Acctg"]
["Acctg"]
["Acctg"]
["Acctg"]
["Acctg"]
["Acctg"]
["Acctg"]
["Acctg"]
["Acctg"]
["Acctg"]
["Acctg"]
["Acctg"]
["Acctg"]
["Acctg"]
["Acctg"]
["Acctg"]
["Acctg"]
["Acctg"]
["Acctg"]
["Acctg"]
["Acctg"]
["Acctg"]
["Acctg"]
["Acctg"]
["Acctg"]
["Acctg"]
["Acctg"]
["Acctg"]
["Acctg"]
["Acctg"]
["Acctg"]
["Acctg"]
["Acctg"]
["Acctg"]
["Acctg"]
["Acctg"]
["Acctg"]
["Acctg"]
["Acctg"]
["Acctg"]
["Acctg"]
["Acctg"]
["Acctg"]
["Acctg"]
["Acctg"]
["Acctg"]
["Acctg"]
["Acctg"]
["Acctg"]
["Acctg"]
["Acctg"]
["Acctg"]
["Acctg"]
["Acctg"]
["Acctg"]
["Acctg"]
["Acctg"]
["Acctg"]
["Acctg"]
["Acctg"]
["Acctg"]
["Acctg"]
["Acctg"]
["Acctg"]
["Acctg"]
["Acctg"]
["Acctg"]
["Acctg"]
["Acctg"]
["Acctg"]
["Acctg"]
["Acctg"]
["Acctg"]
["Acctg"]
["Acctg"]
["Acctg"]
["Acctg"]
["Acctg"]
["Acctg"]
["Acctg"]
["Acctg"]
["Acctg"]
["Acctg"]
["Acctg"]
["Acctg"]
["Acctg"]
["Acctg"]
["Acctg"]
["Acctg"]
["Acctg"]
["Acctg"]
["Acctg"]
["Acctg"]
["Acctg"]
["Acctg"]
["Acctg"]
["Acctg"]
["Acctg"]
["Acctg"]
["Acctg"]
["Acctg"]
["Acctg"]
["Acctg"]
["Acctg"]
["Acctg"]
["Acctg"]
["Acctg"]
["Acctg"]
["Acctg"]
["Acctg"]
["Acctg"]
["Acctg"]
["Acctg"]
["Acctg"]
["Acctg"]
["Acctg"]
["Acctg"]
["Acctg"]
["Acctg"]
["Acctg"]
["Acctg"]
["Acctg"]
["Acctg"]
["Acctg"]
["Acctg"]
["Acctg"]
["Acctg"]
["Acctg"]
["Acctg"]
["Acctg"]
["Acctg"]
["Acctg"]
["Acctg"]
["Acctg"]
["Acctg"]
["Acctg"]
["Acctg"]
["Acctg"]
["Acctg"]
["Acctg"]
["Acctg"]
["Acctg"]
["Acctg"]
["Acctg"]
["Acctg"]
["Acctg"]
["Acctg"]
["Acctg"]
["Acctg"]
["Acctg"]
["Acctg"]
["Acctg"]
["Acctg"]
["Acctg"]
["Acctg"]
["Acctg"]
["Acctg"]
["Acctg"]
["Acctg"]
["Acctg"]
["Acctg"]
["Acctg"]
["Acctg"]
["Acctg"]
["Acctg"]
["Acctg"]
["Acctg"]
["Acctg"]
["Acctg"]
["Acctg"]
["Acctg"]
["Acctg"]
["Acctg"]
["Acctg"]
["Acctg"]
["Acctg"]
["Acctg"]
["Acctg"]
["Acctg"]
["Acctg"]
["Acctg"]
["Acctg"]
["Acctg"]
["Acctg"]
["Acctg"]
["Acctg"]
["Acctg"]
["Acctg"]
["Acctg"]
["Acctg"]
["Acctg"]
["Acctg"]
["Acctg"]
["Acctg"]
["Acctg"]
["Acctg"]
["Acctg"]
["Acctg"]
["Acctg"]
["Acctg"]
["Acctg"]
["Acctg"]
["Acctg"]
["Acctg"]
["Acctg"]
["Acctg"]
["Acctg"]
["Acctg"]
["Acctg"]
["Acctg"]
["Acctg"]
["Acctg"]
["Acctg"]
["Acctg"]
["Acctg"]
["Acctg"]
["Acctg"]
["Acctg"]
["Acctg"]
["Acctg"]
["Acctg"]
["Acctg"]
["Acctg"]
["Acctg"]
["Acctg"]
["Acctg"]
["Acctg"]
["Acctg"]
["Acctg"]
["Acctg"]
["Acctg"]
["Acctg"]
["Acctg"]
["Acctg"]
["Acctg"]
["Acctg"]
["Acctg"]
["Acctg"]
["Acctg"]
["Acctg"]
["Acctg"]
["Acctg"]
["Acctg"]
["Acctg"]
["Acctg"]
["Acctg"]
["Acctg"]
["Acctg"]
["Acctg"]
["Acctg"]
["Acctg"]
["Acctg"]
["Acctg"]
["Acctg"]
["Acctg"]
["Acctg"]
["Acctg"]
["Acctg"]
["Acctg"]
["Acctg"]
["Acctg"]
["Acctg"]
["Acctg"]
["Acctg"]
["Acctg"]
["Acctg"]
["Acctg"]
["Acctg"]
["Acctg"]
["Acctg"]
["Acctg"]
["Acctg"]
["Acctg"]
["Acctg"]
["Acctg"]
["Acctg"]
["Acctg"]
["Acctg"]
["Acctg"]
["Acctg"]
["Acctg"]
["Acctg"]
["Acctg"]
["Acctg"]
["Acctg"]
["Acctg"]
["Acctg"]
["Acctg"]
["Acctg"]
["Acctg"]
["Acctg"]
["Acctg"]
["Acctg"]
["Acctg"]
["Acctg"]
["Acctg"]
["Acctg"]
["Acctg"]
["Acctg"]
["Acctg"]
["Acctg"]
["Acctg"]
["Acctg"]
["Acctg"]
["Acctg"]
["Acctg"]
["Acctg"]
["Acctg"]
["Acctg"]
["Acctg"]
["Acctg"]
["Acctg"]
["Acctg"]
["Acctg"]
["Acctg"]
["Acctg"]
["Acctg"]
["Acctg"]
["Acctg"]
["Acctg"]
["Acctg"]
["Acctg"]
["Acctg"]
["Acctg"]
["Acctg"]
["Acctg"]
["Acctg"]
["Acctg"]
["Acctg"]
["Acctg"]
["Acctg"]
["Acctg"]
["Acctg"]
["Acctg"]
["Acctg"]
["Acctg"]
["Acctg"]
["Acctg"]
["Acctg"]
["Acctg"]
["Acctg"]
["Acctg"]
["Acctg"]
["Acctg"]
["Acctg"]
["Acctg"]
["Acctg"]
["Acctg"]
["Acctg"]
["Acctg"]
["Acctg"]
["Acctg"]
["Acctg"]
["Acctg"]
["Acctg"]
["Acctg"]
["Acctg"]
["Acctg"]
["Acctg"]
["Acctg"]
["Acctg"]
["Acctg"]
["Acctg"]
["Acctg"]
["Acctg"]
["Acctg"]
["Acctg"]
["Acctg"]
["Acctg"]
["Acctg"]
["Acctg"]
["Acctg"]
["Acctg"]
["Acctg"]
["Acctg"]
["Acctg"]
["Acctg"]
["Acctg"]
["Acctg"]
["Acctg"]
["Acctg"]
["Acctg"]
["Acctg"]
["Acctg"]
["Acctg"]
["Acctg"]
["Acctg"]
["Acctg"]
["Acctg"]
["Acctg"]
["Bowling department"]
["Bowling department"]
["Bowling department"]
["Bowling department"]
["Bowling department"]
["Bowling department"]
["Bowling department"]
["Bowling department"]
["Bowling department"]
["Bowling department"]
["Bowling department"]
["Bowling department"]
["Bowling department"]
["Bowling department"]
["Bowling department"]
["Bowling department"]
["Bowling department"]
["Bowling department"]
["Bowling department"]
["Bowling department"]
["Bowling department"]
["Bowling department"]
["Bowling department"]
["Bowling department"]
["Bowling department"]
["Bowling department"]
["Bowling department"]
["Bowling department"]
["Bowling department"]
["Bowling department"]
["Bowling department"]
["Bowling department"]
["Bowling department"]
["Bowling department"]
["Bowling department"]
["Bowling department"]
["Bowling department"]
["Bowling department"]
["Bowling department"]
["Bowling department"]
["Bowling department"]
["Bowling department"]
["Bowling department"]
["Bowling department"]
["Bowling department"]
["Bowling department"]
["Bowling department"]
["Bowling department"]
["Bowling department"]
["Bowling department"]
["Bowling department"]
["Bowling department"]
["Bowling department"]
["Bowling department"]
["Bowling department"]
["Bowling department"]
["Bowling department"]
["Bowling department"]
["Bowling department"]
["Bowling department"]
["Bowling department"]
["Bowling department"]
["Bowling department"]
["Bowling department"]
["Bowling department"]
["Bowling department"]
["Bowling department"]
["Bowling department"]
["Bowling department"]
["Bowling department"]
["Bowling department"]
["Bowling department"]
["Bowling department"]
["Bowling department"]
["Bowling department"]
["Bowling department"]
["Bowling department"]
["Bowling department"]
["Bowling department"]
["Bowling department"]
["Bowling department"]
["Bowling department"]
["Bowling department"]
["Bowling department"]
["Bowling department"]
["Bowling department"]
["Bowling department"]
["Bowling department"]
["Bowling department"]
["Bowling department"]
["Bowling department"]
["Bowling department"]
["Bowling department"]
["Bowling department"]
["Bowling department"]
["Bowling department"]
["Bowling department"]
["Bowling department"]
["Bowling department"]
["Bowling department"]
["Bowling department"]
["Bowling department"]
["Bowling department"]
["Bowling department"]
["Bowling department"]
["Bowling department"]
["Bowling department"]
["Bowling department"]
["Bowling department"]
["Bowling department"]
["Bowling department"]
["Bowling department"]
["Bowling department"]
["Bowling department"]
["Bowling department"]
["Bowling department"]
["Bowling department"]
["Bowling department"]
["Bowling department"]
["Bowling department"]
["Bowling department"]
["Bowling department"]
["Bowling department"]
["Bowling department"]
["Bowling department"]
["Bowling department"]
["Bowling department"]
["Bowling department"]
["Bowling department"]
["Bowling department"]
["Bowling department"]
["Bowling department"]
["Bowling department"]
["Bowling department"]
["Bowling department"]
["Bowling department"]
["Bowling department"]
["Bowling department"]
["Bowling department"]
["Bowling department"]
["Bowling department"]
["Bowling department"]
["Bowling department"]
["Bowling department"]
["Bowling department"]
["Bowling department"]
["Bowling department"]
["Bowling department"]
["Bowling department"]
["Bowling department"]
["Bowling department"]
["Bowling department"]
["Bowling department"]
["Bowling department"]
["Bowling department"]
["Bowling department"]
["Bowling department"]
["Bowling department"]
["Bowling department"]
["Bowling department"]
["Bowling department"]
["Bowling department"]
["Bowling department"]
["Bowling department"]
["Bowling department"]
["Bowling department"]
["Bowling department"]
["Bowling department"]
["Bowling department"]
["Bowling department"]
["Bowling department"]
["Bowling department"]
["Bowling department"]
["Bowling department"]
["Bowling department"]
["Bowling department"]
["Bowling department"]
["Bowling department"]
["Bowling department"]
["Bowling department"]
["Bowling department"]
["Bowling department"]
["Bowling department"]
["Bowling department"]
["Bowling department"]
["Bowling department"]
["Bowling department"]
["Bowling department"]
["Bowling department"]
["Bowling department"]
["Bowling department"]
["Bowling department"]
["Bowling department"]
["Bowling department"]
["Bowling department"]
["Bowling department"]
["Bowling department"]
["Bowling department"]
["Bowling department"]
["Bowling department"]
["Bowling department"]
["Bowling department"]
["Bowling department"]
["Bowling department"]
["Bowling department"]
["Bowling department"]
["Bowling department"]
["Bowling department"]
["Bowling department"]
["Bowling department"]
["Bowling department"]
["Bowling department"]
["Bowling department"]
["Bowling department"]
["Bowling department"]
["Bowling department"]
["Bowling department"]

{"sheet":"Merge","index":24,"n_rows":1,"n_cols":7,"rows_kept":1,"cut":false,"hidden":false,"merged":[[5,0,5,4],[0,0,0,4],[1,0,1,4],[2,0,2,4],[3,0,3,4],[4,0,4,4],[17,0,17,4],[6,0,6,4],[7,0,7,4],[8,0,8,4],[9,0,9,4],[10,0,10,4],[11,0,11,4],[12,0,12,4],[13,0,13,4],[14,0,14,4],[15,0,15,4],[16,0,16,4],[29,0,29,4],[18,0,18,4],[19,0,19,4],[20,0,20,4],[21,0,21,4],[22,0,22,4],[23,0,23,4],[24,0,24,4],[25,0,25,4],[26,0,26,4],[27,0,27,4],[28,0,28,4],[41,0,41,4],[30,0,30,4],[31,0,31,4],[32,0,32,4],[33,0,33,4],[34,0,34,4],[35,0,35,4],[36,0,36,4],[37,0,37,4],[38,0,38,4],[39,0,39,4],[40,0,40,4],[53,0,53,4],[42,0,42,4],[43,0,43,4],[44,0,44,4],[45,0,45,4],[46,0,46,4],[47,0,47,4],[48,0,48,4],[49,0,49,4],[50,0,50,4],[51,0,51,4],[52,0,52,4],[65,0,65,4],[54,0,54,4],[55,0,55,4],[56,0,56,4],[57,0,57,4],[58,0,58,4],[59,0,59,4],[60,0,60,4],[61,0,61,4],[62,0,62,4],[63,0,63,4],[64,0,64,4],[77,0,77,4],[66,0,66,4],[67,0,67,4],[68,0,68,4],[69,0,69,4],[70,0,70,4],[71,0,71,4],[72,0,72,4],[73,0,73,4],[74,0,74,4],[75,0,75,4],[76,0,76,4],[89,0,89,4],[78,0,78,4],[79,0,79,4],[80,0,80,4],[81,0,81,4],[82,0,82,4],[83,0,83,4],[84,0,84,4],[85,0,85,4],[86,0,86,4],[87,0,87,4],[88,0,88,4],[96,0,96,4],[97,0,97,4],[98,0,98,4],[99,0,99,4],[90,0,90,4],[91,0,91,4],[92,0,92,4],[93,0,93,4],[94,0,94,4],[95,0,95,4]]}
[null,null,null,null,null,null,"How did I merge each row A:E?"]

{"sheet":"Where are Row#s","index":25,"n_rows":0,"n_cols":0,"rows_kept":0,"cut":false,"hidden":false,"merged":[]}

{"sheet":"Match Wildcard","index":26,"n_rows":88,"n_cols":5,"rows_kept":88,"cut":false,"hidden":false,"merged":[]}
["Dept","Amt","% of Total"]
["Dept1",872,{"$f":"B2/INDEX(B:B,MATCH(\"*Total\",OFFSET(A2,0,0,1000,1),0)+ROW()-1)","v":9.0597402597402593E-2},null,{"$f":"B2/INDEX(B:B,MATCH(\"*Total\",OFFSET(A2,0,0,1000,1),0)+ROW()-1)","v":9.0597402597402593E-2}]
["Dept1",252,2.6181818181818181E-2,null,{"$f":"B3/INDEX(B:B,MATCH(\"*Total\",OFFSET(A3,0,0,1000,1),0)+ROW()-1)","v":2.6181818181818181E-2}]
["Dept1",304,3.1584415584415583E-2,null,{"$f":"B4/INDEX(B:B,MATCH(\"*Total\",OFFSET(A4,0,0,1000,1),0)+ROW()-1)","v":3.1584415584415583E-2}]
["Dept1",900,9.350649350649351E-2,null,{"$f":"B5/INDEX(B:B,MATCH(\"*Total\",OFFSET(A5,0,0,1000,1),0)+ROW()-1)","v":9.350649350649351E-2}]
["Dept1",444,4.6129870129870132E-2,null,{"$f":"B6/INDEX(B:B,MATCH(\"*Total\",OFFSET(A6,0,0,1000,1),0)+ROW()-1)","v":4.6129870129870132E-2}]
["Dept1",993,0.10316883116883117,null,{"$f":"B7/INDEX(B:B,MATCH(\"*Total\",OFFSET(A7,0,0,1000,1),0)+ROW()-1)","v":0.10316883116883117}]
["Dept1",70,7.2727272727272727E-3,null,{"$f":"B8/INDEX(B:B,MATCH(\"*Total\",OFFSET(A8,0,0,1000,1),0)+ROW()-1)","v":7.2727272727272727E-3}]
["Dept1",430,4.4675324675324674E-2,null,{"$f":"B9/INDEX(B:B,MATCH(\"*Total\",OFFSET(A9,0,0,1000,1),0)+ROW()-1)","v":4.4675324675324674E-2}]
["Dept1",212,2.2025974025974025E-2,null,{"$f":"B10/INDEX(B:B,MATCH(\"*Total\",OFFSET(A10,0,0,1000,1),0)+ROW()-1)","v":2.2025974025974025E-2}]
["Dept1",698,7.2519480519480525E-2,null,{"$f":"B11/INDEX(B:B,MATCH(\"*Total\",OFFSET(A11,0,0,1000,1),0)+ROW()-1)","v":7.2519480519480525E-2}]
["Dept1",871,9.0493506493506487E-2,null,{"$f":"B12/INDEX(B:B,MATCH(\"*Total\",OFFSET(A12,0,0,1000,1),0)+ROW()-1)","v":9.0493506493506487E-2}]
["Dept1",177,1.838961038961039E-2,null,{"$f":"B13/INDEX(B:B,MATCH(\"*Total\",OFFSET(A13,0,0,1000,1),0)+ROW()-1)","v":1.838961038961039E-2}]
["Dept1",160,1.6623376623376623E-2,null,{"$f":"B14/INDEX(B:B,MATCH(\"*Total\",OFFSET(A14,0,0,1000,1),0)+ROW()-1)","v":1.6623376623376623E-2}]
["Dept1",606,6.2961038961038968E-2,null,{"$f":"B15/INDEX(B:B,MATCH(\"*Total\",OFFSET(A15,0,0,1000,1),0)+ROW()-1)","v":6.2961038961038968E-2}]
["Dept1",589,6.1194805194805198E-2,null,{"$f":"B16/INDEX(B:B,MATCH(\"*Total\",OFFSET(A16,0,0,1000,1),0)+ROW()-1)","v":6.1194805194805198E-2}]
["Dept1",869,9.0285714285714289E-2,null,{"$f":"B17/INDEX(B:B,MATCH(\"*Total\",OFFSET(A17,0,0,1000,1),0)+ROW()-1)","v":9.0285714285714289E-2}]
["Dept1",384,3.9896103896103895E-2,null,{"$f":"B18/INDEX(B:B,MATCH(\"*Total\",OFFSET(A18,0,0,1000,1),0)+ROW()-1)","v":3.9896103896103895E-2}]
["Dept1",794,8.2493506493506494E-2,null,{"$f":"B19/INDEX(B:B,MATCH(\"*Total\",OFFSET(A19,0,0,1000,1),0)+ROW()-1)","v":8.2493506493506494E-2}]
["Dept1 Total",9625,1,null,{"$f":"B20/INDEX(B:B,MATCH(\"*Total\",OFFSET(A20,0,0,1000,1),0)+ROW()-1)","v":1}]
["Dept2",340,0.10471204188481675,null,{"$f":"B21/INDEX(B:B,MATCH(\"*Total\",OFFSET(A21,0,0,1000,1),0)+ROW()-1)","v":0.10471204188481675}]
["Dept2",762,0.23467816445950107,null,{"$f":"B22/INDEX(B:B,MATCH(\"*Total\",OFFSET(A22,0,0,1000,1),0)+ROW()-1)","v":0.23467816445950107}]
["Dept2",426,0.13119802894979982,null,{"$f":"B23/INDEX(B:B,MATCH(\"*Total\",OFFSET(A23,0,0,1000,1),0)+ROW()-1)","v":0.13119802894979982}]
["Dept2",367,0.11302740991684632,null,{"$f":"B24/INDEX(B:B,MATCH(\"*Total\",OFFSET(A24,0,0,1000,1),0)+ROW()-1)","v":0.11302740991684632}]
["Dept2",207,6.3751154912226674E-2,null,{"$f":"B25/INDEX(B:B,MATCH(\"*Total\",OFFSET(A25,0,0,1000,1),0)+ROW()-1)","v":6.3751154912226674E-2}]
["Dept2",122,3.7573144441022485E-2,null,{"$f":"B26/INDEX(B:B,MATCH(\"*Total\",OFFSET(A26,0,0,1000,1),0)+ROW()-1)","v":3.7573144441022485E-2}]
["Dept2",564,0.17369879889128426,null,{"$f":"B27/INDEX(B:B,MATCH(\"*Total\",OFFSET(A27,0,0,1000,1),0)+ROW()-1)","v":0.17369879889128426}]
["Dept2",459,0.14136125654450263,null,{"$f":"B28/INDEX(B:B,MATCH(\"*Total\",OFFSET(A28,0,0,1000,1),0)+ROW()-1)","v":0.14136125654450263}]
["Dept2 Total",3247,1,null,{"$f":"B29/INDEX(B:B,MATCH(\"*Total\",OFFSET(A29,0,0,1000,1),0)+ROW()-1)","v":1}]
["Dept3",671,4.395388444910258E-2,null,{"$f":"B30/INDEX(B:B,MATCH(\"*Total\",OFFSET(A30,0,0,1000,1),0)+ROW()-1)","v":4.395388444910258E-2}]
["Dept3",54,3.5372723699724877E-3,null,{"$f":"B31/INDEX(B:B,MATCH(\"*Total\",OFFSET(A31,0,0,1000,1),0)+ROW()-1)","v":3.5372723699724877E-3}]
["Dept3",546,3.5765753963055154E-2,null,{"$f":"B32/INDEX(B:B,MATCH(\"*Total\",OFFSET(A32,0,0,1000,1),0)+ROW()-1)","v":3.5765753963055154E-2}]
["Dept3",192,1.2576968426568845E-2,null,{"$f":"B33/INDEX(B:B,MATCH(\"*Total\",OFFSET(A33,0,0,1000,1),0)+ROW()-1)","v":1.2576968426568845E-2}]
["Dept3",467,{"$f":"B34/INDEX(B:B,MATCH(\"*Total\",OFFSET(A34,0,0,1000,1),0)+ROW()-1)","v":3.0590855495873183E-2},null,{"$f":"B34/INDEX(B:B,MATCH(\"*Total\",OFFSET(A34,0,0,1000,1),0)+ROW()-1)","v":3.0590855495873183E-2}]
["Dept3",718,4.7032621511856415E-2,null,{"$f":"B35/INDEX(B:B,MATCH(\"*Total\",OFFSET(A35,0,0,1000,1),0)+ROW()-1)","v":4.7032621511856415E-2}]
["Dept3",706,4.6246560985195861E-2,null,{"$f":"B36/INDEX(B:B,MATCH(\"*Total\",OFFSET(A36,0,0,1000,1),0)+ROW()-1)","v":4.6246560985195861E-2}]
["Dept3",249,1.6310755928206473E-2,null,{"$f":"B37/INDEX(B:B,MATCH(\"*Total\",OFFSET(A37,0,0,1000,1),0)+ROW()-1)","v":1.6310755928206473E-2}]
["Dept3",193,1.2642473470457225E-2,null,{"$f":"B38/INDEX(B:B,MATCH(\"*Total\",OFFSET(A38,0,0,1000,1),0)+ROW()-1)","v":1.2642473470457225E-2}]
["Dept3",763,4.9980348486833484E-2,null,{"$f":"B39/INDEX(B:B,MATCH(\"*Total\",OFFSET(A39,0,0,1000,1),0)+ROW()-1)","v":4.9980348486833484E-2}]
["Dept3",139,9.1052011004847371E-3,null,{"$f":"B40/INDEX(B:B,MATCH(\"*Total\",OFFSET(A40,0,0,1000,1),0)+ROW()-1)","v":9.1052011004847371E-3}]
["Dept3",486,3.1835451329752393E-2,null,{"$f":"B41/INDEX(B:B,MATCH(\"*Total\",OFFSET(A41,0,0,1000,1),0)+ROW()-1)","v":3.1835451329752393E-2}]
["Dept3",319,2.0896109000393029E-2,null,{"$f":"B42/INDEX(B:B,MATCH(\"*Total\",OFFSET(A42,0,0,1000,1),0)+ROW()-1)","v":2.0896109000393029E-2}]
["Dept3",646,4.2316258351893093E-2,null,{"$f":"B43/INDEX(B:B,MATCH(\"*Total\",OFFSET(A43,0,0,1000,1),0)+ROW()-1)","v":4.2316258351893093E-2}]
["Dept3",140,9.1707061443731166E-3,null,{"$f":"B44/INDEX(B:B,MATCH(\"*Total\",OFFSET(A44,0,0,1000,1),0)+ROW()-1)","v":9.1707061443731166E-3}]
["Dept3",115,7.5330800471636317E-3,null,{"$f":"B45/INDEX(B:B,MATCH(\"*Total\",OFFSET(A45,0,0,1000,1),0)+ROW()-1)","v":7.5330800471636317E-3}]
["Dept3",756,4.9521813179614828E-2,null,{"$f":"B46/INDEX(B:B,MATCH(\"*Total\",OFFSET(A46,0,0,1000,1),0)+ROW()-1)","v":4.9521813179614828E-2}]
["Dept3",838,5.4893226778461944E-2,null,{"$f":"B47/INDEX(B:B,MATCH(\"*Total\",OFFSET(A47,0,0,1000,1),0)+ROW()-1)","v":5.4893226778461944E-2}]
["Dept3",886,5.8037468885104151E-2,null,{"$f":"B48/INDEX(B:B,MATCH(\"*Total\",OFFSET(A48,0,0,1000,1),0)+ROW()-1)","v":5.8037468885104151E-2}]
["Dept3",554,3.628979431416219E-2,null,{"$f":"B49/INDEX(B:B,MATCH(\"*Total\",OFFSET(A49,0,0,1000,1),0)+ROW()-1)","v":3.628979431416219E-2}]
["Dept3",130,8.5156557054893219E-3,null,{"$f":"B50/INDEX(B:B,MATCH(\"*Total\",OFFSET(A50,0,0,1000,1),0)+ROW()-1)","v":8.5156557054893219E-3}]
["Dept3",583,3.8189440586925194E-2,null,{"$f":"B51/INDEX(B:B,MATCH(\"*Total\",OFFSET(A51,0,0,1000,1),0)+ROW()-1)","v":3.8189440586925194E-2}]
["Dept3",696,4.5591510546312067E-2,null,{"$f":"B52/INDEX(B:B,MATCH(\"*Total\",OFFSET(A52,0,0,1000,1),0)+ROW()-1)","v":4.5591510546312067E-2}]
["Dept3",664,4.3495349141883924E-2,null,{"$f":"B53/INDEX(B:B,MATCH(\"*Total\",OFFSET(A53,0,0,1000,1),0)+ROW()-1)","v":4.3495349141883924E-2}]
["Dept3",17,1.1135857461024498E-3,null,{"$f":"B54/INDEX(B:B,MATCH(\"*Total\",OFFSET(A54,0,0,1000,1),0)+ROW()-1)","v":1.1135857461024498E-3}]
["Dept3",544,3.5634743875278395E-2,null,{"$f":"B55/INDEX(B:B,MATCH(\"*Total\",OFFSET(A55,0,0,1000,1),0)+ROW()-1)","v":3.5634743875278395E-2}]
["Dept3",756,4.9521813179614828E-2,null,{"$f":"B56/INDEX(B:B,MATCH(\"*Total\",OFFSET(A56,0,0,1000,1),0)+ROW()-1)","v":4.9521813179614828E-2}]
["Dept3",984,6.4456963186165339E-2,null,{"$f":"B57/INDEX(B:B,MATCH(\"*Total\",OFFSET(A57,0,0,1000,1),0)+ROW()-1)","v":6.4456963186165339E-2}]
["Dept3",759,4.9718328311279966E-2,null,{"$f":"B58/INDEX(B:B,MATCH(\"*Total\",OFFSET(A58,0,0,1000,1),0)+ROW()-1)","v":4.9718328311279966E-2}]
["Dept3",150,9.8257565832569112E-3,null,{"$f":"B59/INDEX(B:B,MATCH(\"*Total\",OFFSET(A59,0,0,1000,1),0)+ROW()-1)","v":9.8257565832569112E-3}]
["Dept3",310,2.0306563605397617E-2,null,{"$f":"B60/INDEX(B:B,MATCH(\"*Total\",OFFSET(A60,0,0,1000,1),0)+ROW()-1)","v":2.0306563605397617E-2}]
["Dept3",235,1.5393685313769161E-2,null,{"$f":"B61/INDEX(B:B,MATCH(\"*Total\",OFFSET(A61,0,0,1000,1),0)+ROW()-1)","v":1.5393685313769161E-2}]
["Dept3 Total",15266,1,null,{"$f":"B62/INDEX(B:B,MATCH(\"*Total\",OFFSET(A62,0,0,1000,1),0)+ROW()-1)","v":1}]
["Dept4",100,0.2,null,{"$f":"B63/INDEX(B:B,MATCH(\"*Total\",OFFSET(A63,0,0,1000,1),0)+ROW()-1)","v":0.2}]
["Dept4",150,0.3,null,{"$f":"B64/INDEX(B:B,MATCH(\"*Total\",OFFSET(A64,0,0,1000,1),0)+ROW()-1)","v":0.3}]
["Dept4",250,0.5,null,{"$f":"B65/INDEX(B:B,MATCH(\"*Total\",OFFSET(A65,0,0,1000,1),0)+ROW()-1)","v":0.5}]
["Dept4 Total",{"$f":"SUM(B63:B65)","v":500},{"$f":"B66/INDEX(B:B,MATCH(\"*Total\",OFFSET(A66,0,0,1000,1),0)+ROW()-1)","v":1},null,{"$f":"B66/INDEX(B:B,MATCH(\"*Total\",OFFSET(A66,0,0,1000,1),0)+ROW()-1)","v":1}]
["Dept 5",885,6.7269686834904224E-2,null,{"$f":"B67/INDEX(B:B,MATCH(\"*Total\",OFFSET(A67,0,0,1000,1),0)+ROW()-1)","v":6.7269686834904224E-2}]
["Dept 5",926,7.0386135603526911E-2,null,{"$f":"B68/INDEX(B:B,MATCH(\"*Total\",OFFSET(A68,0,0,1000,1),0)+ROW()-1)","v":7.0386135603526911E-2}]
["Dept 5",687,5.221951961082396E-2,null,{"$f":"B69/INDEX(B:B,MATCH(\"*Total\",OFFSET(A69,0,0,1000,1),0)+ROW()-1)","v":5.221951961082396E-2}]
["Dept 5",885,6.7269686834904224E-2,null,{"$f":"B70/INDEX(B:B,MATCH(\"*Total\",OFFSET(A70,0,0,1000,1),0)+ROW()-1)","v":6.7269686834904224E-2}]
["Dept 5",90,6.840985101854667E-3,null,{"$f":"B71/INDEX(B:B,MATCH(\"*Total\",OFFSET(A71,0,0,1000,1),0)+ROW()-1)","v":6.840985101854667E-3}]
["Dept 5",667,5.0699300699300696E-2,null,{"$f":"B72/INDEX(B:B,MATCH(\"*Total\",OFFSET(A72,0,0,1000,1),0)+ROW()-1)","v":5.0699300699300696E-2}]
["Dept 5",38,2.888415931894193E-3,null,{"$f":"B73/INDEX(B:B,MATCH(\"*Total\",OFFSET(A73,0,0,1000,1),0)+ROW()-1)","v":2.888415931894193E-3}]
["Dept 5",586,4.4542414107631496E-2,null,{"$f":"B74/INDEX(B:B,MATCH(\"*Total\",OFFSET(A74,0,0,1000,1),0)+ROW()-1)","v":4.4542414107631496E-2}]
["Dept 5",923,7.0158102766798416E-2,null,{"$f":"B75/INDEX(B:B,MATCH(\"*Total\",OFFSET(A75,0,0,1000,1),0)+ROW()-1)","v":7.0158102766798416E-2}]
["Dept 5",122,9.273335360291882E-3,null,{"$f":"B76/INDEX(B:B,MATCH(\"*Total\",OFFSET(A76,0,0,1000,1),0)+ROW()-1)","v":9.273335360291882E-3}]
["Dept 5",897,6.8181818181818177E-2,null,{"$f":"B77/INDEX(B:B,MATCH(\"*Total\",OFFSET(A77,0,0,1000,1),0)+ROW()-1)","v":6.8181818181818177E-2}]
["Dept 5",681,5.1763453937366984E-2,null,{"$f":"B78/INDEX(B:B,MATCH(\"*Total\",OFFSET(A78,0,0,1000,1),0)+ROW()-1)","v":5.1763453937366984E-2}]
["Dept 5",224,1.7026451809060504E-2,null,{"$f":"B79/INDEX(B:B,MATCH(\"*Total\",OFFSET(A79,0,0,1000,1),0)+ROW()-1)","v":1.7026451809060504E-2}]
["Dept 5",747,5.6780176345393736E-2,null,{"$f":"B80/INDEX(B:B,MATCH(\"*Total\",OFFSET(A80,0,0,1000,1),0)+ROW()-1)","v":5.6780176345393736E-2}]
["Dept 5",39,2.9644268774703555E-3,null,{"$f":"B81/INDEX(B:B,MATCH(\"*Total\",OFFSET(A81,0,0,1000,1),0)+ROW()-1)","v":2.9644268774703555E-3}]
["Dept 5",761,5.7844329583460016E-2,null,{"$f":"B82/INDEX(B:B,MATCH(\"*Total\",OFFSET(A82,0,0,1000,1),0)+ROW()-1)","v":5.7844329583460016E-2}]
["Dept 5",785,5.9668592277287928E-2,null,{"$f":"B83/INDEX(B:B,MATCH(\"*Total\",OFFSET(A83,0,0,1000,1),0)+ROW()-1)","v":5.9668592277287928E-2}]
["Dept 5",318,2.4171480693219824E-2,null,{"$f":"B84/INDEX(B:B,MATCH(\"*Total\",OFFSET(A84,0,0,1000,1),0)+ROW()-1)","v":2.4171480693219824E-2}]
["Dept 5",829,6.3013073882639103E-2,null,{"$f":"B85/INDEX(B:B,MATCH(\"*Total\",OFFSET(A85,0,0,1000,1),0)+ROW()-1)","v":6.3013073882639103E-2}]
["Dept 5",182,1.383399209486166E-2,null,{"$f":"B86/INDEX(B:B,MATCH(\"*Total\",OFFSET(A86,0,0,1000,1),0)+ROW()-1)","v":1.383399209486166E-2}]
["Dept 5",400,3.0404378230465188E-2,null,{"$f":"B87/INDEX(B:B,MATCH(\"*Total\",OFFSET(A87,0,0,1000,1),0)+ROW()-1)","v":3.0404378230465188E-2}]
["Dept5 Total",13156,1,null,{"$f":"B88/INDEX(B:B,MATCH(\"*Total\",OFFSET(A88,0,0,1000,1),0)+ROW()-1)","v":1}]

{"sheet":"Cut Copy InsertPaste","index":27,"n_rows":15,"n_cols":6,"rows_kept":15,"cut":false,"hidden":false,"merged":[]}
[]
[]
[]
[null,1,45,"2020-01-01",63,72]
[null,2,50,"2020-02-01",70,80]
[null,3,55,"2020-03-01",77,88]
[null,4,60,"2020-04-01",84,96]
[null,5,65,"2020-05-01",91,104]
[null,6,70,"2020-06-01",98,112]
[null,7,75,"2020-07-01",105,120]
[null,8,80,"2020-08-01",112,128]
[null,9,85,"2020-09-01",119,136]
[null,10,90,"2020-10-01",126,144]
[null,11,95,"2020-11-01",133,152]
[null,12,100,"2020-12-01",140,160]

{"sheet":"Conditional Formatting","index":28,"n_rows":0,"n_cols":0,"rows_kept":0,"cut":false,"hidden":false,"merged":[]}

{"sheet":"TEXT, REPT","index":29,"n_rows":14,"n_cols":4,"rows_kept":14,"cut":false,"hidden":false,"merged":[]}
[]
[]
[null,null,null,{"$f":"TEXT(TODAY(),\"dddd, m/d/yyyy\")","v":"Tuesday, 6/23/2020"}]
[null,null,null,{"$f":"TODAY()","v":"2020-06-23"}]
[]
[]
[]
[]
[]
[]
[{"$f":"REPT(\"/\\\",500)","v":"/\\/\\/\\/\\/\\/\\/\\/\\/\\/\\/\\/\\/\\/\\/\\/\\/\\/\\/\\/\\/\\/\\/\\/\\/\\/\\/\\/\\/\\/\\/\\/\\/\\/\\/\\/\\/\\/\\/\\/\\/\\/\\/\\/\\/\\/\\/\\/\\/\\/\\/\\/\\/\\/\\/\\/\\/\\/\\/\\/\\/\\/\\/\\/\\/\\/\\/\\/\\/\\/\\/\\/\\/\\/\\/\\/\\/\\/\\/\\/\\/\\/\\/\\/\\/\\/\\/\\/\\/\\/\\/\\/\\/\\/\\/\\/\\/\\/\\/\\/\\/\\/\\/\\/\\/\\/\\/\\/\\/\\/\\/\\/\\/\\/\\/\\/\\/\\/\\/\\/\\/\\/\\/\\/\\/\\/\\/\\/\\/\\/\\/\\/\\/\\/\\/\\/\\/\\/\\/\\/\\/\\/\\/\\/\\/\\/\\/\\/\\/\\/\\/\\/\\/\\/\\/\\/\\/\\/\\/\\/\\/\\/\\/\\/\\/\\/\\/\\/\\/\\/\\/\\/\\/\\/\\/\\/\\/\\/\\/\\/\\/\\/\\/\\/\\/\\/\\/\\/\\/\\/\\/\\/\\/\\/\\/\\/\\/\\/\\/\\/\\/\\/\\/\\/\\/\\/\\/\\/\\/\\/\\/\\/\\/\\/\\/\\/\\/\\/\\/\\/\\/\\/\\/\\/\\/\\/\\/\\/\\/\\/\\/\\/\\/\\/\\/\\/\\/\\/\\/\\/\\/\\/\\/\\/\\/\\/\\/\\/\\/\\/\\/\\/\\/\\/\\/\\/\\/\\/\\/\\/\\/\\/\\/\\/\\/\\/\\/\\/\\/\\/\\/\\/\\/\\/\\/\\/\\/\\/\\/\\/\\/\\/\\/\\/\\/\\/\\/\\/\\/\\/\\/\\/\\/\\/\\/\\/\\/\\/\\/\\/\\/\\/\\/\\/\\/\\/\\/\\/\\/\\/\\/\\/\\/\\/\\/\\/\\/\\/\\/\\/\\/\\/\\/\\/\\/\\/\\/\\/\\/\\/\\/\\/\\/\\/\\/\\/\\/\\/\\/\\/\\/\\/\\/\\/\\/\\/\\/\\/\\/\\/\\/\\/\\/\\/\\/\\/\\/\\/\\/\\/\\/\\/\\/\\/\\/\\/\\/\\/\\/\\/\\/\\/\\/\\/\\/\\/\\/\\/\\/\\/\\/\\/\\/\\/\\/\\/\\/\\/\\/\\/\\/\\/\\/\\/\\/\\/\\/\\/\\/\\/\\/\\/\\/\\/\\/\\/\\/\\/\\/\\/\\/\\/\\/\\/\\/\\/\\/\\/\\/\\/\\/\\/\\/\\/\\/\\/\\/\\/\\/\\/\\/\\/\\/\\/\\/\\/\\/\\/\\/\\/\\/\\/\\/\\/\\/\\/\\/\\/\\/\\/\\/\\/\\/\\/\\/\\/\\/\\/\\/\\/\\/\\/\\/\\/\\/\\/\\/\\/\\/\\/\\/\\/\\/\\/\\/\\/\\/\\/\\/\\/\\/\\/\\/\\/\\/\\/\\/\\/\\/\\/\\/\\/\\/\\/\\/\\/\\/\\/\\/\\/\\"}]
[{"$f":"REPT(\"=\",500)","v":"===================================================================================================================================================================================================================================================================================================================================================================================================================================================================================================================="}]
[{"$f":"REPT(\"[-]\",500)","v":"[-][-][-][-][-][-][-][-][-][-][-][-][-][-][-][-][-][-][-][-][-][-][-][-][-][-][-][-][-][-][-][-][-][-][-][-][-][-][-][-][-][-][-][-][-][-][-][-][-][-][-][-][-][-][-][-][-][-][-][-][-][-][-][-][-][-][-][-][-][-][-][-][-][-][-][-][-][-][-][-][-][-][-][-][-][-][-][-][-][-][-][-][-][-][-][-][-][-][-][-][-][-][-][-][-][-][-][-][-][-][-][-][-][-][-][-][-][-][-][-][-][-][-][-][-][-][-][-][-][-][-][-][-][-][-][-][-][-][-][-][-][-][-][-][-][-][-][-][-][-][-][-][-][-][-][-][-][-][-][-][-][-][-][-][-][-][-][-][-][-][-][-][-][-][-][-][-][-][-][-][-][-][-][-][-][-][-][-][-][-][-][-][-][-][-][-][-][-][-][-][-][-][-][-][-][-][-][-][-][-][-][-][-][-][-][-][-][-][-][-][-][-][-][-][-][-][-][-][-][-][-][-][-][-][-][-][-][-][-][-][-][-][-][-][-][-][-][-][-][-][-][-][-][-][-][-][-][-][-][-][-][-][-][-][-][-][-][-][-][-][-][-][-][-][-][-][-][-][-][-][-][-][-][-][-][-][-][-][-][-][-][-][-][-][-][-][-][-][-][-][-][-][-][-][-][-][-][-][-][-][-][-][-][-][-][-][-][-][-][-][-][-][-][-][-][-][-][-][-][-][-][-][-][-][-][-][-][-][-][-][-][-][-][-][-][-][-][-][-][-][-][-][-][-][-][-][-][-][-][-][-][-][-][-][-][-][-][-][-][-][-][-][-][-][-][-][-][-][-][-][-][-][-][-][-][-][-][-][-][-][-][-][-][-][-][-][-][-][-][-][-][-][-][-][-][-][-][-][-][-][-][-][-][-][-][-][-][-][-][-][-][-][-][-][-][-][-][-][-][-][-][-][-][-][-][-][-][-][-][-][-][-][-][-][-][-][-][-][-][-][-][-][-][-][-][-][-][-][-][-][-][-][-][-][-][-][-][-][-][-][-][-][-][-][-][-][-][-][-][-][-][-][-][-][-][-][-][-][-][-][-][-][-][-][-][-][-][-][-][-]"}]
[{"$f":"REPT(\"<>\",500)","v":"<><><><><><><><><><><><><><><><><><><><><><><><><><><><><><><><><><><><><><><><><><><><><><><><><><><><><><><><><><><><><><><><><><><><><><><><><><><><><><><><><><><><><><><><><><><><><><><><><><><><><><><><><><><><><><><><><><><><><><><><><><><><><><><><><><><><><><><><><><><><><><><><><><><><><><><><><><><><><><><><><><><><><><><><><><><><><><><><><><><><><><><><><><><><><><><><><><><><><><><><><><><><><><><><><><><><><><><><><><><><><><><><><><><><><><><><><><><><><><><><><><><><><><><><><><><><><><><><><><><><><><><><><><><><><><><><><><><><><><><><><><><><><><><><><><><><><><><><><><><><><><><><><><><><><><><><><><><><><><><><><><><><><><><><><><><><><><><><><><><><><><><><><><><><><><><><><><><><><><><><><><><><><><><><><><><><><><><><><><><><><><><><><><><><><><><><><><><><><><><><><><><><><><><><><><><><><><><><><><><><><><><><><><><><><><><><><><><><><><><><><><><><><><><><><><><><><><><><><><><><><><><><><><><><><><><><><><><><><><><><><><><><><><><><><><><><><><><><><><><><>"}]

{"sheet":"Last String","index":30,"n_rows":9,"n_cols":3,"rows_kept":9,"cut":false,"hidden":false,"merged":[]}
[]
[]
[]
["Start",null,"C:\\MSOFFICE\\EXCEL\\LIBRARY\\MSQUERY\\MyFile.xlsx"]
["Finish",null,{"$f":"MID(C4,SEARCH(CHAR(222),SUBSTITUTE(C4,\"\\\",CHAR(222),LEN(C4)-LEN(SUBSTITUTE(C4,\"\\\",\"\"))))+1,255)","v":"MyFile.xlsx"}]
["Steps",null,{"$f":"LEN(C4)-LEN(SUBSTITUTE(C4,\"\\\",\"\"))","v":5}]
[null,null,{"$f":"SUBSTITUTE(C4,\"\\\",CHAR(222),C6)","v":"C:\\MSOFFICE\\EXCEL\\LIBRARY\\MSQUERYÞMyFile.xlsx"}]
[null,null,{"$f":"SEARCH(CHAR(222),C7)","v":34}]
[null,null,{"$f":"MID(C4,C8+1,255)","v":"MyFile.xlsx"}]

{"sheet":"Wait","index":31,"n_rows":0,"n_cols":0,"rows_kept":0,"cut":false,"hidden":false,"merged":[]}

{"sheet":"Right Click FH","index":32,"n_rows":1,"n_cols":2,"rows_kept":1,"cut":false,"hidden":false,"merged":[]}
["2006-03-27",25]

{"sheet":"Space Operator","index":33,"n_rows":9,"n_cols":5,"rows_kept":9,"cut":false,"hidden":false,"merged":[]}
[null,"North","West","South","East"]
["Things",{"$f":"INT(RAND()*100)","v":47},79,67,98]
["Gizmos",38,31,96,40]
["Objects",65,50,34,45]
[]
[]
[]
[]
[null,null,{"$f":"West Gizmos","v":31}]

{"sheet":"Picture","index":34,"n_rows":8,"n_cols":1,"rows_kept":8,"cut":false,"hidden":false,"merged":[]}
["dog"]
[]
[]
[]
[]
["dog"]
["cat"]
["baby"]

{"sheet":"Advanced No Fmt, Prot Range","index":35,"n_rows":25,"n_cols":11,"rows_kept":25,"cut":false,"hidden":false,"merged":[]}
[20,20,{"$f":"A1","v":20}]
[40,40,40]
[60,60,60]
[80,80,80]
[100,100,100]
[120,120,120]
[140,140,140,null,null,null,{"$f":"0","v":0},0,0,0,0]
[160,160,160,null,null,{"$f":"0","v":0},"Protected range","Protected range","Protected range","Protected range","Protected range"]
[180,180,180,null,null,0,"Protected range","Protected range","Protected range","Protected range","Protected range"]
[200,200,200,null,null,0,"Protected range","Protected range","Protected range","Protected range","Protected range"]
[220,220,220,null,null,0,"Protected range","Protected range","Protected range","Protected range","Protected range"]
[240,240,240,null,null,0,"Protected range","Protected range","Protected range","Protected range","Protected range"]
[260,260,260,null,null,0,"Protected range","Protected range","Protected range","Protected range","Protected range"]
[280,280,280,null,null,0,"Protected range","Protected range","Protected range","Protected range","Protected range"]
[300,300,300,null,null,0,"Protected range","Protected range","Protected range","Protected range","Protected range"]
[null,null,null,null,null,0,"Protected range","Protected range","Protected range","Protected range","Protected range"]
[null,null,null,null,null,0,"Protected range","Protected range","Protected range","Protected range","Protected range"]
[null,null,null,null,null,0,"Protected range","Protected range","Protected range","Protected range","Protected range"]
[null,null,null,null,null,0,"Protected range","Protected range","Protected range","Protected range","Protected range"]
[null,null,null,null,null,0,"Protected range","Protected range","Protected range","Protected range","Protected range"]
[null,null,null,null,null,0,"Protected range","Protected range","Protected range","Protected range","Protected range"]
[null,null,null,null,null,0,"Protected range","Protected range","Protected range","Protected range","Protected range"]
[null,null,null,null,null,0,"Protected range","Protected range","Protected range","Protected range","Protected range"]
[null,null,null,null,null,0,"Protected range","Protected range","Protected range","Protected range","Protected range"]
[null,null,null,null,null,0,"Protected range","Protected range","Protected range","Protected range","Protected range"]

{"sheet":"Sort Columns","index":36,"n_rows":21,"n_cols":8,"rows_kept":21,"cut":false,"hidden":false,"merged":[]}
["Address","Name","State","City","Zip",null,"Want Name, Address, City, State, Zip"]
["123 Main","Name1","FL","Orlando",12345]
["124 Main","Name2","NY","Albany",12346]
["125 Main","Name3","WA","Redmond",12347]
["126 Main","Name4","TX","Houston",12348]
["127 Main","Name5","CA","Orlando",12349]
["128 Main","Name6","FL","Albany",12350]
["129 Main","Name7","NY","Redmond",12351]
["130 Main","Name8","WA","Houston",12352]
["131 Main","Name9","TX","Orlando",12353]
["132 Main","Name10","CA","Albany",12354,null,"Today","End of month"]
["133 Main","Name11","FL","Redmond",12355,null,{"$f":"TODAY()","v":"2020-06-23"},{"$f":"DATE(YEAR(G12),MONTH(G12)+1,0)","v":"2020-06-30"}]
["134 Main","Name12","NY","Houston",12356]
["135 Main","Name13","WA","Orlando",12357]
["136 Main","Name14","TX","Albany",12358]
["137 Main","Name15","CA","Redmond",12359]
["138 Main","Name16","FL","Houston",12360]
["139 Main","Name17","NY","Orlando",12361]
["140 Main","Name18","WA","Albany",12362]
["141 Main","Name19","TX","Redmond",12363]
["142 Main","Name20","CA","Houston",12364]

{"sheet":"Number Wednesdays","index":37,"n_rows":3,"n_cols":1,"rows_kept":3,"cut":false,"hidden":false,"merged":[]}
["2016-10-01"]
[{"$f":"TODAY()","v":"2020-06-23"}]
[{"$f":"SUM(N(WEEKDAY(ROW(INDIRECT(A1&\":\"&A2)))=4))","v":194}]

{"sheet":"Pictograph","index":38,"n_rows":3,"n_cols":1,"rows_kept":3,"cut":false,"hidden":false,"merged":[]}
[1]
[2]
[3]

{"sheet":"Mailing Labels 1","index":39,"n_rows":18,"n_cols":1,"rows_kept":18,"cut":false,"hidden":false,"merged":[]}
["Jones, John"]
["JJAddress"]
["JJCity, State, Zip"]
[]
["Adams, Jane"]
["JAAddress"]
["JA PO Box"]
["JACity, State, Zip"]
[]
["Edwin, Frank"]
["FEAddress"]
["FECity, State, Zip"]
[]
["Spencer, Tina"]
["TSAddress"]
["TSEmail"]
["TS PO Box"]
["TSCity, State, Zip"]

{"sheet":"Mailing Labels 2","index":40,"n_rows":30,"n_cols":3,"rows_kept":30,"cut":false,"hidden":false,"merged":[]}
["Name1","Addr1","City, State Zip1"]
["Name2","Addr2","City, State Zip2"]
["Name3","Addr3","City, State Zip3"]
["Name4","Addr4","City, State Zip4"]
["Name5","Addr5","City, State Zip5"]
["Name6","Addr6","City, State Zip6"]
["Name7","Addr7","City, State Zip7"]
["Name8","Addr8","City, State Zip8"]
["Name9","Addr9","City, State Zip9"]
["Name10","Addr10","City, State Zip10"]
["Name11","Addr11","City, State Zip11"]
["Name12","Addr12","City, State Zip12"]
["Name13","Addr13","City, State Zip13"]
["Name14","Addr14","City, State Zip14"]
["Name15","Addr15","City, State Zip15"]
["Name16","Addr16","City, State Zip16"]
["Name17","Addr17","City, State Zip17"]
["Name18","Addr18","City, State Zip18"]
["Name19","Addr19","City, State Zip19"]
["Name20","Addr20","City, State Zip20"]
["Name21","Addr21","City, State Zip21"]
["Name22","Addr22","City, State Zip22"]
["Name23","Addr23","City, State Zip23"]
["Name24","Addr24","City, State Zip24"]
["Name25","Addr25","City, State Zip25"]
["Name26","Addr26","City, State Zip26"]
["Name27","Addr27","City, State Zip27"]
["Name28","Addr28","City, State Zip28"]
["Name29","Addr29","City, State Zip29"]
["Name30","Addr30","City, State Zip30"]

{"sheet":"Mailing Labels 3","index":41,"n_rows":159,"n_cols":8,"rows_kept":159,"cut":false,"hidden":false,"merged":[]}
["Name1",null,{"$f":"A1","v":"Name1"},{"$f":"A2","v":"address1"},{"$f":"A3","v":"City, State Zip1"},null,"Using Sequence==>","=INDEX(A:A,SEQUENCE(160/4,4))"]
["address1",null,{"$f":"A5","v":"Craig"},{"$f":"A6","v":"address2"},{"$f":"A7","v":"City, State Zip2"}]
["City, State Zip1"]
[]
["Craig"]
["address2"]
["City, State Zip2"]
[]
["Bob"]
["address3"]
["City, State Zip3"]
[]
["Mary"]
["address4"]
["City, State Zip4"]
[]
["Mark"]
["address5"]
["City, State Zip5"]
[]
["Name6"]
["address6"]
["City, State Zip6"]
[]
["Name7"]
["address7"]
["City, State Zip7"]
[]
["Name8"]
["address8"]
["City, State Zip8"]
[]
["Name9"]
["address9"]
["City, State Zip9"]
[]
["Name10"]
["address10"]
["City, State Zip10"]
[]
["Name11"]
["address11"]
["City, State Zip11"]
[]
["Name12"]
["address12"]
["City, State Zip12"]
[]
["Name13"]
["address13"]
["City, State Zip13"]
[]
["Name14"]
["address14"]
["City, State Zip14"]
[]
["Name15"]
["address15"]
["City, State Zip15"]
[]
["Name16"]
["address16"]
["City, State Zip16"]
[]
["Name17"]
["address17"]
["City, State Zip17"]
[]
["Name18"]
["address18"]
["City, State Zip18"]
[]
["Name19"]
["address19"]
["City, State Zip19"]
[]
["Name20"]
["address20"]
["City, State Zip20"]
[]
["Name21"]
["address21"]
["City, State Zip21"]
[]
["Name22"]
["address22"]
["City, State Zip22"]
[]
["Name23"]
["address23"]
["City, State Zip23"]
[]
["Name24"]
["address24"]
["City, State Zip24"]
[]
["Name25"]
["address25"]
["City, State Zip25"]
[]
["Name26"]
["address26"]
["City, State Zip26"]
[]
["Name27"]
["address27"]
["City, State Zip27"]
[]
["Name28"]
["address28"]
["City, State Zip28"]
[]
["Name29"]
["address29"]
["City, State Zip29"]
[]
["Name30"]
["address30"]
["City, State Zip30"]
[]
["Name31"]
["address31"]
["City, State Zip31"]
[]
["Name32"]
["address32"]
["City, State Zip32"]
[]
["Name33"]
["address33"]
["City, State Zip33"]
[]
["Name34"]
["address34"]
["City, State Zip34"]
[]
["Name35"]
["address35"]
["City, State Zip35"]
[]
["Name36"]
["address36"]
["City, State Zip36"]
[]
["Name37"]
["address37"]
["City, State Zip37"]
[]
["Name38"]
["address38"]
["City, State Zip38"]
[]
["Name39"]
["address39"]
["City, State Zip39"]
[]
["Name40"]
["address40"]
["City, State Zip40"]

{"sheet":"1st and 15th","index":42,"n_rows":3,"n_cols":5,"rows_kept":3,"cut":false,"hidden":false,"merged":[]}
["2010-01-01",null,null,null,"2010-01-01"]
[null,"Create months, ",null,null,"2010-01-15"]
["2010-02-01","insert cell above+14"]

{"sheet":"Fill right, down","index":43,"n_rows":8,"n_cols":10,"rows_kept":8,"cut":false,"hidden":false,"merged":[]}
["Here's",null,"Here's","the","information","to","see","top","to","bottom"]
["the"]
["information"]
["to "]
["see",null,null,{"$f":"A1","v":"Here's"}]
["left"]
["to"]
["right"]

{"sheet":"Inner Series","index":44,"n_rows":21,"n_cols":4,"rows_kept":21,"cut":false,"hidden":false,"merged":[]}
["Rate",3.2500000000000001E-2]
["Nper",30]
["PV",400000]
[]
[null,"<office 365",null,"office 365"]
[null,{"$f":"IPMT($B$1/12,ROW(A1),$B$2*12,-$B$3)","v":1083.3333333333333},null,{"$f":"IPMT($B$1/12,_xlfn.SEQUENCE(16),$B$2*12,-$B$3)","v":1083.3333333333333}]
[null,1081.5526259878268,null,1081.5526259878268]
[null,1079.7670958932599,null,1079.7670958932599]
[null,1077.97672998802,null,1077.97672998802]
[null,1076.18151517512,null,1076.18151517512]
[null,1074.3814383221022,null,1074.3814383221022]
[null,1072.5764862609403,null,1072.5764862609403]
[null,1070.7666457879461,null,1070.7666457879461]
[null,1068.9519036636709,null,1068.9519036636709]
[null,1067.1322466128092,null,1067.1322466128092]
[null,1065.3076613241014,null,1065.3076613241014]
[null,1063.4781344502369,null,1063.4781344502369]
[null,1061.6436526077553,null,1061.6436526077553]
[null,1059.8042023769508,null,1059.8042023769508]
[null,1057.959770301771,null,1057.959770301771]
[null,1056.1103428897206,null,1056.1103428897206]

{"sheet":"Random Sample","index":45,"n_rows":101,"n_cols":3,"rows_kept":101,"cut":false,"hidden":false,"merged":[]}
["Database of 100 items"]
["Item1",null,{"$f":"RAND()<0.25","v":true}]
["Item2"]
["Item3"]
["Item4"]
["Item5"]
["Item6"]
["Item7"]
["Item8"]
["Item9"]
["Item10"]
["Item11"]
["Item12"]
["Item13"]
["Item14"]
["Item15"]
["Item16"]
["Item17"]
["Item18"]
["Item19"]
["Item20"]
["Item21"]
["Item22"]
["Item23"]
["Item24"]
["Item25"]
["Item26"]
["Item27"]
["Item28"]
["Item29"]
["Item30"]
["Item31"]
["Item32"]
["Item33"]
["Item34"]
["Item35"]
["Item36"]
["Item37"]
["Item38"]
["Item39"]
["Item40"]
["Item41"]
["Item42"]
["Item43"]
["Item44"]
["Item45"]
["Item46"]
["Item47"]
["Item48"]
["Item49"]
["Item50"]
["Item51"]
["Item52"]
["Item53"]
["Item54"]
["Item55"]
["Item56"]
["Item57"]
["Item58"]
["Item59"]
["Item60"]
["Item61"]
["Item62"]
["Item63"]
["Item64"]
["Item65"]
["Item66"]
["Item67"]
["Item68"]
["Item69"]
["Item70"]
["Item71"]
["Item72"]
["Item73"]
["Item74"]
["Item75"]
["Item76"]
["Item77"]
["Item78"]
["Item79"]
["Item80"]
["Item81"]
["Item82"]
["Item83"]
["Item84"]
["Item85"]
["Item86"]
["Item87"]
["Item88"]
["Item89"]
["Item90"]
["Item91"]
["Item92"]
["Item93"]
["Item94"]
["Item95"]
["Item96"]
["Item97"]
["Item98"]
["Item99"]
["Item100"]

{"sheet":"Auto Number Qs","index":46,"n_rows":30,"n_cols":2,"rows_kept":30,"cut":false,"hidden":false,"merged":[]}
["Question#","Question"]
[{"$f":"MAX(A$1:A1)+1","v":1},"Blah blah blah blah blah blah blah blah blah blah"]
[null,"Blah blah blah blah blah blah blah blah blah blah"]
[null,"Blah blah blah blah blah blah blah blah blah blah"]
[null,"Blah blah blah blah blah blah blah blah blah blah"]
[]
[{"$f":"MAX(A$1:A6)+1","v":2},"Blah blah blah blah blah blah blah blah blah blah"]
[null,"Blah blah blah blah blah blah blah blah blah blah"]
[null,"Blah blah blah blah blah blah blah blah blah blah"]
[]
[{"$f":"MAX(A$1:A10)+1","v":3},"Blah blah blah blah blah blah blah blah blah blah"]
[null,"Blah blah blah blah blah blah blah blah blah blah"]
[null,"Blah blah blah blah blah blah blah blah blah blah"]
[]
[{"$f":"MAX(A$1:A14)+1","v":4},"Blah blah blah blah blah blah blah blah blah blah"]
[null,"Blah blah blah blah blah blah blah blah blah blah"]
[null,"Blah blah blah blah blah blah blah blah blah blah"]
[null,"Blah blah blah blah blah blah blah blah blah blah"]
[]
[{"$f":"MAX(A$1:A19)+1","v":5},"Blah blah blah blah blah blah blah blah blah blah"]
[null,"Blah blah blah blah blah blah blah blah blah blah"]
[]
[{"$f":"MAX(A$1:A22)+1","v":6},"Blah blah blah blah blah blah blah blah blah blah"]
[null,"Blah blah blah blah blah blah blah blah blah blah"]
[null,"Blah blah blah blah blah blah blah blah blah blah"]
[null,"Blah blah blah blah blah blah blah blah blah blah"]
[]
[{"$f":"MAX(A$1:A27)+1","v":7},"Blah blah blah blah blah blah blah blah blah blah"]
[null,"Blah blah blah blah blah blah blah blah blah blah"]
[null,"Blah blah blah blah blah blah blah blah blah blah"]

{"sheet":"Self-defining Range","index":47,"n_rows":15,"n_cols":5,"rows_kept":15,"cut":false,"hidden":false,"merged":[]}
["Jan","Feb","Mar","Apr","May"]
[963,30,830,67,395]
[791,942,877,536,286]
[932,23,931,102,249]
[976,248,190,228,503]
[375,463,350,324,48]
[839,21,409,327,617]
[352,874,165,615,81]
[383,918,245,869,112]
[807,221,530,591,842]
[446,373,817,786,82]
[896,84,290,505,839]
[389,285,778,447,979]
[294,856,394,857,743]
[975,883,837,974,280]

{"sheet":"Printing Remote Areas","index":48,"n_rows":24,"n_cols":25,"rows_kept":24,"cut":false,"hidden":false,"merged":[]}
["Area1","Area1","Area1","Area1","Area1"]
["Area1","Area1","Area1","Area1","Area1"]
["Area1","Area1","Area1","Area1","Area1"]
["Area1","Area1","Area1","Area1","Area1",null,null,null,null,null,null,null,null,null,null,null,null,null,null,null,null,null,"Area3","Area3","Area3"]
["Area1","Area1","Area1","Area1","Area1",null,null,null,null,null,null,null,null,null,null,null,null,null,null,null,null,null,"Area3","Area3","Area3"]
["Area1","Area1","Area1","Area1","Area1",null,null,null,null,null,null,null,null,null,null,null,null,null,null,null,null,null,"Area3","Area3","Area3"]
["Area1","Area1","Area1","Area1","Area1",null,null,null,null,null,null,null,null,null,null,null,null,null,null,null,null,null,"Area3","Area3","Area3"]
["Area1","Area1","Area1","Area1","Area1",null,null,null,null,null,null,null,null,null,null,null,null,null,null,null,null,null,"Area3","Area3","Area3"]
["Area1","Area1","Area1","Area1","Area1",null,null,null,null,null,null,null,null,null,null,null,null,null,null,null,null,null,"Area3","Area3","Area3"]
["Area1","Area1","Area1","Area1","Area1",null,null,null,null,null,null,null,null,null,null,null,null,null,null,null,null,null,"Area3","Area3","Area3"]
["Area1","Area1","Area1","Area1","Area1",null,null,null,null,null,null,null,"Area2","Area2","Area2","Area2","Area2","Area2",null,null,null,null,"Area3","Area3","Area3"]
["Area1","Area1","Area1","Area1","Area1",null,null,null,null,null,null,null,"Area2","Area2","Area2","Area2","Area2","Area2",null,null,null,null,"Area3","Area3","Area3"]
[null,null,null,null,null,null,null,null,null,null,null,null,"Area2","Area2","Area2","Area2","Area2","Area2",null,null,null,null,"Area3","Area3","Area3"]
[null,null,null,null,null,null,null,null,null,null,null,null,"Area2","Area2","Area2","Area2","Area2","Area2",null,null,null,null,"Area3","Area3","Area3"]
[null,null,null,null,null,null,null,null,null,null,null,null,"Area2","Area2","Area2","Area2","Area2","Area2",null,null,null,null,"Area3","Area3","Area3"]
[null,null,null,null,null,null,null,null,null,null,null,null,"Area2","Area2","Area2","Area2","Area2","Area2",null,null,null,null,"Area3","Area3","Area3"]
[null,null,null,null,null,null,null,null,null,null,null,null,"Area2","Area2","Area2","Area2","Area2","Area2",null,null,null,null,"Area3","Area3","Area3"]
[null,null,null,null,null,null,null,null,null,null,null,null,"Area2","Area2","Area2","Area2","Area2","Area2",null,null,null,null,"Area3","Area3","Area3"]
[null,null,null,null,null,null,null,null,null,null,null,null,"Area2","Area2","Area2","Area2","Area2","Area2",null,null,null,null,"Area3","Area3","Area3"]
[null,null,null,null,null,null,null,null,null,null,null,null,null,null,null,null,null,null,null,null,null,null,"Area3","Area3","Area3"]
[null,null,null,null,null,null,null,null,null,null,null,null,null,null,null,null,null,null,null,null,null,null,"Area3","Area3","Area3"]
[null,null,null,null,null,null,null,null,null,null,null,null,null,null,null,null,null,null,null,null,null,null,"Area3","Area3","Area3"]
[null,null,null,null,null,null,null,null,null,null,null,null,null,null,null,null,null,null,null,null,null,null,"Area3","Area3","Area3"]
[null,null,null,null,null,null,null,null,null,null,null,null,null,null,null,null,null,null,null,null,null,null,"Area3","Area3","Area3"]

{"sheet":"Ctrl-6","index":49,"n_rows":13,"n_cols":6,"rows_kept":13,"cut":false,"hidden":false,"merged":[]}
[]
[]
[]
[]
[]
[]
[]
[]
[]
[]
[]
[]
[null,null,null,null,null,1]

{"sheet":"Advanced Filter","index":50,"n_rows":1,"n_cols":3,"rows_kept":1,"cut":false,"hidden":false,"merged":[]}
[null,null,"Use AnotherRg as name, filter to A1, choose Unique"]

{"sheet":"Aligning Objects","index":51,"n_rows":8,"n_cols":7,"rows_kept":8,"cut":false,"hidden":false,"merged":[]}
[]
[]
[]
[]
[]
["Align"]
[]
[null,null,null,null,null,null,"Distribute"]

{"sheet":"Custom List","index":52,"n_rows":26,"n_cols":2,"rows_kept":26,"cut":false,"hidden":false,"merged":[]}
[{"$f":"CHAR(_xlfn.SEQUENCE(26,1,65))","v":"A"},{"$f":"CHAR(_xlfn.SEQUENCE(26,1,97))","v":"a"}]
["B","b"]
["C","c"]
["D","d"]
["E","e"]
["F","f"]
["G","g"]
["H","h"]
["I","i"]
["J","j"]
["K","k"]
["L","l"]
["M","m"]
["N","n"]
["O","o"]
["P","p"]
["Q","q"]
["R","r"]
["S","s"]
["T","t"]
["U","u"]
["V","v"]
["W","w"]
["X","x"]
["Y","y"]
["Z","z"]

{"sheet":"Whats This","index":53,"n_rows":2,"n_cols":475,"rows_kept":2,"cut":false,"hidden":false,"merged":[]}
[]
[null,null,null,null,null,null,null,null,null,null,null,null,null,null,null,null,null,null,null,null,null,null,null,null,null,null,null,null,null,null,null,null,null,null,null,null,null,null,null,null,null,null,null,null,null,null,null,null,null,null,null,null,null,null,null,null,null,null,null,null,null,null,null,null,null,null,null,null,null,null,null,null,null,null,null,null,null,null,null,null,null,null,null,null,null,null,null,null,null,null,null,null,null,null,null,null,null,null,null,null,null,null,null,null,null,null,null,null,null,null,null,null,null,null,null,null,null,null,null,null,null,null,null,null,null,null,null,null,null,null,null,null,null,null,null,null,null,null,null,null,null,null,null,null,null,null,null,null,null,null,null,null,null,null,null,null,null,null,null,null,null,null,null,null,null,null,null,null,null,null,null,null,null,null,null,null,null,null,null,null,null,null,null,null,null,null,null,null,null,null,null,null,null,null,null,null,null,null,null,null,null,null,null,null,null,null,null,null,null,null,null,null,null,null,null,null,null,null,null,null,null,null,null,null,null,null,null,null,null,null,null,null,null,null,null,null,null,null,null,null,null,null,null,null,null,null,null,null,null,null,null,null,null,null,null,null,null,null,null,null,null,null,null,null,null,null,null,null,null,null,null,null,null,null,null,null,null,null,null,null,null,null,null,null,null,null,null,null,null,null,null,null,null,null,null,null,null,null,null,null,null,null,null,null,null,null,null,null,null,null,null,null,null,null,null,null,null,null,null,null,null,null,null,null,null,null,null,null,null,null,null,null,null,null,null,null,null,null,null,null,null,null,null,null,null,null,null,null,null,null,null,null,null,null,null,null,null,null,null,null,null,null,null,null,null,null,null,null,null,null,null,null,null,null,null,null,null,null,null,null,null,null,null,null,null,null,null,null,null,null,null,null,null,null,null,null,null,null,null,null,null,null,null,null,null,null,null,null,null,null,null,null,null,null,null,null,null,null,null,null,null,null,null,null,null,null,null,null,null,null,null,null,null,null,null,null,null,null,null,null,null,null,null,null,null,null,null,null,null,null,null,null,null,null,null,null,null,null,null,null,null,null,null,null,null,null,null,null,null,null,null,null,null,null,"What sea creature is this?"]

{"sheet":"Add Time","index":54,"n_rows":6,"n_cols":3,"rows_kept":6,"cut":false,"hidden":false,"merged":[]}
[null,"03:15:00"]
[null,"04:15:00"]
[null,"05:15:00"]
[null,"06:15:00"]
[null,"07:15:00"]
["Total Time",{"$f":"SUM(B1:B5)","v":1.09375},{"$f":"SUM(B1:B5)","v":1.09375}]

{"sheet":"Dynamic Array","index":55,"n_rows":9,"n_cols":9,"rows_kept":9,"cut":false,"hidden":false,"merged":[]}
[{"$f":"INDEX(_xlfn.SORTBY(_xlfn.SEQUENCE(9),_xlfn.RANDARRAY(9)),_xlfn.SEQUENCE(3,3))","v":9},6,5,null,null,{"$f":"_xlfn.SEQUENCE(9)","v":1},{"$f":"_xlfn.RANDARRAY(9)","v":0.10717946792360733}]
[7,3,4,null,null,2,0.46767961860585161,null,"Want 3x3 grid of non-repeating integers 1-9"]
[8,2,1,null,null,3,1.4230158641254986E-2]
[null,null,null,null,null,4,0.36860740646844703]
[null,null,null,null,null,5,0.50361146958288905]
[null,null,null,null,null,6,0.32430440549026662]
[null,null,null,null,null,7,0.99441754978458641]
[null,null,null,null,null,8,6.8676669309442051E-3]
[null,null,null,null,null,9,0.95291987334571404]

{"sheet":"VBA","index":56,"n_rows":3,"n_cols":1,"rows_kept":3,"cut":false,"hidden":false,"merged":[]}
["Locals window is read/write"]
[1]
["You can bookmark the Immediate Window"]

{"sheet":"Amazing Formula","index":57,"n_rows":11,"n_cols":9,"rows_kept":11,"cut":false,"hidden":false,"merged":[]}
["Subtotal 109:",{"$f":"SUBTOTAL(109,'Supporting Data'!C:C)","v":592763},null,null,null,null,null,null,{"$f":"_xlfn.FORMULATEXT(B1)","v":"=SUBTOTAL(109,'Supporting Data'!C:C)"}]
[null,{"$f":"SUMPRODUCT(SUBTOTAL(109,'Supporting Data'!C2:C123),N('Supporting Data'!$A$2:$A$123=A5))","v":{"$error":"#VALUE!"}},null,null,null,null,null,null,{"$f":"_xlfn.FORMULATEXT(B2)","v":"=SUMPRODUCT(SUBTOTAL(109,'Supporting Data'!C2:C123),N('Supporting Data'!$A$2:$A$123=A5))"}]
[]
["Service","Total",null,"Alternate"]
["ES",{"$f":"SUMPRODUCT(SUBTOTAL(109,OFFSET('Supporting Data'!$C$1,_xlfn.SEQUENCE(122),0)),N('Supporting Data'!$A$2:$A$123=A5))","v":131174},null,{"$f":"SUMIF('Supporting Data'!$A$2:$A$123,A5,'Supporting Data'!$G$2:$G$123)","v":131174}]
["BU",{"$f":"SUMPRODUCT(SUBTOTAL(109,OFFSET('Supporting Data'!$C$1,_xlfn.SEQUENCE(122),0)),N('Supporting Data'!$A$2:$A$123=A6))","v":96757},null,{"$f":"SUMIF('Supporting Data'!$A$2:$A$123,A6,'Supporting Data'!$G$2:$G$123)","v":96757}]
["AW",{"$f":"SUMPRODUCT(SUBTOTAL(109,OFFSET('Supporting Data'!$C$1,_xlfn.SEQUENCE(122),0)),N('Supporting Data'!$A$2:$A$123=A7))","v":129093},null,{"$f":"SUMIF('Supporting Data'!$A$2:$A$123,A7,'Supporting Data'!$G$2:$G$123)","v":129093}]
["NNR",{"$f":"SUMPRODUCT(SUBTOTAL(109,OFFSET('Supporting Data'!$C$1,_xlfn.SEQUENCE(122),0)),N('Supporting Data'!$A$2:$A$123=A8))","v":129979},null,{"$f":"SUMIF('Supporting Data'!$A$2:$A$123,A8,'Supporting Data'!$G$2:$G$123)","v":129979}]
["JKP",{"$f":"SUMPRODUCT(SUBTOTAL(109,OFFSET('Supporting Data'!$C$1,ROW($1:$122),0)),N('Supporting Data'!$A$2:$A$123=A9))","v":105760},null,{"$f":"SUMIF('Supporting Data'!$A$2:$A$123,A9,'Supporting Data'!$G$2:$G$123)","v":105760}]
[]
["Total",{"$f":"SUM(B5:B10)","v":592763},null,{"$f":"SUM(D5:D10)","v":592763},null,null,null,null,{"$f":"_xlfn.FORMULATEXT(B11)","v":"=SUM(B5:B10)"}]

{"sheet":"Supporting Data","index":58,"n_rows":123,"n_cols":10,"rows_kept":123,"cut":false,"hidden":false,"merged":[]}
["Service","City","Amount","Date",null,null,null,null,null,{"$f":"G3","v":2475}]
["JKP","New York",3112,"2017-02-08T15:14:34.545",null,null,{"$f":"SUBTOTAL(109,C2)","v":3112}]
["ES","New York",2475,"2017-10-19T09:10:36.422",null,null,{"$f":"SUBTOTAL(109,C3)","v":2475}]
["AW","Miami",2018,"2017-05-08T19:42:18.601",null,null,2018]
["AW","Atlanta",9893,"2017-06-18T15:24:07.956",null,null,9893]
["BU","Amsterdam",328,"2017-01-05T04:22:57.065",null,null,328]
["ES","Atlanta",597,"2017-01-09T01:53:42.337",null,null,597]
["BU","Atlanta",2607,"2017-06-04T11:03:52.625",null,null,2607]
["NNR","Boston",5278,"2017-09-05T14:11:52.324",null,null,5278]
["NNR","Amsterdam",1836,"2018-02-04T13:09:25.393",null,null,1836]
["BU","San Francisco",73,"2017-05-04T14:39:50.634",null,null,73]
["JKP","Miami",2667,"2017-12-15T22:29:27.162",null,null,2667]
["ES","New York",4215,"2017-03-26T00:19:59.732",null,null,4215]
["AW","Los Angeles",124,"2017-02-01T19:13:04.969",null,null,124]
["AW","Amsterdam",4525,"2017-01-11T07:33:28.610",null,null,4525]
["AW","San Francisco",2958,"2017-02-16T19:25:55.666",null,null,2958]
["NNR","New York",9237,"2017-08-02T00:48:14.659",null,null,9237]
["BU","San Francisco",5193,"2017-03-28T17:30:34.910",null,null,5193]
["ES","Boston",2832,"2017-05-23T13:48:37.024",null,null,2832]
["ES","San Francisco",9005,"2017-07-15T22:27:43.978",null,null,9005]
["BU","Redmond",962,"2017-02-03T05:09:41.751",null,null,962]
["ES","Redmond",2720,"2017-03-04T04:27:30.321",null,null,2720]
["ES","Miami",5814,"2017-01-19T15:04:34.878",null,null,5814]
["NNR","Atlanta",3720,"2017-01-06T01:06:19.557",null,null,3720]
["NNR","San Francisco",523,"2017-10-04T04:42:00.955",null,null,523]
["NNR","Redmond",8947,"2017-07-31T17:13:17.558",null,null,8947]
["AW","Miami",2300,"2017-02-10T13:40:46.544",null,null,2300]
["JKP","Amsterdam",629,"2017-05-09T08:57:24.131",null,null,629]
["BU","Redmond",1736,"2017-04-15T23:51:48.458",null,null,1736]
["NNR","San Francisco",3320,"2017-07-12T04:07:52.866",null,null,3320]
["AW","Atlanta",2505,"2017-03-06T22:47:14.083",null,null,2505]
["AW","Los Angeles",2088,"2017-01-01T08:04:45.694",null,null,2088]
["AW","Boston",8038,"2017-03-30T06:03:08.027",null,null,8038]
["ES","Atlanta",8308,"2017-03-10T01:07:32.439",null,null,8308]
["BU","Miami",1290,"2017-09-16T08:45:03.946",null,null,1290]
["AW","Miami",6970,"2017-02-19T23:40:59.497",null,null,6970]
["AW","San Francisco",930,"2017-04-09T02:03:12.128",null,null,930]
["ES","Redmond",6840,"2017-12-12T19:06:40.073",null,null,6840]
["JKP","Atlanta",6333,"2018-01-09T18:54:14.430",null,null,6333]
["JKP","Redmond",5880,"2017-04-22T04:22:31.902",null,null,5880]
["NNR","Boston",7929,"2017-10-03T23:47:46.051",null,null,7929]
["ES","Boston",9954,"2017-01-04T12:17:40.792",null,null,9954]
["JKP","Atlanta",7213,"2017-04-02T06:07:35.398",null,null,7213]
["BU","New York",8389,"2017-06-16T15:41:03.033",null,null,8389]
["ES","Amsterdam",9347,"2017-12-30T09:54:45.351",null,null,9347]
["NNR","San Francisco",6693,"2017-06-13T07:39:04.992",null,null,6693]
["AW","New York",9268,"2017-04-04T10:21:26.347",null,null,9268]
["AW","Boston",7837,"2017-03-10T15:21:45.123",null,null,7837]
["JKP","San Francisco",177,"2017-10-20T02:21:56.032",null,null,177]
["JKP","New York",5690,"2017-01-28T16:06:33.903",null,null,5690]
["ES","New York",6379,"2017-03-05T02:25:46.525",null,null,6379]
["NNR","Amsterdam",7858,"2017-11-03T07:19:11.022",null,null,7858]
["AW","Amsterdam",5010,"2017-12-26T22:55:49.320",null,null,5010]
["JKP","Los Angeles",1756,"2017-11-01T04:48:52.429",null,null,1756]
["BU","Miami",5424,"2017-03-24T04:09:18.748",null,null,5424]
["BU","Amsterdam",9641,"2017-03-14T03:00:15.508",null,null,9641]
["ES","Los Angeles",1788,"2017-07-29T14:14:15.493",null,null,1788]
["BU","New York",7939,"2017-05-04T17:39:34.195",null,null,7939]
["ES","Los Angeles",2905,"2017-06-06T16:56:29.781",null,null,2905]
["NNR","Los Angeles",989,"2018-01-08T08:37:52.395",null,null,989]
["ES","Miami",1690,"2017-10-29T02:28:00.841",null,null,1690]
["NNR","New York",8418,"2017-10-29T03:48:03.358",null,null,8418]
["JKP","Miami",9529,"2017-10-11T07:11:54.134",null,null,9529]
["AW","Redmond",7153,"2017-09-09T15:11:27.852",null,null,7153]
["BU","Boston",6886,"2017-12-21T20:48:55.178",null,null,6886]
["JKP","Boston",7401,"2017-01-13T17:13:59.896",null,null,7401]
["BU","New York",1971,"2017-06-24T00:19:47.244",null,null,{"$f":"SUBTOTAL(109,C67)","v":1971}]
["BU","New York",5806,"2017-05-20T02:59:12.638",null,null,5806]
["JKP","Los Angeles",7576,"2017-12-04T10:05:40.033",null,null,7576]
["ES","Redmond",5572,"2017-07-22T15:00:28.992",null,null,5572]
["BU","San Francisco",3107,"2017-10-22T02:39:45.516",null,null,3107]
["NNR","Atlanta",7122,"2017-07-20T19:04:19.280",null,null,7122]
["JKP","Amsterdam",2821,"2017-08-24T15:37:38.033",null,null,2821]
["AW","Los Angeles",929,"2017-07-12T04:58:20.745",null,null,929]
["NNR","Atlanta",7983,"2017-05-13T05:48:28.434",null,null,7983]
["ES","Amsterdam",7931,"2017-06-05T07:37:44.096",null,null,7931]
["NNR","New York",2602,"2017-08-20T03:25:49.442",null,null,2602]
["BU","Redmond",9469,"2017-09-09T17:25:40.205",null,null,9469]
["BU","Atlanta",4034,"2017-07-30T17:14:11.888",null,null,4034]
["BU","Los Angeles",6700,"2017-12-16T15:00:19.036",null,null,6700]
["NNR","Los Angeles",8875,"2017-07-14T21:04:02.392",null,null,8875]
["JKP","Redmond",1246,"2017-01-18T00:42:43.943",null,null,1246]
["ES","San Francisco",4348,"2017-06-25T20:58:39.168",null,null,4348]
["NNR","Miami",8241,"2017-03-04T01:08:58.742",null,null,8241]
["AW","New York",5968,"2017-01-11T08:37:51.645",null,null,5968]
["BU","Boston",2148,"2017-11-27T19:39:50.071",null,null,2148]
["ES","Amsterdam",700,"2018-02-02T11:25:59.986",null,null,700]
["AW","Amsterdam",3208,"2017-02-09T08:23:09.705",null,null,3208]
["JKP","Boston",2931,"2017-01-04T09:43:19.894",null,null,2931]
["JKP","Boston",4179,"2017-06-25T07:05:53.619",null,null,4179]
["JKP","Amsterdam",2959,"2017-02-28T05:43:18.699",null,null,2959]
["NNR","Miami",9383,"2017-03-06T13:27:30.006",null,null,9383]
["AW","Redmond",4785,"2017-01-24T01:11:44.239",null,null,4785]
["NNR","Boston",3499,"2017-02-19T03:44:01.080",null,null,3499]
["AW","San Francisco",7652,"2017-01-13T13:02:22.553",null,null,7652]
["NNR","Los Angeles",3020,"2017-07-06T09:35:54.722",null,null,3020]
["BU","Amsterdam",1578,"2018-01-08T18:58:34.084",null,null,1578]
["AW","Redmond",9700,"2017-06-28T09:45:09.800",null,null,9700]
["JKP","Redmond",7849,"2017-03-12T00:16:48.242",null,null,7849]
["JKP","Miami",8188,"2017-03-03T19:05:22.274",null,null,8188]
["AW","Boston",6959,"2017-04-28T13:47:10.849",null,null,6959]
["ES","Boston",7813,"2017-10-13T03:34:24.691",null,null,7813]
["BU","Atlanta",1197,"2017-02-08T15:16:56.646",null,null,1197]
["JKP","San Francisco",789,"2017-09-29T12:16:56.117",null,null,789]
["AW","New York",9553,"2017-09-23T16:05:32.094",null,null,9553]
["AW","Atlanta",8722,"2017-04-30T18:52:47.211",null,null,8722]
["BU","Los Angeles",744,"2017-02-16T13:24:02.805",null,null,744]
["BU","Miami",4373,"2017-03-23T14:51:23.986",null,null,4373]
["NNR","Redmond",6514,"2017-01-07T23:09:40.035",null,null,6514]
["NNR","Miami",2740,"2017-06-22T16:24:54.398",null,null,2740]
["JKP","New York",2263,"2017-02-10T03:57:49.751",null,null,2263]
["BU","Los Angeles",3515,"2017-06-26T16:19:07.901",null,null,3515]
["ES","San Francisco",4862,"2017-03-24T09:09:21.043",null,null,4862]
["ES","Atlanta",5478,"2017-04-02T10:42:10.711",null,null,5478]
["JKP","San Francisco",4575,"2017-01-15T07:31:05.526",null,null,4575]
["JKP","Los Angeles",1379,"2017-06-09T19:41:40.251",null,null,1379]
["ES","Los Angeles",8809,"2017-05-30T04:23:39.372",null,null,8809]
["JKP","Atlanta",8618,"2017-03-22T09:17:50.560",null,null,8618]
["ES","Miami",1635,"2017-01-10T11:52:27.245",null,null,1635]
["BU","Boston",1647,"2017-09-19T05:49:47.902",null,null,1647]
["NNR","Redmond",295,"2017-10-04T15:24:49.305",null,null,295]
["ES","Amsterdam",9157,"2017-05-09T03:45:10.013",null,null,9157]
["NNR","Amsterdam",4957,"2017-01-12T08:10:30.318",null,null,4957]

{"sheet":"Miscellaneous","index":59,"n_rows":48,"n_cols":1,"rows_kept":48,"cut":false,"hidden":false,"merged":[]}
["Shift/fill handle to insert/delete"]
["right-click border drag & drop"]
["Right-click drag fillhandle options"]
["Clear print area by selecting all cells & setting print area"]
["Ctrl/shift 1-2-3-4-5-6 for formatting"]
["ctrl/quote to copy VALUE of above cell"]
["defining names with leading \"!\" to make it global, or =INDIRECT(\"r[-1]c\",FALSE)"]
["Using row(), Column() inside formula to get 1,2,3,… as in =SUBTOTAL(COLUMN(),A1:A5) & fill right to get all the subtotal commands"]
["defining names for large multi selection, like clr    =clr1,clr2,clr3"]
["Temporarily changing name of long sheet name to short one to get more in multi select name"]
["using criteria of rand()<.25 to get a 25% sample of records"]
["TEXT function to get dates into narrow columns"]
["Using *. In formatting for fill effect; using Fill in horizontal alignment"]
["ctrl enter single cell to leave cursor in cell"]
["using ctrl/left bracket to open files"]
["=West gizmos to get intersection"]
["Ctrl/period to move you around the corners"]
["Print many worksheets at once by group mode"]
["shift/click No when closing all documents = \"no to all\""]
["alt/= (esp 2x) simulates clicking auto-sum tool"]
["Camera tool to print remote parts of ws on same page"]
["Insert/Name: you can scroll when cursor is in the refers to box"]
["Protect remote ranges with gardol shield"]
["ctrl/backspace brings remove area into view; shift/bs does same but reduces selection to active cell"]
["end of month: =DATE(YEAR(A10),MONTH(A10)+1,0)"]
["F5/goto allows quick return"]
["formula to get last used row"]
["Shift/F5 -- active cell is anchored"]
["Using Window/New Window - order of arrange all by clicking in reverse order!"]
["F5 from worksheet can access VBA sub"]
["double-click format painter to keep it active;Lock drawing mode for drawing tools"]
["change to R1C1 format to copy formula from formula bar to paste into VBA"]
["Text can be formatted by characters in a cell (not formulas)"]
["If you use a hyperlink, Alt/left arrow to get back"]
["Formatting % can use a fixed fraction, as # ??/64"]
["In Userforms, object with white handle is \"master\" for formatting"]
["Use ctrl/V,X for images in userforms"]
["Userform - make your own set of tools"]
["Add pages to vba's toolbox"]
["Use immediate window as calculator"]
["GetCustomListContents in initializing userform"]
["Bookmarks in VBA; Last position in VBA"]
["from cell A1, create a simple name, like z, which references cell !Z100 as a relative reference (with the leading exclamation) and when you edit/goto"]
["       another range, named or not, you can add :z to ensure the top left cell of the range is scrolled to the top left. Then, shift/backspace selects only active cell."]
["bulk remove leading ' by copying unused cell, paste/special & include the \"Add\" option"]
["What is that :1, :2… I see in the workbook title?"]
["Deleting Named Range when hundreds of names are defined"]
["Wish there were a “No to All” when closing many files?"]

{"sheet":"Email","index":60,"n_rows":9,"n_cols":7,"rows_kept":9,"cut":false,"hidden":false,"merged":[]}
[]
[]
[]
[null,null,null,null,null,"I can be reached at:"]
[null,null,null,null,null,"BobUmlas@Hotmail.com"]
[]
[null,null,null,null,null,"You can find my other books by typing"]
[null,null,null,null,null,null,"Umlas"]
[null,null,null,null,null,"into Amazon.com"]